Workbook

Sheet Markets
A1: Shep (AUS) 10th Apr - 11:20 R12 385m Gr5 | D1: 17:27:00 | F1: Greyhound Racing\AUS\Shep (AUS) 10th Apr | H1: BFSP | I1: Y | J1: Streaming | M1: Parent id | N1: 30413036 | O1: Version | P1: 3733719052
A2: Last updated: | B2: 44296.46624 | C2: 11:11:22 | D2: 00:08:39 | E2: Not In Play | H2: Balance: | I2: 102386.46 | K2: Exposure: | L2: -652.48 | M2: Trans: | N2: 84 | P2: Refresh rate(0.5): | BH2: bet placement | BN2: unmatched | BR2: matched | BV2: unmatched | BZ2: matched | CC2: updated price adjustments | CJ2: fair odds calculation | CP2: 20 | CQ2: wom formulas | CS2: market efficiency | CU2: 2 | CV2: 2 | CW2: back lone ranger | CY2: lay lone ranger | DA2: aggressive bet | DC2: mlo & mbo calculations | DG2: 8 | DH2: pricing setup | DJ2: 1 | DK2: pricing setup | DN2: 1
A3: Total matched: | B3: 289.24 | D3: Winners | E3: 1 | F3: NR | G3: 0 | H3: Turn IP | I3: N | J3: 66 | K3: IR Delay | L3: 0 | M3: Market id | N3: 181705171 | O3: Comm: | P3: 2.8 | BA3: clean | BB3: unique | BC3: truncated | BD3: odds | BG3: fair | BH3: final | BI3: lay | BJ3: lay | BK3: final | BL3: back | BM3: back | BN3: lay | BO3: lay | BP3: lay | BQ3: bet | BR3: lay | BS3: lay | BT3: average | BU3: current | BV3: back | BW3: back | BX3: back | BY3: bet | BZ3: back | CB3: average | CC3: lay | CD3: lay | CE3: back | CF3: back | CG3: lay | CH3: back | CJ3: public | CK3: ln | CL3: comb | CM3: sum | CN3: comb | CO3: fair | CP3: weight | CQ3: wom | CR3: wom | CS3: back | CT3: lay | CU3: back 1 - 2 | CV3: lay 1 - 2 | CW3: back | CX3: prefered | CY3: lay | CZ3: prefered | DA3: back | DB3: lay | DC3: raw | DD3: raw | DE3: rounded | DF3: rounded | DG3: rounded | DI3: remaining | DK3: fair | DM3: remaining
A4: Selection name | B4: Back Odds 3 | D4: Back Odds 2 | F4: Back Odds 1 | H4: Lay Odds 1 | J4: Lay Odds 2 | L4: Lay Odds 3 | N4: Reduction factor | O4: Last price matched | P4: Total amount matched | Q4: Trigger | R4: Odds | S4: Stake | T4: Bet ref | U4: Bet time | V4: Avg matched odds | W4: Matched stake | X4: Profit / Loss | Y4: SP | Z4: Average last price matched | AA4: Close Profit/Loss | AB4: Race Status | AC4: Result | AD4: Result | BA4: runner | BB4: id | BC4: rating | BD4: coeff | BE4: filter | BF4: public | BG4: odds | BH4: mlo | BI4: price | BJ4: stake | BK4: mbo | BL4: price | BM4: stake | BN4: count | BO4: odds | BP4: stake | BQ4: id | BR4: matched | BS4: liability | BT4: odds | BU4: payout | BV4: count | BW4: odds | BX4: stake | BY4: id | BZ4: matched | CA4: potential | CB4: odds | CC4: odds | CD4: stake | CE4: odds | CF4: stake | CG4: agg odds | CH4: agg odds | CJ4: price | CK4: public | CL4: sum | CM4: exp | CN4: prob | CO4: odds | CP4: perc | CQ4: prob | CR4: fair odds | CS4: market | CT4: market | CU4: tick count | CV4: tick count | CW4: flag | CX4: back | CY4: flag | CZ4: lay | DA4: +1 tick | DB4: -1 tick | DC4: mlo | DD4: mbo | DE4: mlo | DF4: mbo | DG4: secondary | DH4: L | DI4: payout | DJ4: LS | DK4: back | DL4: B | DM4: payout | DN4: BS
A5: 1. Kamari | B5: 13 | C5: 8 | D5: 14 | E5: 30 | F5: 15 | G5: 7 | H5: 34 | I5: 6 | J5: 44 | K5: 6 | L5: 55 | M5: 5 | N5: 0 | O5: 0 | P5: 0 | V5: 0 | W5: 0 | X5: 0 | Y5: 22.5 | Z5: 0 | AA5: 0 | BA5: Kamari | BB5: KAMARI44296 | BC5: 43.17865 | BD5: -0.9063766 | BE5: 0 | BF5: 13 | BG5: =IFERROR(CR5,"") -> 15.15804884 | BH5: =DE5 -> 12 | BI5: =DH5 -> 12 | BJ5: =DJ5 -> 21 | BK5: =DF5 -> 22 | BL5: =DL5 -> 34 | BM5: =DN5 -> 9 | BN5: =IF(BA5<>"",COUNTIFS(MyBets!B$2:B$1000,A5,MyBets!F$2:F$1000,"L",MyBets!E$2:E$1000,"U"),"") -> 0 | BO5: =IF(A5<>"",SUMIFS(MyBets!$D$2:$D$1000,MyBets!$B$2:$B$1000,A5,MyBets!$E$2:$E$1000,"U",MyBets!$F$2:$F$1000,"L"),"") -> 0 | BP5: =IF(A5<>"",SUMIFS(MyBets!$C$2:$C$1000,MyBets!$B$2:$B$1000,A5,MyBets!$E$2:$E$1000,"U",MyBets!$F$2:$F$1000,"L"),"") -> 0 | BQ5: =IF(A5<>"",SUMIFS(MyBets!$A$2:$A$1000,MyBets!$B$2:$B$1000,A5,MyBets!$E$2:$E$1000,"U",MyBets!$F$2:$F$1000,"L"),"") -> 0 | BR5: =IF(A5<>"",SUMIFS(MyBets!$C$2:$C$1000,MyBets!$B$2:$B$1000,A5,MyBets!$E$2:$E$1000,"F",MyBets!$F$2:$F$1000,"L"),"") -> 0 | BS5: =IF(A5<>"",SUMIFS(MyBets!$I$2:$I$1000,MyBets!$B$2:$B$1000,A5,MyBets!$E$2:$E$1000,"F",MyBets!$F$2:$F$1000,"L"),"") -> 0 | BT5: =IF(A5<>"",IF(BR5>0,(BS5+BR5)/BR5,""),"") ->  | BU5: =IF(A5<>"",IF(BT5<>"",BT5*BR5,0),"") -> 0 | BV5: =IF(BA5<>"",COUNTIFS(MyBets!B$2:B$1000,A5,MyBets!F$2:F$1000,"B",MyBets!E$2:E$1000,"U"),"") -> 0 | BW5: =IF(A5<>"",SUMIFS(MyBets!$D$2:$D$1000,MyBets!$B$2:$B$1000,A5,MyBets!$E$2:$E$1000,"U",MyBets!$F$2:$F$1000,"B"),"") -> 0 | BX5: =IF(A5<>"",SUMIFS(MyBets!$C$2:$C$1000,MyBets!$B$2:$B$1000,A5,MyBets!$E$2:$E$1000,"U",MyBets!$F$2:$F$1000,"B"),"") -> 0 | BY5: =IF(A5<>"",SUMIFS(MyBets!$A$2:$A$1000,MyBets!$B$2:$B$1000,A5,MyBets!$E$2:$E$1000,"U",MyBets!$F$2:$F$1000,"B"),"") -> 0 | BZ5: =IF(A5<>"",SUMIFS(MyBets!$C$2:$C$1000,MyBets!$B$2:$B$1000,A5,MyBets!$E$2:$E$1000,"F",MyBets!$F$2:$F$1000,"B"),"") -> 0 | CA5: =IF(A5<>"",SUMIFS(MyBets!$G$2:$G$1000,MyBets!$B$2:$B$1000,A5,MyBets!$E$2:$E$1000,"F",MyBets!$F$2:$F$1000,"B"),"") -> 0 | CB5: =IF(A5<>"",IF(BZ5>0,SUM((CA5+BZ5)/BZ5)-1,""),"") ->  | CJ5: =IF(A5<>"",BF5,"") -> 13 | CK5: =IF(A5<>"",LN(CJ5),"") -> 2.564949357 | CL5: =IF(A5<>"",BC5+BD5*CK5,"") -> 40.85383992 | CM5: =IF(A5<>"",EXP(CL5),"") -> 5.528371797e+17 | CN5: =IF(A5<>"",CM5/SUM($CM$5:$CM$29),"") -> 0.06597155153 | CO5: =IF(A5<>"",1/CN5,"") -> 15.15804884 | CP5: =IFERROR((BR5+BS5-BZ5-CA5)/MAX(LPO,BPO),"") -> 0 | CQ5: =IF(CO5<>"",(1/CO5)^(1-CP5/$CP$2),"") -> 0.06597155153 | CR5: =IFERROR(1/(CQ5/SUM($CQ$5:$CQ$29)),"") -> 15.15804884 | CS5: =IFERROR(1/F5,"") -> 0.06666666667 | CT5: =IFERROR(1/H5,"") -> 0.02941176471 | CU5: =IF(A5<>"",VLOOKUP(F5,bf_odds,2,FALSE)-VLOOKUP(D5,bf_odds,2,FALSE),"") -> 2 | CV5: =IF(A5<>"",VLOOKUP(IF(J5=0,1,J5),bf_odds,2,FALSE)-VLOOKUP(H5,bf_odds,2,FALSE),"") -> 5 | CW5: =IF(A5<>"",IF(AND(I5<=BX5+1,H5=BW5,CV5>=$CV$2),1,0),"") -> 0 | CX5: =IF(CW5=1,VLOOKUP(J5-0.001,bf_odds,1),"") ->  | CY5: =IF(A5<>"",IF(AND(E5<=BP5+1,F5=BO5,CU5>=$CU$2),1,0),"") -> 0 | CZ5: =IF(CY5=1,VLOOKUP(D5+0.001,bf_odds,1),"") ->  | DA5: =IF(F5<>"",IF(CG5=F5,F5,VLOOKUP(F5+0.001,bf_odds,3)),"") -> 15.5 | DB5: =IF(H5<>"",IF(CH5=H5,H5,VLOOKUP(H5-0.001,bf_odds,1)),"") -> 32 | DC5: =IF(A5<>"",CR5*mlo,"") -> 12.42960005 | DD5: =IF(A5<>"",IF(CR5>40,1000,EXP(LN(CR5)*mbo)),"") -> 21.00489419 | DE5: =IFERROR(IF(A5<>"",VLOOKUP(DC5,bf_odds,1),""),"") -> 12 | DF5: =IFERROR(IF(A5<>"",VLOOKUP(DD5,bf_odds,3),""),"") -> 22 | DG5: =IFERROR(IF(DD5*$DG$2,VLOOKUP(DD5*$DG$2,bf_odds,3),""),"") -> 170 | DH5: =IF(A5<>"",IF(F5<=DE5,IF(TTJ<AGR,DA5,IF(CZ5<>"",CZ5,F5)),DE5),"") -> 12 | DI5: =IF(A5<>"",IF(LPO-BU5<0,0,LPO-BU5),"") -> 1473.047915 | DJ5: =IF(A5<>"",CEILING(IF(DI5>LTR,LTR/DH5,DI5/DH5),$DJ$2),"") -> 21 | DK5: =IF(A5<>"",IF(H5=0,DG5,DF5),"") -> 22 | DL5: =IF(A5<>"",IF(H5=0,DK5,IF(H5>=DK5,IF(TTJ<AGR,DB5,IF(CX5<>"",CX5,H5)),DK5)),"") -> 34 | DM5: =IF(A5<>"",IF(BPO-CA5<0,0,BPO-CA5),"") -> 1178.438332 | DN5: =IFERROR(IF(A5<>"",CEILING(IF(DM5>BTR,BTR/DL5,DM5/DL5),$DN$2),""),"") -> 9
A6: 2. Lucas Entity | B6: 30 | C6: 5 | D6: 36 | E6: 11 | F6: 38 | G6: 6 | H6: 260 | I6: 9 | J6: 380 | K6: 6 | L6: 990 | M6: 7 | N6: 0 | O6: 0 | P6: 0 | V6: 0 | W6: 0 | X6: 0 | Y6: 94 | Z6: 0 | AA6: 0 | BA6: Lucas Entity | BB6: LUCAS ENTITY44296 | BC6: 42.69545 | BD6: -0.9063766 | BE6: 0 | BF6: 34 | BG6: =IFERROR(CR6,"") -> 58.74066532 | BH6: 48 | BI6: 38 | BJ6: 7 | BK6: =DF6 -> 1000 | BL6: 1000 | BM6: 1 | BN6: =IF(BA6<>"",COUNTIFS(MyBets!B$2:B$1000,A6,MyBets!F$2:F$1000,"L",MyBets!E$2:E$1000,"U"),"") -> 0 | BO6: =IF(A6<>"",SUMIFS(MyBets!$D$2:$D$1000,MyBets!$B$2:$B$1000,A6,MyBets!$E$2:$E$1000,"U",MyBets!$F$2:$F$1000,"L"),"") -> 0 | BP6: =IF(A6<>"",SUMIFS(MyBets!$C$2:$C$1000,MyBets!$B$2:$B$1000,A6,MyBets!$E$2:$E$1000,"U",MyBets!$F$2:$F$1000,"L"),"") -> 0 | BQ6: =IF(A6<>"",SUMIFS(MyBets!$A$2:$A$1000,MyBets!$B$2:$B$1000,A6,MyBets!$E$2:$E$1000,"U",MyBets!$F$2:$F$1000,"L"),"") -> 0 | BR6: =IF(A6<>"",SUMIFS(MyBets!$C$2:$C$1000,MyBets!$B$2:$B$1000,A6,MyBets!$E$2:$E$1000,"F",MyBets!$F$2:$F$1000,"L"),"") -> 0 | BS6: =IF(A6<>"",SUMIFS(MyBets!$I$2:$I$1000,MyBets!$B$2:$B$1000,A6,MyBets!$E$2:$E$1000,"F",MyBets!$F$2:$F$1000,"L"),"") -> 0 | BU6: 0 | BV6: =IF(BA6<>"",COUNTIFS(MyBets!B$2:B$1000,A6,MyBets!F$2:F$1000,"B",MyBets!E$2:E$1000,"U"),"") -> 0 | BW6: =IF(A6<>"",SUMIFS(MyBets!$D$2:$D$1000,MyBets!$B$2:$B$1000,A6,MyBets!$E$2:$E$1000,"U",MyBets!$F$2:$F$1000,"B"),"") -> 0 | BX6: =IF(A6<>"",SUMIFS(MyBets!$C$2:$C$1000,MyBets!$B$2:$B$1000,A6,MyBets!$E$2:$E$1000,"U",MyBets!$F$2:$F$1000,"B"),"") -> 0 | BY6: =IF(A6<>"",SUMIFS(MyBets!$A$2:$A$1000,MyBets!$B$2:$B$1000,A6,MyBets!$E$2:$E$1000,"U",MyBets!$F$2:$F$1000,"B"),"") -> 0 | BZ6: =IF(A6<>"",SUMIFS(MyBets!$C$2:$C$1000,MyBets!$B$2:$B$1000,A6,MyBets!$E$2:$E$1000,"F",MyBets!$F$2:$F$1000,"B"),"") -> 0 | CA6: =IF(A6<>"",SUMIFS(MyBets!$G$2:$G$1000,MyBets!$B$2:$B$1000,A6,MyBets!$E$2:$E$1000,"F",MyBets!$F$2:$F$1000,"B"),"") -> 0 | CJ6: 34 | CK6: 3.526360525 | CL6: 39.49923934 | CM6: 1.426598239e+17 | CN6: 0.01702398151 | CO6: 58.74066532 | CP6: 0 | CQ6: =IF(CO6<>"",(1/CO6)^(1-CP6/$CP$2),"") -> 0.01702398151 | CR6: =IFERROR(1/(CQ6/SUM($CQ$5:$CQ$29)),"") -> 58.74066532 | CS6: 0.02631578947 | CT6: 0.003846153846 | CU6: =IF(A6<>"",VLOOKUP(F6,bf_odds,2,FALSE)-VLOOKUP(D6,bf_odds,2,FALSE),"") -> 1 | CV6: 12 | CW6: =IF(A6<>"",IF(AND(I6<=BX6+1,H6=BW6,CV6>=$CV$2),1,0),"") -> 0 | CY6: =IF(A6<>"",IF(AND(E6<=BP6+1,F6=BO6,CU6>=$CU$2),1,0),"") -> 0 | DA6: 40 | DB6: 250 | DC6: 48.16734556 | DD6: 1000 | DE6: 48 | DF6: 1000 | DG6: 1000 | DH6: 38 | DI6: 1473.047915 | DJ6: 7 | DK6: 1000 | DL6: 1000 | DM6: 1178.438332 | DN6: 1
A7: 3. All Inn Mia | B7: 5.2 | C7: 7 | D7: 5.4 | E7: 7 | F7: 5.6 | G7: 7 | H7: 7.8 | I7: 22 | J7: 8.6 | K7: 15 | L7: 9.4 | M7: 5 | N7: 0 | O7: 7.6 | P7: 118.34 | V7: 0 | W7: 0 | X7: 0 | Y7: 5.52 | Z7: 7.23 | AA7: 0 | BA7: All Inn Mia | BB7: ALL INN MIA44296 | BC7: 43.37527 | BD7: -0.9063766 | BE7: 0 | BF7: 4.8 | BG7: 5.047324757 | BH7: 4.1 | BI7: 4.1 | BJ7: 60 | BK7: 6.2 | BL7: 7.8 | BM7: 38 | BN7: =IF(BA7<>"",COUNTIFS(MyBets!B$2:B$1000,A7,MyBets!F$2:F$1000,"L",MyBets!E$2:E$1000,"U"),"") -> 0 | BO7: =IF(A7<>"",SUMIFS(MyBets!$D$2:$D$1000,MyBets!$B$2:$B$1000,A7,MyBets!$E$2:$E$1000,"U",MyBets!$F$2:$F$1000,"L"),"") -> 0 | BP7: =IF(A7<>"",SUMIFS(MyBets!$C$2:$C$1000,MyBets!$B$2:$B$1000,A7,MyBets!$E$2:$E$1000,"U",MyBets!$F$2:$F$1000,"L"),"") -> 0 | BQ7: =IF(A7<>"",SUMIFS(MyBets!$A$2:$A$1000,MyBets!$B$2:$B$1000,A7,MyBets!$E$2:$E$1000,"U",MyBets!$F$2:$F$1000,"L"),"") -> 0 | BR7: =IF(A7<>"",SUMIFS(MyBets!$C$2:$C$1000,MyBets!$B$2:$B$1000,A7,MyBets!$E$2:$E$1000,"F",MyBets!$F$2:$F$1000,"L"),"") -> 0 | BS7: =IF(A7<>"",SUMIFS(MyBets!$I$2:$I$1000,MyBets!$B$2:$B$1000,A7,MyBets!$E$2:$E$1000,"F",MyBets!$F$2:$F$1000,"L"),"") -> 0 | BU7: 0 | BV7: =IF(BA7<>"",COUNTIFS(MyBets!B$2:B$1000,A7,MyBets!F$2:F$1000,"B",MyBets!E$2:E$1000,"U"),"") -> 0 | BW7: =IF(A7<>"",SUMIFS(MyBets!$D$2:$D$1000,MyBets!$B$2:$B$1000,A7,MyBets!$E$2:$E$1000,"U",MyBets!$F$2:$F$1000,"B"),"") -> 0 | BX7: =IF(A7<>"",SUMIFS(MyBets!$C$2:$C$1000,MyBets!$B$2:$B$1000,A7,MyBets!$E$2:$E$1000,"U",MyBets!$F$2:$F$1000,"B"),"") -> 0 | BY7: =IF(A7<>"",SUMIFS(MyBets!$A$2:$A$1000,MyBets!$B$2:$B$1000,A7,MyBets!$E$2:$E$1000,"U",MyBets!$F$2:$F$1000,"B"),"") -> 0 | BZ7: =IF(A7<>"",SUMIFS(MyBets!$C$2:$C$1000,MyBets!$B$2:$B$1000,A7,MyBets!$E$2:$E$1000,"F",MyBets!$F$2:$F$1000,"B"),"") -> 0 | CA7: =IF(A7<>"",SUMIFS(MyBets!$G$2:$G$1000,MyBets!$B$2:$B$1000,A7,MyBets!$E$2:$E$1000,"F",MyBets!$F$2:$F$1000,"B"),"") -> 0 | CJ7: 4.8 | CK7: 1.568615918 | CL7: 41.95351324 | CM7: 1.660272198e+18 | CN7: 0.1981247588 | CO7: 5.047324757 | CP7: 0 | CQ7: 0.1981247588 | CR7: 5.047324757 | CS7: 0.1785714286 | CT7: 0.1282051282 | CU7: 2 | CV7: 4 | CW7: 0 | CY7: 0 | DA7: 5.7 | DB7: 7.6 | DC7: 4.138806301 | DD7: 6.1295501 | DE7: 4.1 | DF7: 6.2 | DG7: 50 | DH7: 4.1 | DI7: 1473.047915 | DJ7: 60 | DK7: 6.2 | DL7: 7.8 | DM7: 1178.438332 | DN7: 38
A8: 5. Madame Pookie | B8: 6.6 | C8: 80 | D8: 8 | E8: 42 | F8: 9.4 | G8: 8 | H8: 10 | I8: 5 | J8: 12 | K8: 15 | L8: 14.5 | M8: 8 | N8: 0 | O8: 9.6 | P8: 127.31 | V8: 0 | W8: 0 | X8: 0 | Y8: 9.7 | Z8: 8.74 | AA8: 0 | BA8: Madame Pookie | BB8: MADAME POOKIE44296 | BC8: 43.08717 | BD8: -0.9063766 | BE8: 0 | BF8: 7 | BG8: 9.477580046 | BH8: 7.6 | BI8: 7.6 | BJ8: 33 | BK8: 12.5 | BL8: 12.5 | BM8: 24 | BN8: =IF(BA8<>"",COUNTIFS(MyBets!B$2:B$1000,A8,MyBets!F$2:F$1000,"L",MyBets!E$2:E$1000,"U"),"") -> 0 | BO8: =IF(A8<>"",SUMIFS(MyBets!$D$2:$D$1000,MyBets!$B$2:$B$1000,A8,MyBets!$E$2:$E$1000,"U",MyBets!$F$2:$F$1000,"L"),"") -> 0 | BP8: =IF(A8<>"",SUMIFS(MyBets!$C$2:$C$1000,MyBets!$B$2:$B$1000,A8,MyBets!$E$2:$E$1000,"U",MyBets!$F$2:$F$1000,"L"),"") -> 0 | BQ8: =IF(A8<>"",SUMIFS(MyBets!$A$2:$A$1000,MyBets!$B$2:$B$1000,A8,MyBets!$E$2:$E$1000,"U",MyBets!$F$2:$F$1000,"L"),"") -> 0 | BR8: =IF(A8<>"",SUMIFS(MyBets!$C$2:$C$1000,MyBets!$B$2:$B$1000,A8,MyBets!$E$2:$E$1000,"F",MyBets!$F$2:$F$1000,"L"),"") -> 0 | BS8: =IF(A8<>"",SUMIFS(MyBets!$I$2:$I$1000,MyBets!$B$2:$B$1000,A8,MyBets!$E$2:$E$1000,"F",MyBets!$F$2:$F$1000,"L"),"") -> 0 | BU8: 0 | BV8: =IF(BA8<>"",COUNTIFS(MyBets!B$2:B$1000,A8,MyBets!F$2:F$1000,"B",MyBets!E$2:E$1000,"U"),"") -> 0 | BW8: =IF(A8<>"",SUMIFS(MyBets!$D$2:$D$1000,MyBets!$B$2:$B$1000,A8,MyBets!$E$2:$E$1000,"U",MyBets!$F$2:$F$1000,"B"),"") -> 0 | BX8: =IF(A8<>"",SUMIFS(MyBets!$C$2:$C$1000,MyBets!$B$2:$B$1000,A8,MyBets!$E$2:$E$1000,"U",MyBets!$F$2:$F$1000,"B"),"") -> 0 | BY8: =IF(A8<>"",SUMIFS(MyBets!$A$2:$A$1000,MyBets!$B$2:$B$1000,A8,MyBets!$E$2:$E$1000,"U",MyBets!$F$2:$F$1000,"B"),"") -> 0 | BZ8: =IF(A8<>"",SUMIFS(MyBets!$C$2:$C$1000,MyBets!$B$2:$B$1000,A8,MyBets!$E$2:$E$1000,"F",MyBets!$F$2:$F$1000,"B"),"") -> 0 | CA8: =IF(A8<>"",SUMIFS(MyBets!$G$2:$G$1000,MyBets!$B$2:$B$1000,A8,MyBets!$E$2:$E$1000,"F",MyBets!$F$2:$F$1000,"B"),"") -> 0 | CJ8: 7 | CK8: 1.945910149 | CL8: 41.32344258 | CM8: 8.841848793e+17 | CN8: 0.1055121661 | CO8: 9.477580046 | CP8: 0 | CQ8: 0.1055121661 | CR8: 9.477580046 | CS8: 0.1063829787 | CT8: 0.1 | CU8: 7 | CV8: 4 | CW8: 0 | CY8: 0 | DA8: 9.6 | DB8: 9.8 | DC8: 7.771615638 | DD8: 12.41369745 | DE8: 7.6 | DF8: 12.5 | DG8: 100 | DH8: 7.6 | DI8: 1473.047915 | DJ8: 33 | DK8: 12.5 | DL8: 12.5 | DM8: 1178.438332 | DN8: 24
A9: 6. Six And Out | B9: 6.6 | C9: 17 | D9: 7.4 | E9: 61 | F9: 7.8 | G9: 6 | H9: 15.5 | I9: 6 | J9: 16.5 | K9: 5 | L9: 19 | M9: 10 | N9: 0 | O9: 0 | P9: 0 | V9: 0 | W9: 0 | X9: 0 | Y9: 9.15 | Z9: 0 | AA9: 0 | BA9: Six And Out | BB9: SIX AND OUT44296 | BC9: 43.08574 | BD9: -0.9063766 | BE9: 0 | BF9: 6.5 | BG9: 8.874564666 | BH9: 7.2 | BI9: 7.2 | BJ9: 35 | BK9: 12 | BL9: 15.5 | BM9: 20 | BN9: =IF(BA9<>"",COUNTIFS(MyBets!B$2:B$1000,A9,MyBets!F$2:F$1000,"L",MyBets!E$2:E$1000,"U"),"") -> 0 | BO9: =IF(A9<>"",SUMIFS(MyBets!$D$2:$D$1000,MyBets!$B$2:$B$1000,A9,MyBets!$E$2:$E$1000,"U",MyBets!$F$2:$F$1000,"L"),"") -> 0 | BP9: =IF(A9<>"",SUMIFS(MyBets!$C$2:$C$1000,MyBets!$B$2:$B$1000,A9,MyBets!$E$2:$E$1000,"U",MyBets!$F$2:$F$1000,"L"),"") -> 0 | BQ9: =IF(A9<>"",SUMIFS(MyBets!$A$2:$A$1000,MyBets!$B$2:$B$1000,A9,MyBets!$E$2:$E$1000,"U",MyBets!$F$2:$F$1000,"L"),"") -> 0 | BR9: =IF(A9<>"",SUMIFS(MyBets!$C$2:$C$1000,MyBets!$B$2:$B$1000,A9,MyBets!$E$2:$E$1000,"F",MyBets!$F$2:$F$1000,"L"),"") -> 0 | BS9: =IF(A9<>"",SUMIFS(MyBets!$I$2:$I$1000,MyBets!$B$2:$B$1000,A9,MyBets!$E$2:$E$1000,"F",MyBets!$F$2:$F$1000,"L"),"") -> 0 | BU9: 0 | BV9: =IF(BA9<>"",COUNTIFS(MyBets!B$2:B$1000,A9,MyBets!F$2:F$1000,"B",MyBets!E$2:E$1000,"U"),"") -> 0 | BW9: =IF(A9<>"",SUMIFS(MyBets!$D$2:$D$1000,MyBets!$B$2:$B$1000,A9,MyBets!$E$2:$E$1000,"U",MyBets!$F$2:$F$1000,"B"),"") -> 0 | BX9: =IF(A9<>"",SUMIFS(MyBets!$C$2:$C$1000,MyBets!$B$2:$B$1000,A9,MyBets!$E$2:$E$1000,"U",MyBets!$F$2:$F$1000,"B"),"") -> 0 | BY9: =IF(A9<>"",SUMIFS(MyBets!$A$2:$A$1000,MyBets!$B$2:$B$1000,A9,MyBets!$E$2:$E$1000,"U",MyBets!$F$2:$F$1000,"B"),"") -> 0 | BZ9: =IF(A9<>"",SUMIFS(MyBets!$C$2:$C$1000,MyBets!$B$2:$B$1000,A9,MyBets!$E$2:$E$1000,"F",MyBets!$F$2:$F$1000,"B"),"") -> 0 | CA9: =IF(A9<>"",SUMIFS(MyBets!$G$2:$G$1000,MyBets!$B$2:$B$1000,A9,MyBets!$E$2:$E$1000,"F",MyBets!$F$2:$F$1000,"B"),"") -> 0 | CJ9: 6.5 | CK9: 1.871802177 | CL9: 41.38918231 | CM9: 9.442641171e+17 | CN9: 0.1126815836 | CO9: 8.874564666 | CP9: 0 | CQ9: 0.1126815836 | CR9: 8.874564666 | CS9: 0.1282051282 | CT9: 0.06451612903 | CU9: 2 | CV9: 2 | CW9: 0 | CY9: 0 | DA9: 8 | DB9: 15 | DC9: 7.277143026 | DD9: 11.53253298 | DE9: 7.2 | DF9: 12 | DG9: 95 | DH9: 7.2 | DI9: 1473.047915 | DJ9: 35 | DK9: 12 | DL9: 15.5 | DM9: 1178.438332 | DN9: 20
A10: 7. Walk On Bye | B10: 1.95 | C10: 409 | D10: 2.04 | E10: 377 | F10: 2.06 | G10: 7 | H10: 2.6 | I10: 9 | J10: 2.62 | K10: 8 | L10: 2.7 | M10: 5 | N10: 0 | O10: 2.06 | P10: 43.59 | V10: 0 | W10: 0 | X10: 0 | Y10: 2.39 | Z10: 2.32 | AA10: 0 | BA10: Walk On Bye | BB10: WALK ON BYE44296 | BC10: 43.24665 | BD10: -0.9063766 | BE10: 0 | BF10: 2 | BG10: 2.596005647 | BH10: 2.12 | BI10: 2.06 | BJ10: 120 | BK10: 2.92 | BL10: 2.92 | BM10: 101 | BN10: =IF(BA10<>"",COUNTIFS(MyBets!B$2:B$1000,A10,MyBets!F$2:F$1000,"L",MyBets!E$2:E$1000,"U"),"") -> 0 | BO10: =IF(A10<>"",SUMIFS(MyBets!$D$2:$D$1000,MyBets!$B$2:$B$1000,A10,MyBets!$E$2:$E$1000,"U",MyBets!$F$2:$F$1000,"L"),"") -> 0 | BP10: =IF(A10<>"",SUMIFS(MyBets!$C$2:$C$1000,MyBets!$B$2:$B$1000,A10,MyBets!$E$2:$E$1000,"U",MyBets!$F$2:$F$1000,"L"),"") -> 0 | BQ10: =IF(A10<>"",SUMIFS(MyBets!$A$2:$A$1000,MyBets!$B$2:$B$1000,A10,MyBets!$E$2:$E$1000,"U",MyBets!$F$2:$F$1000,"L"),"") -> 0 | BR10: =IF(A10<>"",SUMIFS(MyBets!$C$2:$C$1000,MyBets!$B$2:$B$1000,A10,MyBets!$E$2:$E$1000,"F",MyBets!$F$2:$F$1000,"L"),"") -> 0 | BS10: =IF(A10<>"",SUMIFS(MyBets!$I$2:$I$1000,MyBets!$B$2:$B$1000,A10,MyBets!$E$2:$E$1000,"F",MyBets!$F$2:$F$1000,"L"),"") -> 0 | BU10: 0 | BV10: =IF(BA10<>"",COUNTIFS(MyBets!B$2:B$1000,A10,MyBets!F$2:F$1000,"B",MyBets!E$2:E$1000,"U"),"") -> 0 | BW10: =IF(A10<>"",SUMIFS(MyBets!$D$2:$D$1000,MyBets!$B$2:$B$1000,A10,MyBets!$E$2:$E$1000,"U",MyBets!$F$2:$F$1000,"B"),"") -> 0 | BX10: =IF(A10<>"",SUMIFS(MyBets!$C$2:$C$1000,MyBets!$B$2:$B$1000,A10,MyBets!$E$2:$E$1000,"U",MyBets!$F$2:$F$1000,"B"),"") -> 0 | BY10: =IF(A10<>"",SUMIFS(MyBets!$A$2:$A$1000,MyBets!$B$2:$B$1000,A10,MyBets!$E$2:$E$1000,"U",MyBets!$F$2:$F$1000,"B"),"") -> 0 | BZ10: =IF(A10<>"",SUMIFS(MyBets!$C$2:$C$1000,MyBets!$B$2:$B$1000,A10,MyBets!$E$2:$E$1000,"F",MyBets!$F$2:$F$1000,"B"),"") -> 0 | CA10: =IF(A10<>"",SUMIFS(MyBets!$G$2:$G$1000,MyBets!$B$2:$B$1000,A10,MyBets!$E$2:$E$1000,"F",MyBets!$F$2:$F$1000,"B"),"") -> 0 | CJ10: 2 | CK10: 0.6931471806 | CL10: 42.61839762 | CM10: 3.2280103e+18 | CN10: 0.3852071743 | CO10: 2.596005647 | CP10: 0 | CQ10: 0.3852071743 | CR10: 2.596005647 | CS10: 0.4854368932 | CT10: 0.3846153846 | CU10: 1 | CV10: 1 | CW10: 0 | CY10: 0 | DA10: 2.08 | DB10: 2.58 | DC10: 2.128724631 | DD10: 2.91086664 | DE10: 2.12 | DF10: 2.92 | DG10: 24 | DH10: 2.06 | DI10: 1473.047915 | DJ10: 120 | DK10: 2.92 | DL10: 2.92 | DM10: 1178.438332 | DN10: 101
A11: 8. Jaimandy Roy | B11: 4.8 | C11: 25 | D11: 5.2 | E11: 93 | F11: 5.3 | G11: 6 | H11: 11.5 | I11: 12 | J11: 14.5 | K11: 9 | L11: 16 | M11: 16 | N11: 0 | O11: 0 | P11: 0 | V11: 0 | W11: 0 | X11: 0 | Y11: 5.32 | Z11: 0 | AA11: 0 | BA11: Jaimandy Roy | BB11: JAIMANDY ROY44296 | BC11: 42.87246 | BD11: -0.9063766 | BE11: 0 | BF11: 5 | BG11: 8.65959931 | BH11: 7 | BI11: 5.3 | BJ11: 47 | BK11: 11.5 | BL11: 11.5 | BM11: 26 | BN11: =IF(BA11<>"",COUNTIFS(MyBets!B$2:B$1000,A11,MyBets!F$2:F$1000,"L",MyBets!E$2:E$1000,"U"),"") -> 0 | BO11: =IF(A11<>"",SUMIFS(MyBets!$D$2:$D$1000,MyBets!$B$2:$B$1000,A11,MyBets!$E$2:$E$1000,"U",MyBets!$F$2:$F$1000,"L"),"") -> 0 | BP11: =IF(A11<>"",SUMIFS(MyBets!$C$2:$C$1000,MyBets!$B$2:$B$1000,A11,MyBets!$E$2:$E$1000,"U",MyBets!$F$2:$F$1000,"L"),"") -> 0 | BQ11: =IF(A11<>"",SUMIFS(MyBets!$A$2:$A$1000,MyBets!$B$2:$B$1000,A11,MyBets!$E$2:$E$1000,"U",MyBets!$F$2:$F$1000,"L"),"") -> 0 | BR11: =IF(A11<>"",SUMIFS(MyBets!$C$2:$C$1000,MyBets!$B$2:$B$1000,A11,MyBets!$E$2:$E$1000,"F",MyBets!$F$2:$F$1000,"L"),"") -> 0 | BS11: =IF(A11<>"",SUMIFS(MyBets!$I$2:$I$1000,MyBets!$B$2:$B$1000,A11,MyBets!$E$2:$E$1000,"F",MyBets!$F$2:$F$1000,"L"),"") -> 0 | BU11: 0 | BV11: =IF(BA11<>"",COUNTIFS(MyBets!B$2:B$1000,A11,MyBets!F$2:F$1000,"B",MyBets!E$2:E$1000,"U"),"") -> 0 | BW11: =IF(A11<>"",SUMIFS(MyBets!$D$2:$D$1000,MyBets!$B$2:$B$1000,A11,MyBets!$E$2:$E$1000,"U",MyBets!$F$2:$F$1000,"B"),"") -> 0 | BX11: =IF(A11<>"",SUMIFS(MyBets!$C$2:$C$1000,MyBets!$B$2:$B$1000,A11,MyBets!$E$2:$E$1000,"U",MyBets!$F$2:$F$1000,"B"),"") -> 0 | BY11: =IF(A11<>"",SUMIFS(MyBets!$A$2:$A$1000,MyBets!$B$2:$B$1000,A11,MyBets!$E$2:$E$1000,"U",MyBets!$F$2:$F$1000,"B"),"") -> 0 | BZ11: =IF(A11<>"",SUMIFS(MyBets!$C$2:$C$1000,MyBets!$B$2:$B$1000,A11,MyBets!$E$2:$E$1000,"F",MyBets!$F$2:$F$1000,"B"),"") -> 0 | CA11: =IF(A11<>"",SUMIFS(MyBets!$G$2:$G$1000,MyBets!$B$2:$B$1000,A11,MyBets!$E$2:$E$1000,"F",MyBets!$F$2:$F$1000,"B"),"") -> 0 | CJ11: 5 | CK11: 1.609437912 | CL11: 41.41370314 | CM11: 9.67704471e+17 | CN11: 0.1154787842 | CO11: 8.65959931 | CP11: 0 | CQ11: 0.1154787842 | CR11: 8.65959931 | CS11: 0.1886792453 | CT11: 0.08695652174 | CU11: 1 | CV11: 6 | CW11: 0 | CY11: 0 | DA11: 5.4 | DB11: 11 | DC11: 7.100871434 | DD11: 11.2201208 | DE11: 7 | DF11: 11.5 | DG11: 90 | DH11: 5.3 | DI11: 1473.047915 | DJ11: 47 | DK11: 11.5 | DL11: 11.5 | DM11: 1178.438332 | DN11: 26
BN12: =IF(BA12<>"",COUNTIFS(MyBets!B$2:B$1000,A12,MyBets!F$2:F$1000,"L",MyBets!E$2:E$1000,"U"),"") ->  | BO12: =IF(A12<>"",SUMIFS(MyBets!$D$2:$D$1000,MyBets!$B$2:$B$1000,A12,MyBets!$E$2:$E$1000,"U",MyBets!$F$2:$F$1000,"L"),"") ->  | BP12: =IF(A12<>"",SUMIFS(MyBets!$C$2:$C$1000,MyBets!$B$2:$B$1000,A12,MyBets!$E$2:$E$1000,"U",MyBets!$F$2:$F$1000,"L"),"") ->  | BQ12: =IF(A12<>"",SUMIFS(MyBets!$A$2:$A$1000,MyBets!$B$2:$B$1000,A12,MyBets!$E$2:$E$1000,"U",MyBets!$F$2:$F$1000,"L"),"") ->  | BR12: =IF(A12<>"",SUMIFS(MyBets!$C$2:$C$1000,MyBets!$B$2:$B$1000,A12,MyBets!$E$2:$E$1000,"F",MyBets!$F$2:$F$1000,"L"),"") ->  | BS12: =IF(A12<>"",SUMIFS(MyBets!$I$2:$I$1000,MyBets!$B$2:$B$1000,A12,MyBets!$E$2:$E$1000,"F",MyBets!$F$2:$F$1000,"L"),"") ->  | BV12: =IF(BA12<>"",COUNTIFS(MyBets!B$2:B$1000,A12,MyBets!F$2:F$1000,"B",MyBets!E$2:E$1000,"U"),"") ->  | BW12: =IF(A12<>"",SUMIFS(MyBets!$D$2:$D$1000,MyBets!$B$2:$B$1000,A12,MyBets!$E$2:$E$1000,"U",MyBets!$F$2:$F$1000,"B"),"") ->  | BX12: =IF(A12<>"",SUMIFS(MyBets!$C$2:$C$1000,MyBets!$B$2:$B$1000,A12,MyBets!$E$2:$E$1000,"U",MyBets!$F$2:$F$1000,"B"),"") ->  | BY12: =IF(A12<>"",SUMIFS(MyBets!$A$2:$A$1000,MyBets!$B$2:$B$1000,A12,MyBets!$E$2:$E$1000,"U",MyBets!$F$2:$F$1000,"B"),"") ->  | BZ12: =IF(A12<>"",SUMIFS(MyBets!$C$2:$C$1000,MyBets!$B$2:$B$1000,A12,MyBets!$E$2:$E$1000,"F",MyBets!$F$2:$F$1000,"B"),"") ->  | CA12: =IF(A12<>"",SUMIFS(MyBets!$G$2:$G$1000,MyBets!$B$2:$B$1000,A12,MyBets!$E$2:$E$1000,"F",MyBets!$F$2:$F$1000,"B"),"") -> 

Sheet MyBets
A1: Ref | B1: Selection | C1: Stake | D1: Odds | E1: Matched | F1: Type | G1: back_pot | H1: lay_pot | I1: lay_lia | J1: recorded
G2: =IF(A2>0,IF(F2="B",C2*D2,""),"") ->  | H2: =IF(A2>0,IF(F2="L",C2,""),"") ->  | I2: =IF(A2>0,IF(F2="L",C2*(D2-1),""),"") ->  | J2: =IFERROR(VLOOKUP(A2,bet_log!A:A,1,FALSE),"") -> 
G3: =IF(A3>0,IF(F3="B",C3*D3,""),"") ->  | H3: =IF(A3>0,IF(F3="L",C3,""),"") ->  | I3: =IF(A3>0,IF(F3="L",C3*(D3-1),""),"") ->  | J3: =IFERROR(VLOOKUP(A3,bet_log!A:A,1,FALSE),"") -> 
J4: =IFERROR(VLOOKUP(A4,bet_log!A:A,1,FALSE),"") -> 
J5: =IFERROR(VLOOKUP(A5,bet_log!A:A,1,FALSE),"") -> 
J6: =IFERROR(VLOOKUP(A6,bet_log!A:A,1,FALSE),"") -> 
J7: =IFERROR(VLOOKUP(A7,bet_log!A:A,1,FALSE),"") -> 
J8: =IFERROR(VLOOKUP(A8,bet_log!A:A,1,FALSE),"") -> 
J9: =IFERROR(VLOOKUP(A9,bet_log!A:A,1,FALSE),"") -> 
J10: =IFERROR(VLOOKUP(A10,bet_log!A:A,1,FALSE),"") -> 
J11: =IFERROR(VLOOKUP(A11,bet_log!A:A,1,FALSE),"") -> 
J12: =IFERROR(VLOOKUP(A12,bet_log!A:A,1,FALSE),"") -> 
J13: =IFERROR(VLOOKUP(A13,bet_log!A:A,1,FALSE),"") -> 
J14: =IFERROR(VLOOKUP(A14,bet_log!A:A,1,FALSE),"") -> 
J15: =IFERROR(VLOOKUP(A15,bet_log!A:A,1,FALSE),"") -> 
J16: =IFERROR(VLOOKUP(A16,bet_log!A:A,1,FALSE),"") -> 
J17: =IFERROR(VLOOKUP(A17,bet_log!A:A,1,FALSE),"") -> 
J18: =IFERROR(VLOOKUP(A18,bet_log!A:A,1,FALSE),"") -> 
J19: =IFERROR(VLOOKUP(A19,bet_log!A:A,1,FALSE),"") -> 
J20: =IFERROR(VLOOKUP(A20,bet_log!A:A,1,FALSE),"") -> 
J21: =IFERROR(VLOOKUP(A21,bet_log!A:A,1,FALSE),"") -> 
J22: =IFERROR(VLOOKUP(A22,bet_log!A:A,1,FALSE),"") -> 
J23: =IFERROR(VLOOKUP(A23,bet_log!A:A,1,FALSE),"") -> 
J24: =IFERROR(VLOOKUP(A24,bet_log!A:A,1,FALSE),"") -> 
J25: =IFERROR(VLOOKUP(A25,bet_log!A:A,1,FALSE),"") -> 
J26: =IFERROR(VLOOKUP(A26,bet_log!A:A,1,FALSE),"") -> 
J27: =IFERROR(VLOOKUP(A27,bet_log!A:A,1,FALSE),"") -> 
J28: =IFERROR(VLOOKUP(A28,bet_log!A:A,1,FALSE),"") -> 
J29: =IFERROR(VLOOKUP(A29,bet_log!A:A,1,FALSE),"") -> 
J30: =IFERROR(VLOOKUP(A30,bet_log!A:A,1,FALSE),"") -> 
J31: =IFERROR(VLOOKUP(A31,bet_log!A:A,1,FALSE),"") -> 
J32: =IFERROR(VLOOKUP(A32,bet_log!A:A,1,FALSE),"") -> 
J33: =IFERROR(VLOOKUP(A33,bet_log!A:A,1,FALSE),"") -> 
J34: =IFERROR(VLOOKUP(A34,bet_log!A:A,1,FALSE),"") -> 
J35: =IFERROR(VLOOKUP(A35,bet_log!A:A,1,FALSE),"") -> 
J36: =IFERROR(VLOOKUP(A36,bet_log!A:A,1,FALSE),"") -> 
J37: =IFERROR(VLOOKUP(A37,bet_log!A:A,1,FALSE),"") -> 
J38: =IFERROR(VLOOKUP(A38,bet_log!A:A,1,FALSE),"") -> 
J39: =IFERROR(VLOOKUP(A39,bet_log!A:A,1,FALSE),"") -> 
J40: =IFERROR(VLOOKUP(A40,bet_log!A:A,1,FALSE),"") -> 
J41: =IFERROR(VLOOKUP(A41,bet_log!A:A,1,FALSE),"") -> 
J42: =IFERROR(VLOOKUP(A42,bet_log!A:A,1,FALSE),"") -> 
J43: =IFERROR(VLOOKUP(A43,bet_log!A:A,1,FALSE),"") -> 
J44: =IFERROR(VLOOKUP(A44,bet_log!A:A,1,FALSE),"") -> 
J45: =IFERROR(VLOOKUP(A45,bet_log!A:A,1,FALSE),"") -> 
J46: =IFERROR(VLOOKUP(A46,bet_log!A:A,1,FALSE),"") -> 
J47: =IFERROR(VLOOKUP(A47,bet_log!A:A,1,FALSE),"") -> 
J48: =IFERROR(VLOOKUP(A48,bet_log!A:A,1,FALSE),"") -> 
J49: =IFERROR(VLOOKUP(A49,bet_log!A:A,1,FALSE),"") -> 
J50: =IFERROR(VLOOKUP(A50,bet_log!A:A,1,FALSE),"") -> 
J51: =IFERROR(VLOOKUP(A51,bet_log!A:A,1,FALSE),"") -> 
J52: =IFERROR(VLOOKUP(A52,bet_log!A:A,1,FALSE),"") -> 
J53: =IFERROR(VLOOKUP(A53,bet_log!A:A,1,FALSE),"") -> 
J54: =IFERROR(VLOOKUP(A54,bet_log!A:A,1,FALSE),"") -> 
J55: =IFERROR(VLOOKUP(A55,bet_log!A:A,1,FALSE),"") -> 
J56: =IFERROR(VLOOKUP(A56,bet_log!A:A,1,FALSE),"") -> 
J57: =IFERROR(VLOOKUP(A57,bet_log!A:A,1,FALSE),"") -> 
J58: =IFERROR(VLOOKUP(A58,bet_log!A:A,1,FALSE),"") -> 
J59: =IFERROR(VLOOKUP(A59,bet_log!A:A,1,FALSE),"") -> 
J60: =IFERROR(VLOOKUP(A60,bet_log!A:A,1,FALSE),"") -> 
J61: =IFERROR(VLOOKUP(A61,bet_log!A:A,1,FALSE),"") -> 
J62: =IFERROR(VLOOKUP(A62,bet_log!A:A,1,FALSE),"") -> 
J63: =IFERROR(VLOOKUP(A63,bet_log!A:A,1,FALSE),"") -> 
J64: =IFERROR(VLOOKUP(A64,bet_log!A:A,1,FALSE),"") -> 
J65: =IFERROR(VLOOKUP(A65,bet_log!A:A,1,FALSE),"") -> 
J66: =IFERROR(VLOOKUP(A66,bet_log!A:A,1,FALSE),"") -> 
G67: =IF(A67>0,IF(F67="B",C67*D67,""),"") ->  | H67: =IF(A67>0,IF(F67="L",C67,""),"") ->  | I67: =IF(A67>0,IF(F67="L",C67*(D67-1),""),"") ->  | J67: =IFERROR(VLOOKUP(A67,bet_log!A:A,1,FALSE),"") -> 
J68: =IFERROR(VLOOKUP(A68,bet_log!A:A,1,FALSE),"") -> 
J69: =IFERROR(VLOOKUP(A69,bet_log!A:A,1,FALSE),"") -> 
J70: =IFERROR(VLOOKUP(A70,bet_log!A:A,1,FALSE),"") -> 
J71: =IFERROR(VLOOKUP(A71,bet_log!A:A,1,FALSE),"") -> 
J72: =IFERROR(VLOOKUP(A72,bet_log!A:A,1,FALSE),"") -> 
J73: =IFERROR(VLOOKUP(A73,bet_log!A:A,1,FALSE),"") -> 
J74: =IFERROR(VLOOKUP(A74,bet_log!A:A,1,FALSE),"") -> 
J75: =IFERROR(VLOOKUP(A75,bet_log!A:A,1,FALSE),"") -> 
J76: =IFERROR(VLOOKUP(A76,bet_log!A:A,1,FALSE),"") -> 
J77: =IFERROR(VLOOKUP(A77,bet_log!A:A,1,FALSE),"") -> 
J78: =IFERROR(VLOOKUP(A78,bet_log!A:A,1,FALSE),"") -> 
J79: =IFERROR(VLOOKUP(A79,bet_log!A:A,1,FALSE),"") -> 
J80: =IFERROR(VLOOKUP(A80,bet_log!A:A,1,FALSE),"") -> 
J81: =IFERROR(VLOOKUP(A81,bet_log!A:A,1,FALSE),"") -> 
J82: =IFERROR(VLOOKUP(A82,bet_log!A:A,1,FALSE),"") -> 
J83: =IFERROR(VLOOKUP(A83,bet_log!A:A,1,FALSE),"") -> 
J84: =IFERROR(VLOOKUP(A84,bet_log!A:A,1,FALSE),"") -> 
J85: =IFERROR(VLOOKUP(A85,bet_log!A:A,1,FALSE),"") -> 
J86: =IFERROR(VLOOKUP(A86,bet_log!A:A,1,FALSE),"") -> 
J87: =IFERROR(VLOOKUP(A87,bet_log!A:A,1,FALSE),"") -> 
J88: =IFERROR(VLOOKUP(A88,bet_log!A:A,1,FALSE),"") -> 
J89: =IFERROR(VLOOKUP(A89,bet_log!A:A,1,FALSE),"") -> 
J90: =IFERROR(VLOOKUP(A90,bet_log!A:A,1,FALSE),"") -> 
J91: =IFERROR(VLOOKUP(A91,bet_log!A:A,1,FALSE),"") -> 
J92: =IFERROR(VLOOKUP(A92,bet_log!A:A,1,FALSE),"") -> 
J93: =IFERROR(VLOOKUP(A93,bet_log!A:A,1,FALSE),"") -> 
J94: =IFERROR(VLOOKUP(A94,bet_log!A:A,1,FALSE),"") -> 
J95: =IFERROR(VLOOKUP(A95,bet_log!A:A,1,FALSE),"") -> 
J96: =IFERROR(VLOOKUP(A96,bet_log!A:A,1,FALSE),"") -> 
J97: =IFERROR(VLOOKUP(A97,bet_log!A:A,1,FALSE),"") -> 
J98: =IFERROR(VLOOKUP(A98,bet_log!A:A,1,FALSE),"") -> 
J99: =IFERROR(VLOOKUP(A99,bet_log!A:A,1,FALSE),"") -> 
J100: =IFERROR(VLOOKUP(A100,bet_log!A:A,1,FALSE),"") -> 

Sheet Markets_QuickPickList
A1: Market | B1: Start Time | C1: Market Id | D1: Parent Market Id | E1: Turn In Play | F1: BSP Market | G1: Number Of Winners | H1: jur | I1: time | J1: location | K1: race | L1: distance | M1: grade | N1: key | O1: full location | P1: mnemonic
A2: 11:00 Town (AUS) 10th Apr (R10 380m Gr5) | B2: 2021-04-10T11:00:00 | C2: 181709354 | D2: 30413367 | E2: N | F2: Y | G2: 1 | H2: AUS | I2: 11:00:00 | J2: Town | K2: R10 | L2: 380m | M2: Gr5 | N2: Townsville R10 380m | O2: Townsville | P2: TWN
A3: 11:05 Shep (AUS) 10th Apr (R11 385m Gr5) | B3: 2021-04-10T11:05:00 | C3: 181705169 | D3: 30413036 | E3: N | F3: Y | G3: 1 | H3: AUS | I3: 11:05:00 | J3: Shep | K3: R11 | L3: 385m | M3: Gr5 | N3: Shepparton R11 385m | O3: Shepparton | P3: SHE
A4: 11:10 Rich (AUS) 10th Apr (R10 330m Rest) | B4: 2021-04-10T11:10:00 | C4: 181703117 | D4: 30412865 | E4: N | F4: Y | G4: 1 | H4: AUS | I4: 11:10:00 | J4: Rich | K4: R10 | L4: 330m | M4: Rest | N4: Richmond R10 330m | O4: Richmond | P4: RIC
A5: 11:15 Town (AUS) 10th Apr (R11 380m Gr5) | B5: 2021-04-10T11:15:00 | C5: 181709356 | D5: 30413367 | E5: N | F5: Y | G5: 1 | H5: AUS | I5: 11:15:00 | J5: Town | K5: R11 | L5: 380m | M5: Gr5 | N5: Townsville R11 380m | O5: Townsville | P5: TWN
A6: 11:20 Shep (AUS) 10th Apr (R12 385m Gr5) | B6: 2021-04-10T11:20:00 | C6: 181705171 | D6: 30413036 | E6: N | F6: Y | G6: 1 | H6: AUS | I6: 11:20:00 | J6: Shep | K6: R12 | L6: 385m | M6: Gr5 | N6: Shepparton R12 385m | O6: Shepparton | P6: SHE
A7: 17:27 Hshm (AUS) 10th Apr (R1 410m Mdn) | B7: 2021-04-10T17:27:00 | C7: 181711382 | D7: 30413490 | E7: N | F7: Y | G7: 1 | H7: AUS | I7: 17:27:00 | J7: Hshm | K7: R1 | L7: 410m | M7: Mdn | N7: Horsham R1 410m | O7: Horsham | P7: HOR
A8: 17:44 Gard (AUS) 10th Apr (R1 272m Mdn) | B8: 2021-04-10T17:44:00 | C8: 181707150 | D8: 30413123 | E8: N | F8: Y | G8: 1 | H8: AUS | I8: 17:44:00 | J8: Gard | K8: R1 | L8: 272m | M8: Mdn | N8: The Gardens R1 272m | O8: The Gardens | P8: GAR
A9: 17:49 Ipsw (AUS) 10th Apr (R1 431m Mdn) | B9: 2021-04-10T17:49:00 | C9: 181704753 | D9: 30412970 | E9: N | F9: Y | G9: 1 | H9: AUS | I9: 17:49:00 | J9: Ipsw | K9: R1 | L9: 431m | M9: Mdn | N9: Ipswich R1 431m | O9: Ipswich | P9: IPS
A10: 17:52 Hshm (AUS) 10th Apr (R2 410m Gr7) | B10: 2021-04-10T17:52:00 | C10: 181711384 | D10: 30413490 | E10: N | F10: Y | G10: 1 | H10: AUS | I10: 17:52:00 | J10: Hshm | K10: R2 | L10: 410m | M10: Gr7 | N10: Horsham R2 410m | O10: Horsham | P10: HOR
A11: 17:59 Gard (AUS) 10th Apr (R2 400m Mdn) | B11: 2021-04-10T17:59:00 | C11: 181707152 | D11: 30413123 | E11: N | F11: Y | G11: 1 | H11: AUS | I11: 17:59:00 | J11: Gard | K11: R2 | L11: 400m | M11: Mdn | N11: The Gardens R2 400m | O11: The Gardens | P11: GAR
A12: 18:04 Ipsw (AUS) 10th Apr (R2 520m Mdn) | B12: 2021-04-10T18:04:00 | C12: 181704755 | D12: 30412970 | E12: N | F12: Y | G12: 1 | H12: AUS | I12: 18:04:00 | J12: Ipsw | K12: R2 | L12: 520m | M12: Mdn | N12: Ipswich R2 520m | O12: Ipswich | P12: IPS
A13: 18:07 Hshm (AUS) 10th Apr (R3 410m Gr7) | B13: 2021-04-10T18:07:00 | C13: 181711386 | D13: 30413490 | E13: N | F13: Y | G13: 1 | H13: AUS | I13: 18:07:00 | J13: Hshm | K13: R3 | L13: 410m | M13: Gr7 | N13: Horsham R3 410m | O13: Horsham | P13: HOR
A14: 18:19 Gard (AUS) 10th Apr (R3 600m Gr5) | B14: 2021-04-10T18:19:00 | C14: 181707154 | D14: 30413123 | E14: N | F14: Y | G14: 1 | H14: AUS | I14: 18:19:00 | J14: Gard | K14: R3 | L14: 600m | M14: Gr5 | N14: The Gardens R3 600m | O14: The Gardens | P14: GAR
A15: 18:23 Ipsw (AUS) 10th Apr (R3 431m Nvce) | B15: 2021-04-10T18:23:00 | C15: 181704757 | D15: 30412970 | E15: N | F15: Y | G15: 1 | H15: AUS | I15: 18:23:00 | J15: Ipsw | K15: R3 | L15: 431m | M15: Nvce | N15: Ipswich R3 431m | O15: Ipswich | P15: IPS
A16: 18:27 WPrk (AUS) 10th Apr (R1 520m Gr5) | B16: 2021-04-10T18:27:00 | C16: 181704899 | D16: 30412982 | E16: N | F16: Y | G16: 1 | H16: AUS | I16: 18:27:00 | J16: WPrk | K16: R1 | L16: 520m | M16: Gr5 | N16: Wentworth Park R1 520m | O16: Wentworth Park | P16: WWP
A17: 18:29 Hshm (AUS) 10th Apr (R4 485m Heat) | B17: 2021-04-10T18:29:00 | C17: 181711388 | D17: 30413490 | E17: N | F17: Y | G17: 1 | H17: AUS | I17: 18:29:00 | J17: Hshm | K17: R4 | L17: 485m | M17: Heat | N17: Horsham R4 485m | O17: Horsham | P17: HOR
A18: 18:34 Gard (AUS) 10th Apr (R4 272m Gr5) | B18: 2021-04-10T18:34:00 | C18: 181707156 | D18: 30413123 | E18: N | F18: Y | G18: 1 | H18: AUS | I18: 18:34:00 | J18: Gard | K18: R4 | L18: 272m | M18: Gr5 | N18: The Gardens R4 272m | O18: The Gardens | P18: GAR
A19: 18:39 Mead (AUS) 10th Apr (R1 525m Gr7) | B19: 2021-04-10T18:39:00 | C19: 181711406 | D19: 30413500 | E19: N | F19: Y | G19: 1 | H19: AUS | I19: 18:39:00 | J19: Mead | K19: R1 | L19: 525m | M19: Gr7 | N19: The Meadows R1 525m | O19: The Meadows | P19: MEA
A20: 18:42 Ipsw (AUS) 10th Apr (R4 520m Nvce) | B20: 2021-04-10T18:42:00 | C20: 181704759 | D20: 30412970 | E20: N | F20: Y | G20: 1 | H20: AUS | I20: 18:42:00 | J20: Ipsw | K20: R4 | L20: 520m | M20: Nvce | N20: Ipswich R4 520m | O20: Ipswich | P20: IPS
A21: 18:47 WPrk (AUS) 10th Apr (R2 520m Final) | B21: 2021-04-10T18:47:00 | C21: 181704901 | D21: 30412982 | E21: N | F21: Y | G21: 1 | H21: AUS | I21: 18:47:00 | J21: WPrk | K21: R2 | L21: 520m | M21: Final | N21: Wentworth Park R2 520m | O21: Wentworth Park | P21: WWP
A22: 18:54 Hshm (AUS) 10th Apr (R5 485m Rest) | B22: 2021-04-10T18:54:00 | C22: 181711390 | D22: 30413490 | E22: N | F22: Y | G22: 1 | H22: AUS | I22: 18:54:00 | J22: Hshm | K22: R5 | L22: 485m | M22: Rest | N22: Horsham R5 485m | O22: Horsham | P22: HOR
A23: 18:57 Gard (AUS) 10th Apr (R5 272m Gr5) | B23: 2021-04-10T18:57:00 | C23: 181707158 | D23: 30413123 | E23: N | F23: Y | G23: 1 | H23: AUS | I23: 18:57:00 | J23: Gard | K23: R5 | L23: 272m | M23: Gr5 | N23: The Gardens R5 272m | O23: The Gardens | P23: GAR
A24: 18:59 Mead (AUS) 10th Apr (R2 525m Gr6/7) | B24: 2021-04-10T18:59:00 | C24: 181711408 | D24: 30413500 | E24: N | F24: Y | G24: 1 | H24: AUS | I24: 18:59:00 | J24: Mead | K24: R2 | L24: 525m | M24: Gr6/7 | N24: The Meadows R2 525m | O24: The Meadows | P24: MEA
A25: 19:04 Ipsw (AUS) 10th Apr (R5 630m Rest) | B25: 2021-04-10T19:04:00 | C25: 181704761 | D25: 30412970 | E25: N | F25: Y | G25: 1 | H25: AUS | I25: 19:04:00 | J25: Ipsw | K25: R5 | L25: 630m | M25: Rest | N25: Ipswich R5 630m | O25: Ipswich | P25: IPS
A26: 19:07 WPrk (AUS) 10th Apr (R3 520m Gr5) | B26: 2021-04-10T19:07:00 | C26: 181704903 | D26: 30412982 | E26: N | F26: Y | G26: 1 | H26: AUS | I26: 19:07:00 | J26: WPrk | K26: R3 | L26: 520m | M26: Gr5 | N26: Wentworth Park R3 520m | O26: Wentworth Park | P26: WWP
A27: 19:10 Hshm (AUS) 10th Apr (R6 410m Gr4/5) | B27: 2021-04-10T19:10:00 | C27: 181711392 | D27: 30413490 | E27: N | F27: Y | G27: 1 | H27: AUS | I27: 19:10:00 | J27: Hshm | K27: R6 | L27: 410m | M27: Gr4/5 | N27: Horsham R6 410m | O27: Horsham | P27: HOR
A28: 19:13 Gard (AUS) 10th Apr (R6 400m Gr4/5) | B28: 2021-04-10T19:13:00 | C28: 181707160 | D28: 30413123 | E28: N | F28: Y | G28: 1 | H28: AUS | I28: 19:13:00 | J28: Gard | K28: R6 | L28: 400m | M28: Gr4/5 | N28: The Gardens R6 400m | O28: The Gardens | P28: GAR
A29: 19:16 Dubb (AUS) 10th Apr (R1 318m Mdn) | B29: 2021-04-10T19:16:00 | C29: 181703119 | D29: 30412866 | E29: N | F29: Y | G29: 1 | H29: AUS | I29: 19:16:00 | J29: Dubb | K29: R1 | L29: 318m | M29: Mdn | N29: Dubbo R1 318m | O29: Dubbo | P29: DBO
A30: 19:18 Mead (AUS) 10th Apr (R3 525m Gr5) | B30: 2021-04-10T19:18:00 | C30: 181711410 | D30: 30413500 | E30: N | F30: Y | G30: 1 | H30: AUS | I30: 19:18:00 | J30: Mead | K30: R3 | L30: 525m | M30: Gr5 | N30: The Meadows R3 525m | O30: The Meadows | P30: MEA
A31: 19:22 Ipsw (AUS) 10th Apr (R6 520m Semi) | B31: 2021-04-10T19:22:00 | C31: 181704763 | D31: 30412970 | E31: N | F31: Y | G31: 1 | H31: AUS | I31: 19:22:00 | J31: Ipsw | K31: R6 | L31: 520m | M31: Semi | N31: Ipswich R6 520m | O31: Ipswich | P31: IPS
A32: 19:25 Hshm (AUS) 10th Apr (R7 410m Gr5) | B32: 2021-04-10T19:25:00 | C32: 181711394 | D32: 30413490 | E32: N | F32: Y | G32: 1 | H32: AUS | I32: 19:25:00 | J32: Hshm | K32: R7 | L32: 410m | M32: Gr5 | N32: Horsham R7 410m | O32: Horsham | P32: HOR
A33: 19:28 WPrk (AUS) 10th Apr (R4 520m Gr4/5) | B33: 2021-04-10T19:28:00 | C33: 181704905 | D33: 30412982 | E33: N | F33: Y | G33: 1 | H33: AUS | I33: 19:28:00 | J33: WPrk | K33: R4 | L33: 520m | M33: Gr4/5 | N33: Wentworth Park R4 520m | O33: Wentworth Park | P33: WWP
A34: 19:31 Gard (AUS) 10th Apr (R7 400m Gr5) | B34: 2021-04-10T19:31:00 | C34: 181707162 | D34: 30413123 | E34: N | F34: Y | G34: 1 | H34: AUS | I34: 19:31:00 | J34: Gard | K34: R7 | L34: 400m | M34: Gr5 | N34: The Gardens R7 400m | O34: The Gardens | P34: GAR
A35: 19:34 Dubb (AUS) 10th Apr (R2 318m N/G) | B35: 2021-04-10T19:34:00 | C35: 181703121 | D35: 30412866 | E35: N | F35: Y | G35: 1 | H35: AUS | I35: 19:34:00 | J35: Dubb | K35: R2 | L35: 318m | M35: N/G | N35: Dubbo R2 318m | O35: Dubbo | P35: DBO
A36: 19:39 Mead (AUS) 10th Apr (R4 525m FFA) | B36: 2021-04-10T19:39:00 | C36: 181711412 | D36: 30413500 | E36: N | F36: Y | G36: 1 | H36: AUS | I36: 19:39:00 | J36: Mead | K36: R4 | L36: 525m | M36: FFA | N36: The Meadows R4 525m | O36: The Meadows | P36: MEA
A37: 19:42 Ipsw (AUS) 10th Apr (R7 520m Semi) | B37: 2021-04-10T19:42:00 | C37: 181704765 | D37: 30412970 | E37: N | F37: Y | G37: 1 | H37: AUS | I37: 19:42:00 | J37: Ipsw | K37: R7 | L37: 520m | M37: Semi | N37: Ipswich R7 520m | O37: Ipswich | P37: IPS
A38: 19:47 WPrk (AUS) 10th Apr (R5 520m Grp3) | B38: 2021-04-10T19:47:00 | C38: 181704907 | D38: 30412982 | E38: N | F38: Y | G38: 1 | H38: AUS | I38: 19:47:00 | J38: WPrk | K38: R5 | L38: 520m | M38: Grp3 | N38: Wentworth Park R5 520m | O38: Wentworth Park | P38: WWP
A39: 19:50 Hshm (AUS) 10th Apr (R8 485m Gr5) | B39: 2021-04-10T19:50:00 | C39: 181711396 | D39: 30413490 | E39: N | F39: Y | G39: 1 | H39: AUS | I39: 19:50:00 | J39: Hshm | K39: R8 | L39: 485m | M39: Gr5 | N39: Horsham R8 485m | O39: Horsham | P39: HOR
A40: 19:53 Gard (AUS) 10th Apr (R8 400m Gr5) | B40: 2021-04-10T19:53:00 | C40: 181707164 | D40: 30413123 | E40: N | F40: Y | G40: 1 | H40: AUS | I40: 19:53:00 | J40: Gard | K40: R8 | L40: 400m | M40: Gr5 | N40: The Gardens R8 400m | O40: The Gardens | P40: GAR
A41: 19:56 Dubb (AUS) 10th Apr (R3 318m Gr5) | B41: 2021-04-10T19:56:00 | C41: 181703123 | D41: 30412866 | E41: N | F41: Y | G41: 1 | H41: AUS | I41: 19:56:00 | J41: Dubb | K41: R3 | L41: 318m | M41: Gr5 | N41: Dubbo R3 318m | O41: Dubbo | P41: DBO
A42: 19:59 Mead (AUS) 10th Apr (R5 525m Final) | B42: 2021-04-10T19:59:00 | C42: 181711414 | D42: 30413500 | E42: N | F42: Y | G42: 1 | H42: AUS | I42: 19:59:00 | J42: Mead | K42: R5 | L42: 525m | M42: Final | N42: The Meadows R5 525m | O42: The Meadows | P42: MEA
A43: 20:03 Ipsw (AUS) 10th Apr (R8 520m Semi) | B43: 2021-04-10T20:03:00 | C43: 181704767 | D43: 30412970 | E43: N | F43: Y | G43: 1 | H43: AUS | I43: 20:03:00 | J43: Ipsw | K43: R8 | L43: 520m | M43: Semi | N43: Ipswich R8 520m | O43: Ipswich | P43: IPS
A44: 20:07 WPrk (AUS) 10th Apr (R6 720m Grp1) | B44: 2021-04-10T20:07:00 | C44: 181704909 | D44: 30412982 | E44: N | F44: Y | G44: 1 | H44: AUS | I44: 20:07:00 | J44: WPrk | K44: R6 | L44: 720m | M44: Grp1 | N44: Wentworth Park R6 720m | O44: Wentworth Park | P44: WWP
A45: 20:11 Hshm (AUS) 10th Apr (R9 485m Heat) | B45: 2021-04-10T20:11:00 | C45: 181711398 | D45: 30413490 | E45: N | F45: Y | G45: 1 | H45: AUS | I45: 20:11:00 | J45: Hshm | K45: R9 | L45: 485m | M45: Heat | N45: Horsham R9 485m | O45: Horsham | P45: HOR
A46: 20:14 Gard (AUS) 10th Apr (R9 400m Gr5) | B46: 2021-04-10T20:14:00 | C46: 181707166 | D46: 30413123 | E46: N | F46: Y | G46: 1 | H46: AUS | I46: 20:14:00 | J46: Gard | K46: R9 | L46: 400m | M46: Gr5 | N46: The Gardens R9 400m | O46: The Gardens | P46: GAR
A47: 20:18 Mead (AUS) 10th Apr (R6 525m Gr5) | B47: 2021-04-10T20:18:00 | C47: 181711416 | D47: 30413500 | E47: N | F47: Y | G47: 1 | H47: AUS | I47: 20:18:00 | J47: Mead | K47: R6 | L47: 525m | M47: Gr5 | N47: The Meadows R6 525m | O47: The Meadows | P47: MEA
A48: 20:20 Dubb (AUS) 10th Apr (R4 318m Gr5) | B48: 2021-04-10T20:20:00 | C48: 181703125 | D48: 30412866 | E48: N | F48: Y | G48: 1 | H48: AUS | I48: 20:20:00 | J48: Dubb | K48: R4 | L48: 318m | M48: Gr5 | N48: Dubbo R4 318m | O48: Dubbo | P48: DBO
A49: 20:27 Ipsw (AUS) 10th Apr (R9 520m Gr4/5) | B49: 2021-04-10T20:27:00 | C49: 181704769 | D49: 30412970 | E49: N | F49: Y | G49: 1 | H49: AUS | I49: 20:27:00 | J49: Ipsw | K49: R9 | L49: 520m | M49: Gr4/5 | N49: Ipswich R9 520m | O49: Ipswich | P49: IPS
A50: 20:31 WPrk (AUS) 10th Apr (R7 520m Grp3) | B50: 2021-04-10T20:31:00 | C50: 181704911 | D50: 30412982 | E50: N | F50: Y | G50: 1 | H50: AUS | I50: 20:31:00 | J50: WPrk | K50: R7 | L50: 520m | M50: Grp3 | N50: Wentworth Park R7 520m | O50: Wentworth Park | P50: WWP
A51: 20:34 Hshm (AUS) 10th Apr (R10 410m Gr6) | B51: 2021-04-10T20:34:00 | C51: 181711400 | D51: 30413490 | E51: N | F51: Y | G51: 1 | H51: AUS | I51: 20:34:00 | J51: Hshm | K51: R10 | L51: 410m | M51: Gr6 | N51: Horsham R10 410m | O51: Horsham | P51: HOR
A52: 20:37 Mead (AUS) 10th Apr (R7 525m Gr4) | B52: 2021-04-10T20:37:00 | C52: 181711418 | D52: 30413500 | E52: N | F52: Y | G52: 1 | H52: AUS | I52: 20:37:00 | J52: Mead | K52: R7 | L52: 525m | M52: Gr4 | N52: The Meadows R7 525m | O52: The Meadows | P52: MEA
A53: 20:41 Gard (AUS) 10th Apr (R10 515m Gr5) | B53: 2021-04-10T20:41:00 | C53: 181707168 | D53: 30413123 | E53: N | F53: Y | G53: 1 | H53: AUS | I53: 20:41:00 | J53: Gard | K53: R10 | L53: 515m | M53: Gr5 | N53: The Gardens R10 515m | O53: The Gardens | P53: GAR
A54: 20:44 Dubb (AUS) 10th Apr (R5 516m Gr5) | B54: 2021-04-10T20:44:00 | C54: 181703127 | D54: 30412866 | E54: N | F54: Y | G54: 1 | H54: AUS | I54: 20:44:00 | J54: Dubb | K54: R5 | L54: 516m | M54: Gr5 | N54: Dubbo R5 516m | O54: Dubbo | P54: DBO
A55: 20:47 Ipsw (AUS) 10th Apr (R10 431m Gr4/5) | B55: 2021-04-10T20:47:00 | C55: 181704771 | D55: 30412970 | E55: N | F55: Y | G55: 1 | H55: AUS | I55: 20:47:00 | J55: Ipsw | K55: R10 | L55: 431m | M55: Gr4/5 | N55: Ipswich R10 431m | O55: Ipswich | P55: IPS
A56: 20:50 Hshm (AUS) 10th Apr (R11 410m Rest) | B56: 2021-04-10T20:50:00 | C56: 181711402 | D56: 30413490 | E56: N | F56: Y | G56: 1 | H56: AUS | I56: 20:50:00 | J56: Hshm | K56: R11 | L56: 410m | M56: Rest | N56: Horsham R11 410m | O56: Horsham | P56: HOR
A57: 20:54 WPrk (AUS) 10th Apr (R8 520m Grp1) | B57: 2021-04-10T20:54:00 | C57: 181704913 | D57: 30412982 | E57: N | F57: Y | G57: 1 | H57: AUS | I57: 20:54:00 | J57: WPrk | K57: R8 | L57: 520m | M57: Grp1 | N57: Wentworth Park R8 520m | O57: Wentworth Park | P57: WWP
A58: 21:00 Gard (AUS) 10th Apr (R11 515m Gr4/5) | B58: 2021-04-10T21:00:00 | C58: 181707172 | D58: 30413123 | E58: N | F58: Y | G58: 1 | H58: AUS | I58: 21:00:00 | J58: Gard | K58: R11 | L58: 515m | M58: Gr4/5 | N58: The Gardens R11 515m | O58: The Gardens | P58: GAR
A59: 21:03 Mead (AUS) 10th Apr (R8 600m Gr4/5) | B59: 2021-04-10T21:03:00 | C59: 181711420 | D59: 30413500 | E59: N | F59: Y | G59: 1 | H59: AUS | I59: 21:03:00 | J59: Mead | K59: R8 | L59: 600m | M59: Gr4/5 | N59: The Meadows R8 600m | O59: The Meadows | P59: MEA
A60: 21:04 Dubb (AUS) 10th Apr (R6 400m Gr5) | B60: 2021-04-10T21:04:00 | C60: 181703129 | D60: 30412866 | E60: N | F60: Y | G60: 1 | H60: AUS | I60: 21:04:00 | J60: Dubb | K60: R6 | L60: 400m | M60: Gr5 | N60: Dubbo R6 400m | O60: Dubbo | P60: DBO
A61: 21:15 Hshm (AUS) 10th Apr (R12 410m Gr5) | B61: 2021-04-10T21:15:00 | C61: 181711404 | D61: 30413490 | E61: N | F61: Y | G61: 1 | H61: AUS | I61: 21:15:00 | J61: Hshm | K61: R12 | L61: 410m | M61: Gr5 | N61: Horsham R12 410m | O61: Horsham | P61: HOR
A62: 21:22 Mead (AUS) 10th Apr (R9 525m Gr5) | B62: 2021-04-10T21:22:00 | C62: 181711422 | D62: 30413500 | E62: N | F62: Y | G62: 1 | H62: AUS | I62: 21:22:00 | J62: Mead | K62: R9 | L62: 525m | M62: Gr5 | N62: The Meadows R9 525m | O62: The Meadows | P62: MEA
A63: 21:27 Dubb (AUS) 10th Apr (R7 400m Gr4/5) | B63: 2021-04-10T21:27:00 | C63: 181703131 | D63: 30412866 | E63: N | F63: Y | G63: 1 | H63: AUS | I63: 21:27:00 | J63: Dubb | K63: R7 | L63: 400m | M63: Gr4/5 | N63: Dubbo R7 400m | O63: Dubbo | P63: DBO
A64: 21:36 WPrk (AUS) 10th Apr (R9 520m Gr5) | B64: 2021-04-10T21:36:00 | C64: 181704915 | D64: 30412982 | E64: N | F64: Y | G64: 1 | H64: AUS | I64: 21:36:00 | J64: WPrk | K64: R9 | L64: 520m | M64: Gr5 | N64: Wentworth Park R9 520m | O64: Wentworth Park | P64: WWP
A65: 21:43 Mead (AUS) 10th Apr (R10 525m Gr5) | B65: 2021-04-10T21:43:00 | C65: 181711424 | D65: 30413500 | E65: N | F65: Y | G65: 1 | H65: AUS | I65: 21:43:00 | J65: Mead | K65: R10 | L65: 525m | M65: Gr5 | N65: The Meadows R10 525m | O65: The Meadows | P65: MEA
A66: 21:49 Dubb (AUS) 10th Apr (R8 318m Final) | B66: 2021-04-10T21:49:00 | C66: 181703133 | D66: 30412866 | E66: N | F66: Y | G66: 1 | H66: AUS | I66: 21:49:00 | J66: Dubb | K66: R8 | L66: 318m | M66: Final | N66: Dubbo R8 318m | O66: Dubbo | P66: DBO
A67: 22:00 WPrk (AUS) 10th Apr (R10 520m M1/2/3) | B67: 2021-04-10T22:00:00 | C67: 181704917 | D67: 30412982 | E67: N | F67: Y | G67: 1 | H67: AUS | I67: 22:00:00 | J67: WPrk | K67: R10 | L67: 520m | M67: M1/2/3 | N67: Wentworth Park R10 520m | O67: Wentworth Park | P67: WWP
A68: 22:07 Mead (AUS) 10th Apr (R11 525m Gr5) | B68: 2021-04-10T22:07:00 | C68: 181711426 | D68: 30413500 | E68: N | F68: Y | G68: 1 | H68: AUS | I68: 22:07:00 | J68: Mead | K68: R11 | L68: 525m | M68: Gr5 | N68: The Meadows R11 525m | O68: The Meadows | P68: MEA
A69: 22:11 Dubb (AUS) 10th Apr (R9 318m Gr5) | B69: 2021-04-10T22:11:00 | C69: 181703135 | D69: 30412866 | E69: N | F69: Y | G69: 1 | H69: AUS | I69: 22:11:00 | J69: Dubb | K69: R9 | L69: 318m | M69: Gr5 | N69: Dubbo R9 318m | O69: Dubbo | P69: DBO
A70: 22:18 WPrk (AUS) 10th Apr (R11 520m FFA) | B70: 2021-04-10T22:18:00 | C70: 181704919 | D70: 30412982 | E70: N | F70: Y | G70: 1 | H70: AUS | I70: 22:18:00 | J70: WPrk | K70: R11 | L70: 520m | M70: FFA | N70: Wentworth Park R11 520m | O70: Wentworth Park | P70: WWP
A71: 22:26 Mead (AUS) 10th Apr (R12 525m Gr5) | B71: 2021-04-10T22:26:00 | C71: 181711428 | D71: 30413500 | E71: N | F71: Y | G71: 1 | H71: AUS | I71: 22:26:00 | J71: Mead | K71: R12 | L71: 525m | M71: Gr5 | N71: The Meadows R12 525m | O71: The Meadows | P71: MEA
A72: 22:34 Dubb (AUS) 10th Apr (R10 318m Gr5) | B72: 2021-04-10T22:34:00 | C72: 181703137 | D72: 30412866 | E72: N | F72: Y | G72: 1 | H72: AUS | I72: 22:34:00 | J72: Dubb | K72: R10 | L72: 318m | M72: Gr5 | N72: Dubbo R10 318m | O72: Dubbo | P72: DBO

Sheet display
A2: .+3- | B2: Balance | C2: Staked | D2: Profit | E2: Yield | F2: ="R"&settings!B26 -> R12 | G2: =PROPER(settings!B25) -> Shepparton | R2: =settings!B27 -> 385m | T2: =settings!B28 -> Gr5 | V2: =IF(ABS(TTJ)/60>=3,IF(MOD(TRUNC(TTJ,0),6)>0,TRUNC(TTJ/60,0) & " min",""),TRUNC(TTJ,0)&" sec") -> 8 min | X2: Warrnambool R9 390m
A3: 4 | B3: =settings!B8 -> 103038.94 | C3: =settings!B11 -> 9914680.68 | D3: =settings!B12 -> 204038.94 | E3: =IFERROR(D3/C3,0) -> 0.0205794767 | F3: Public Status: | G3: =IF(MOD(TTJ,3)>0,IF(settings!B50>10,"Public Error...",settings!B54&" "&ROUND(settings!B50,0)&" sec"),"") ->  | V3: 116 ms
B4: =settings!B10 -> -652.48 | C4: =settings!B14 -> 820.68 | D4: =settings!B15 -> -393.7 | E4: =IFERROR(D4/C4,0) -> -0.4797241312 | F4: Market Status: | G4: =IF(MOD(TTJ,3)>0,IF(Markets!F2<>"",Markets!F2,settings!B64),"") ->  | S4: Option Explicit
B5: key | E5: time | F5: Runner | G5: ULS | H5: UL | I5: MLO | J5: Back | K5: Lay | L5: MBO | M5: UB | N5: UBS | O5: Matched | P5: BF | Q5: Public | R5: LS | S5: L | T5: Fair Odds | U5: B | V5: BS | W5: P/L | X5: Race | Y5: Status | Z5: Time | AA5: Runner | AB5: ULS | AC5: UL | AD5: MLO | AE5: Back | AF5: Lay | AG5: MBO | AH5: UB | AI5: UBS | AJ5: Matched | AK5: BF | AL5: Public | AM5: LS | AN5: L | AO5: Fair Odds | AP5: B | AQ5: BS | AR5: P/L
B6: Townsville R10 380m | E6: 11:00:00 | F6: =IF(Markets!A5<>"",Markets!A5,"") -> 1. Kamari | G6: =IF(AND(Markets!A5<>"",Markets!BP5>0),ROUND(Markets!BP5,0),"") ->  | H6: =IF(AND(Markets!A5<>"",Markets!BO5>0),Markets!BO5,"") ->  | I6: =IF(Markets!BH5<>"",Markets!BH5,"") -> 12 | J6: =IF(Markets!F5<>"",Markets!F5,"") -> 15 | K6: =IF(Markets!H5<>"",Markets!H5,"") -> 34 | L6: =IF(Markets!BK5<>"",Markets!BK5,"") -> 22 | M6: =IF(AND(Markets!A5<>"",Markets!BW5>0),Markets!BW5,"") ->  | N6: =IF(AND(Markets!A5<>"",Markets!BX5>0),Markets!BX5,"") ->  | O6: =IF(Markets!P5<>"",Markets!P5,"") -> 0 | P6: =IF(Markets!Z5<>"",Markets!Z5,"") -> 0 | Q6: =IF(Markets!BF5<>"",Markets!BF5,"") -> 13 | R6: =IF(Markets!A5<>"",IF(Markets!BR5>0,Markets!BR5,""),"") ->  | S6: =IF(Markets!A5<>"",Markets!BT5,"") ->  | T6: =IF(Markets!BG5<>"",Markets!BG5,"") -> 15.15804884 | U6: =IF(Markets!A5<>"",Markets!CB5,"") ->  | V6: =IF(Markets!A5<>"",IF(Markets!BZ5>0,Markets!BZ5,""),"") ->  | W6: =IF(Markets!X5<>"",Markets!X5,"") -> 0 | X6: Shepparton R11 385m | Y6: CONFLICT | Z6: 10:59:00 | AA6: 1. Bermuda | AD6: 55 | AE6: 85 | AF6: 120 | AG6: 120 | AJ6: 418.65 | AK6: 72.11 | AL6: 41 | AO6: 71.04563166 | AR6: 309.4
B7: Shepparton R11 385m | E7: 11:05:00 | F7: =IF(Markets!A6<>"",Markets!A6,"") -> 2. Lucas Entity | G7: =IF(AND(Markets!A6<>"",Markets!BP6>0),ROUND(Markets!BP6,0),"") ->  | H7: =IF(AND(Markets!A6<>"",Markets!BO6>0),Markets!BO6,"") ->  | I7: =IF(Markets!BH6<>"",Markets!BH6,"") -> 48 | J7: =IF(Markets!F6<>"",Markets!F6,"") -> 38 | K7: =IF(Markets!H6<>"",Markets!H6,"") -> 260 | L7: =IF(Markets!BK6<>"",Markets!BK6,"") -> 1000 | M7: =IF(AND(Markets!A6<>"",Markets!BW6>0),Markets!BW6,"") ->  | N7: =IF(AND(Markets!A6<>"",Markets!BX6>0),Markets!BX6,"") ->  | O7: =IF(Markets!P6<>"",Markets!P6,"") -> 0 | P7: =IF(Markets!Z6<>"",Markets!Z6,"") -> 0 | Q7: =IF(Markets!BF6<>"",Markets!BF6,"") -> 34 | R7: =IF(Markets!A6<>"",IF(Markets!BR6>0,Markets!BR6,""),"") ->  | S7: =IF(Markets!A6<>"",Markets!BT6,"") ->  | T7: =IF(Markets!BG6<>"",Markets!BG6,"") -> 58.74066532 | U7: =IF(Markets!A6<>"",Markets!CB6,"") ->  | V7: =IF(Markets!A6<>"",IF(Markets!BZ6>0,Markets!BZ6,""),"") ->  | W7: =IF(Markets!X6<>"",Markets!X6,"") -> 0 | X7: Richmond R5 400m | Y7: OK | Z7: 10:01:00 | AA7: 2. Ordelia Bale | AD7: 5 | AE7: 6.8 | AF7: 7 | AG7: 7.8 | AJ7: 8891.91 | AK7: 6.05 | AL7: 5.5 | AO7: 6.177735926 | AP7: 7 | AQ7: 41 | AR7: 596.4
B8: Richmond R10 330m | E8: 11:10:00 | F8: =IF(Markets!A7<>"",Markets!A7,"") -> 3. All Inn Mia | G8: =IF(AND(Markets!A7<>"",Markets!BP7>0),ROUND(Markets!BP7,0),"") ->  | H8: =IF(AND(Markets!A7<>"",Markets!BO7>0),Markets!BO7,"") ->  | I8: =IF(Markets!BH7<>"",Markets!BH7,"") -> 4.1 | J8: =IF(Markets!F7<>"",Markets!F7,"") -> 5.6 | K8: =IF(Markets!H7<>"",Markets!H7,"") -> 7.8 | L8: =IF(Markets!BK7<>"",Markets!BK7,"") -> 6.2 | M8: =IF(AND(Markets!A7<>"",Markets!BW7>0),Markets!BW7,"") ->  | N8: =IF(AND(Markets!A7<>"",Markets!BX7>0),Markets!BX7,"") ->  | O8: =IF(Markets!P7<>"",Markets!P7,"") -> 118.34 | P8: =IF(Markets!Z7<>"",Markets!Z7,"") -> 7.23 | Q8: =IF(Markets!BF7<>"",Markets!BF7,"") -> 4.8 | R8: =IF(Markets!A7<>"",IF(Markets!BR7>0,Markets!BR7,""),"") ->  | S8: =IF(Markets!A7<>"",Markets!BT7,"") ->  | T8: =IF(Markets!BG7<>"",Markets!BG7,"") -> 5.047324757 | U8: =IF(Markets!A7<>"",Markets!CB7,"") ->  | V8: =IF(Markets!A7<>"",IF(Markets!BZ7>0,Markets!BZ7,""),"") ->  | W8: =IF(Markets!X7<>"",Markets!X7,"") -> 0 | X8: Townsville R6 498m | Y8: OK | Z8: 10:01:00 | AA8: 3. Night Jar | AD8: 17 | AE8: 22 | AF8: 27 | AG8: 32 | AJ8: 885.78 | AK8: 20.3 | AL8: 18 | AO8: 21.19622019 | AR8: 309.4
B9: Townsville R11 380m | E9: 11:15:00 | F9: =IF(Markets!A8<>"",Markets!A8,"") -> 5. Madame Pookie | G9: =IF(AND(Markets!A8<>"",Markets!BP8>0),ROUND(Markets!BP8,0),"") ->  | H9: =IF(AND(Markets!A8<>"",Markets!BO8>0),Markets!BO8,"") ->  | I9: =IF(Markets!BH8<>"",Markets!BH8,"") -> 7.6 | J9: =IF(Markets!F8<>"",Markets!F8,"") -> 9.4 | K9: =IF(Markets!H8<>"",Markets!H8,"") -> 10 | L9: =IF(Markets!BK8<>"",Markets!BK8,"") -> 12.5 | M9: =IF(AND(Markets!A8<>"",Markets!BW8>0),Markets!BW8,"") ->  | N9: =IF(AND(Markets!A8<>"",Markets!BX8>0),Markets!BX8,"") ->  | O9: =IF(Markets!P8<>"",Markets!P8,"") -> 127.31 | P9: =IF(Markets!Z8<>"",Markets!Z8,"") -> 8.74 | Q9: =IF(Markets!BF8<>"",Markets!BF8,"") -> 7 | R9: =IF(Markets!A8<>"",IF(Markets!BR8>0,Markets!BR8,""),"") ->  | S9: =IF(Markets!A8<>"",Markets!BT8,"") ->  | T9: =IF(Markets!BG8<>"",Markets!BG8,"") -> 9.477580046 | U9: =IF(Markets!A8<>"",Markets!CB8,"") ->  | V9: =IF(Markets!A8<>"",IF(Markets!BZ8>0,Markets!BZ8,""),"") ->  | W9: =IF(Markets!X8<>"",Markets!X8,"") -> 0 | X9: Shepparton R7 385m | Y9: CONFLICT | Z9: 10:01:00 | AA9: 4. Currawong | AD9: 30 | AE9: 36 | AF9: 42 | AG9: 60 | AJ9: 489.95 | AK9: 32.04 | AL9: 26 | AM9: 3.16 | AN9: 31.55063291 | AO9: 37.94576546 | AR9: 209.7
B10: Shepparton R12 385m | E10: 11:20:00 | F10: =IF(Markets!A9<>"",Markets!A9,"") -> 6. Six And Out | G10: =IF(AND(Markets!A9<>"",Markets!BP9>0),ROUND(Markets!BP9,0),"") ->  | H10: =IF(AND(Markets!A9<>"",Markets!BO9>0),Markets!BO9,"") ->  | I10: =IF(Markets!BH9<>"",Markets!BH9,"") -> 7.2 | J10: =IF(Markets!F9<>"",Markets!F9,"") -> 7.8 | K10: =IF(Markets!H9<>"",Markets!H9,"") -> 15.5 | L10: =IF(Markets!BK9<>"",Markets!BK9,"") -> 12 | M10: =IF(AND(Markets!A9<>"",Markets!BW9>0),Markets!BW9,"") ->  | N10: =IF(AND(Markets!A9<>"",Markets!BX9>0),Markets!BX9,"") ->  | O10: =IF(Markets!P9<>"",Markets!P9,"") -> 0 | P10: =IF(Markets!Z9<>"",Markets!Z9,"") -> 0 | Q10: =IF(Markets!BF9<>"",Markets!BF9,"") -> 6.5 | R10: =IF(Markets!A9<>"",IF(Markets!BR9>0,Markets!BR9,""),"") ->  | S10: =IF(Markets!A9<>"",Markets!BT9,"") ->  | T10: =IF(Markets!BG9<>"",Markets!BG9,"") -> 8.874564666 | U10: =IF(Markets!A9<>"",Markets!CB9,"") ->  | V10: =IF(Markets!A9<>"",IF(Markets!BZ9>0,Markets!BZ9,""),"") ->  | W10: =IF(Markets!X9<>"",Markets!X9,"") -> 0 | X10: Richmond R6 330m | Y10: OK | Z10: 10:12:00 | AA10: 5. Slingshot Title | AD10: 3 | AE10: 3 | AF10: 3.05 | AG10: 4.4 | AJ10: 20683.2 | AK10: 3.02 | AL10: 2.8 | AM10: 523.57 | AN10: 2.936486812 | AO10: 3.712445777 | AR10: -1228.06
B11: Horsham R1 410m | E11: 17:27:00 | F11: =IF(Markets!A10<>"",Markets!A10,"") -> 7. Walk On Bye | G11: =IF(AND(Markets!A10<>"",Markets!BP10>0),ROUND(Markets!BP10,0),"") ->  | H11: =IF(AND(Markets!A10<>"",Markets!BO10>0),Markets!BO10,"") ->  | I11: =IF(Markets!BH10<>"",Markets!BH10,"") -> 2.12 | J11: =IF(Markets!F10<>"",Markets!F10,"") -> 2.06 | K11: =IF(Markets!H10<>"",Markets!H10,"") -> 2.6 | L11: =IF(Markets!BK10<>"",Markets!BK10,"") -> 2.92 | M11: =IF(AND(Markets!A10<>"",Markets!BW10>0),Markets!BW10,"") ->  | N11: =IF(AND(Markets!A10<>"",Markets!BX10>0),Markets!BX10,"") ->  | O11: =IF(Markets!P10<>"",Markets!P10,"") -> 43.59 | P11: =IF(Markets!Z10<>"",Markets!Z10,"") -> 2.32 | Q11: =IF(Markets!BF10<>"",Markets!BF10,"") -> 2 | R11: =IF(Markets!A10<>"",IF(Markets!BR10>0,Markets!BR10,""),"") ->  | S11: =IF(Markets!A10<>"",Markets!BT10,"") ->  | T11: =IF(Markets!BG10<>"",Markets!BG10,"") -> 2.596005647 | U11: =IF(Markets!A10<>"",Markets!CB10,"") ->  | V11: =IF(Markets!A10<>"",IF(Markets!BZ10>0,Markets!BZ10,""),"") ->  | W11: =IF(Markets!X10<>"",Markets!X10,"") -> 0 | X11: Townsville R7 380m | Y11: CONFLICT | Z11: 10:12:00 | AA11: 6. Tinker Luke | AD11: 46 | AE11: 70 | AF11: 95 | AG11: 95 | AJ11: 263.24 | AK11: 63.3 | AL11: 41 | AO11: 58.1940066 | AR11: 309.4
B12: The Gardens R1 272m | E12: 17:44:00 | F12: =IF(Markets!A11<>"",Markets!A11,"") -> 8. Jaimandy Roy | G12: =IF(AND(Markets!A11<>"",Markets!BP11>0),ROUND(Markets!BP11,0),"") ->  | H12: =IF(AND(Markets!A11<>"",Markets!BO11>0),Markets!BO11,"") ->  | I12: =IF(Markets!BH11<>"",Markets!BH11,"") -> 7 | J12: =IF(Markets!F11<>"",Markets!F11,"") -> 5.3 | K12: =IF(Markets!H11<>"",Markets!H11,"") -> 11.5 | L12: =IF(Markets!BK11<>"",Markets!BK11,"") -> 11.5 | M12: =IF(AND(Markets!A11<>"",Markets!BW11>0),Markets!BW11,"") ->  | N12: =IF(AND(Markets!A11<>"",Markets!BX11>0),Markets!BX11,"") ->  | O12: =IF(Markets!P11<>"",Markets!P11,"") -> 0 | P12: =IF(Markets!Z11<>"",Markets!Z11,"") -> 0 | Q12: =IF(Markets!BF11<>"",Markets!BF11,"") -> 5 | R12: =IF(Markets!A11<>"",IF(Markets!BR11>0,Markets!BR11,""),"") ->  | S12: =IF(Markets!A11<>"",Markets!BT11,"") ->  | T12: =IF(Markets!BG11<>"",Markets!BG11,"") -> 8.65959931 | U12: =IF(Markets!A11<>"",Markets!CB11,"") ->  | V12: =IF(Markets!A11<>"",IF(Markets!BZ11>0,Markets!BZ11,""),"") ->  | W12: =IF(Markets!X11<>"",Markets!X11,"") -> 0 | X12: Shepparton R8 450m | Y12: CONFLICT | Z12: 10:12:00 | AA12: 7. Minnie Banjo | AD12: 3.15 | AE12: 3.75 | AF12: 3.85 | AG12: 4.6 | AJ12: 9228.23 | AK12: 4.04 | AL12: 3.6 | AO12: 3.877864151 | AP12: 4.7 | AQ12: 29.72 | AR12: 449.08
B13: Ipswich R1 431m | E13: 17:49:00 | F13: =IF(Markets!A12<>"",Markets!A12,"") ->  | G13: =IF(AND(Markets!A12<>"",Markets!BP12>0),ROUND(Markets!BP12,0),"") ->  | H13: =IF(AND(Markets!A12<>"",Markets!BO12>0),Markets!BO12,"") ->  | I13: =IF(Markets!BH12<>"",Markets!BH12,"") ->  | J13: =IF(Markets!F12<>"",Markets!F12,"") ->  | K13: =IF(Markets!H12<>"",Markets!H12,"") ->  | L13: =IF(Markets!BK12<>"",Markets!BK12,"") ->  | M13: =IF(AND(Markets!A12<>"",Markets!BW12>0),Markets!BW12,"") ->  | N13: =IF(AND(Markets!A12<>"",Markets!BX12>0),Markets!BX12,"") ->  | O13: =IF(Markets!P12<>"",Markets!P12,"") ->  | P13: =IF(Markets!Z12<>"",Markets!Z12,"") ->  | Q13: =IF(Markets!BF12<>"",Markets!BF12,"") ->  | R13: =IF(Markets!A12<>"",IF(Markets!BR12>0,Markets!BR12,""),"") ->  | S13: =IF(Markets!A12<>"",Markets!BT12,"") ->  | T13: =IF(Markets!BG12<>"",Markets!BG12,"") ->  | U13: =IF(Markets!A12<>"",Markets!CB12,"") ->  | V13: =IF(Markets!A12<>"",IF(Markets!BZ12>0,Markets!BZ12,""),"") ->  | W13: =IF(Markets!X12<>"",Markets!X12,"") ->  | X13: Richmond R7 330m | Y13: OK | Z13: 10:27:00 | AA13: 8. Prabaker | AD13: 3.95 | AE13: 5.7 | AF13: 5.8 | AG13: 5.9 | AJ13: 4024.79 | AK13: 5.81 | AL13: 4 | AO13: 4.852030102 | AP13: 5.767491986 | AQ13: 146.61 | AR13: 1154.97
B14: Horsham R2 410m | E14: 17:52:00 | X14: Townsville R8 380m | Y14: CONFLICT | Z14: 10:29:00
B15: The Gardens R2 400m | E15: 17:59:00 | X15: Shepparton R9 385m | Y15: CONFLICT | Z15: 10:29:00
B16: Ipswich R2 520m | E16: 18:04:00 | X16: Richmond R8 330m | Y16: OK | Z16: 10:42:00
B17: Horsham R3 410m | E17: 18:07:00 | X17: Townsville R9 380m | Y17: CONFLICT | Z17: 10:43:00
B18: The Gardens R3 600m | E18: 18:19:00 | X18: Shepparton R10 385m | Y18: CONFLICT | Z18: 10:43:00
B19: Ipswich R3 431m | E19: 18:23:00 | X19: Richmond R9 330m | Y19: OK | Z19: 10:56:00
B20: Wentworth Park R1 520m | E20: 18:27:00 | X20: Townsville R10 380m | Y20: CONFLICT | Z20: 10:59:00
B21: Horsham R4 485m | E21: 18:29:00 | X21: Richmond R10 330m | Y21: OK | Z21: 11:10:00
B22: The Gardens R4 272m | E22: 18:34:00 | X22: Townsville R11 380m | Y22: CONFLICT | Z22: 11:11:00
B23: The Meadows R1 525m | E23: 18:39:00 | X23: Shepparton R12 385m
B24: Ipswich R4 520m | E24: 18:42:00
B25: Wentworth Park R2 520m | E25: 18:47:00
B26: Horsham R5 485m | E26: 18:54:00
B27: The Gardens R5 272m | E27: 18:57:00
B28: The Meadows R2 525m | E28: 18:59:00
B29: Ipswich R5 630m | E29: 19:04:00
B30: Wentworth Park R3 520m | E30: 19:07:00 | O30: Bankroll
B31: Horsham R6 410m | E31: 19:10:00
B32: The Gardens R6 400m | E32: 19:13:00
B33: Dubbo R1 318m | E33: 19:16:00
B34: The Meadows R3 525m | E34: 19:18:00
B35: Ipswich R6 520m | E35: 19:22:00
B36: Horsham R7 410m | E36: 19:25:00
B37: Wentworth Park R4 520m | E37: 19:28:00
B38: The Gardens R7 400m | E38: 19:31:00
B39: Dubbo R2 318m | E39: 19:34:00
B40: The Meadows R4 525m | E40: 19:39:00
B41: Ipswich R7 520m | E41: 19:42:00
B42: Wentworth Park R5 520m | E42: 19:47:00
B43: Horsham R8 485m | E43: 19:50:00
B44: The Gardens R8 400m | E44: 19:53:00
B45: Dubbo R3 318m | E45: 19:56:00
B46: The Meadows R5 525m | E46: 19:59:00
B47: Ipswich R8 520m | E47: 20:03:00
B48: Wentworth Park R6 720m | E48: 20:07:00
B49: Horsham R9 485m | E49: 20:11:00
B50: The Gardens R9 400m | E50: 20:14:00
B51: The Meadows R6 525m | E51: 20:18:00
B52: Dubbo R4 318m | E52: 20:20:00
B53: Ipswich R9 520m | E53: 20:27:00
B54: Wentworth Park R7 520m | E54: 20:31:00
B55: Horsham R10 410m | E55: 20:34:00
B56: The Meadows R7 525m | E56: 20:37:00
B57: The Gardens R10 515m | E57: 20:41:00
B58: Dubbo R5 516m | E58: 20:44:00
B59: Ipswich R10 431m | E59: 20:47:00
B60: Horsham R11 410m | E60: 20:50:00
B61: Wentworth Park R8 520m | E61: 20:54:00
B62: The Gardens R11 515m | E62: 21:00:00
B63: The Meadows R8 600m | E63: 21:03:00
B64: Dubbo R6 400m | E64: 21:04:00
B65: Horsham R12 410m | E65: 21:15:00
B66: The Meadows R9 525m | E66: 21:22:00
B67: Dubbo R7 400m | E67: 21:27:00
B68: Wentworth Park R9 520m | E68: 21:36:00
B69: The Meadows R10 525m | E69: 21:43:00
B70: Dubbo R8 318m | E70: 21:49:00
B71: Wentworth Park R10 520m | E71: 22:00:00
B72: The Meadows R11 525m | E72: 22:07:00
B73: Dubbo R9 318m | E73: 22:11:00
B74: Wentworth Park R11 520m | E74: 22:18:00
B75: The Meadows R12 525m | E75: 22:26:00
B76: Dubbo R10 318m | E76: 22:34:00

Sheet lookups
A1: racing_code | B1: bf_code | C1: location | D1: jur | E1: mnemonic | G1: Odds | H1: Tick Count | I1: Back
B2: AnPk | C2: Angle Park | D2: AUS | E2: ANG | G2: 1 | H2: 1 | I2: 1.01
B3: APrk | C3: Albion Park | D3: AUS | E3: ABK | G3: 1.01 | H3: 2 | I3: 1.02
B4: Ball | C4: Ballarat | D4: AUS | E4: BAL | G4: 1.02 | H4: 3 | I4: 1.03
B5: Bath | C5: Bathurst | D5: AUS | E5: BAT | G5: 1.03 | H5: 4 | I5: 1.04
B6: Bend | C6: Bendigo | D6: AUS | E6: BEN | G6: 1.04 | H6: 5 | I6: 1.05
B7: Bull | C7: Bulli | D7: AUS | E7: BUL | G7: 1.05 | H7: 6 | I7: 1.06
B8: Bund | C8: Bundaberg | D8: AUS | E8: BBG | G8: 1.06 | H8: 7 | I8: 1.07
B9: Canb | C9: Canberra | D9: AUS | E9: CNB | G9: 1.07 | H9: 8 | I9: 1.08
B10: Cann | C10: Cannington | D10: AUS | E10: CNP | G10: 1.08 | H10: 9 | I10: 1.09
B11: Capa | C11: Capalaba | D11: AUS | E11: CPL | G11: 1.09 | H11: 10 | I11: 1.1
B12: Casi | C12: Casino | D12: AUS | E12: CSO | G12: 1.1 | H12: 11 | I12: 1.11
B13: Cran | C13: Cranbourne | D13: AUS | E13: CRB | G13: 1.11 | H13: 12 | I13: 1.12
B14: Dapt | C14: Dapto | D14: AUS | E14: DAP | G14: 1.12 | H14: 13 | I14: 1.13
B15: Darw | C15: Darwin | D15: AUS | E15: DAR | G15: 1.13 | H15: 14 | I15: 1.14
B16: Devn | C16: Devonport | D16: AUS | E16: DEV | G16: 1.14 | H16: 15 | I16: 1.15
B17: Dubb | C17: Dubbo | D17: AUS | E17: DBO | G17: 1.15 | H17: 16 | I17: 1.16
B18: Gard | C18: The Gardens | D18: AUS | E18: GAR | G18: 1.16 | H18: 17 | I18: 1.17
B19: Gawl | C19: Gawler | D19: AUS | E19: GAW | G19: 1.17 | H19: 18 | I19: 1.18
B20: Geel | C20: Geelong | D20: AUS | E20: GEL | G20: 1.18 | H20: 19 | I20: 1.19
B21: Gosf | C21: Gosford | D21: AUS | E21: GOS | G21: 1.19 | H21: 20 | I21: 1.2
B22: Goul | C22: Goulburn | D22: AUS | E22: GBN | G22: 1.2 | H22: 21 | I22: 1.21
B23: Graf | C23: Grafton | D23: AUS | E23: GRA | G23: 1.21 | H23: 22 | I23: 1.22
B24: Gund | C24: Gundagai | D24: AUS | E24: GUN | G24: 1.22 | H24: 23 | I24: 1.23
B25: Gunn | C25: Gunnedah | D25: AUS | E25: GDH | G25: 1.23 | H25: 24 | I25: 1.24
B26: Heal | C26: Healesville | D26: AUS | E26: HSV | G26: 1.24 | H26: 25 | I26: 1.25
B27: Hoba | C27: Hobart | D27: AUS | E27: HOB | G27: 1.25 | H27: 26 | I27: 1.26
B28: Hshm | C28: Horsham | D28: AUS | E28: HOR | G28: 1.26 | H28: 27 | I28: 1.27
B29: Ipsw | C29: Ipswich | D29: AUS | E29: IPS | G29: 1.27 | H29: 28 | I29: 1.28
B30: Laun | C30: Launceston | D30: AUS | E30: LAU | G30: 1.28 | H30: 29 | I30: 1.29
B31: Lism | C31: Lismore | D31: AUS | E31: LSM | G31: 1.29 | H31: 30 | I31: 1.3
B32: Mait | C32: Maitland | D32: AUS | E32: MTL | G32: 1.3 | H32: 31 | I32: 1.31
B33: Mand | C33: Mandurah | D33: AUS | E33: MRD | G33: 1.31 | H33: 32 | I33: 1.32
B34: MBdg | C34: Murray Bridge | D34: AUS | E34: MBR | G34: 1.32 | H34: 33 | I34: 1.33
B35: Mead | C35: The Meadows | D35: AUS | E35: MEA | G35: 1.33 | H35: 34 | I35: 1.34
B36: MGam | C36: Mount Gambier | D36: AUS | E36: MTG | G36: 1.34 | H36: 35 | I36: 1.35
B37: Newc | C37: Newcastle | D37: AUS | E37: NUK | G37: 1.35 | H37: 36 | I37: 1.36
B38: Nort | C38: Northam | D38: AUS | E38: NTM | G38: 1.36 | H38: 37 | I38: 1.37
B39: Nowr | C39: Nowra | D39: AUS | E39: NOW | G39: 1.37 | H39: 38 | I39: 1.38
B40: Rich | C40: Richmond | D40: AUS | E40: RIC | G40: 1.38 | H40: 39 | I40: 1.39
B41: Rock | C41: Rockhampton | D41: AUS | E41: ROC | G41: 1.39 | H41: 40 | I41: 1.4
B42: Sale | C42: Sale | D42: AUS | E42: SAL | G42: 1.4 | H42: 41 | I42: 1.41
B43: Shep | C43: Shepparton | D43: AUS | E43: SHE | G43: 1.41 | H43: 42 | I43: 1.42
B44: SPrk | C44: Sandown Park | D44: AUS | E44: SAN | G44: 1.42 | H44: 43 | I44: 1.43
B45: Stra | C45: Strathalbyn | D45: AUS | E45: STR | G45: 1.43 | H45: 44 | I45: 1.44
B46: Temo | C46: Temora | D46: AUS | E46: TEM | G46: 1.44 | H46: 45 | I46: 1.45
B47: Toow | C47: Toowoomba | D47: AUS | E47: TOO | G47: 1.45 | H47: 46 | I47: 1.46
B48: Town | C48: Townsville | D48: AUS | E48: TWN | G48: 1.46 | H48: 47 | I48: 1.47
B49: Trar | C49: Traralgon | D49: AUS | E49: TRL | G49: 1.47 | H49: 48 | I49: 1.48
B50: Wagg | C50: Wagga | D50: AUS | E50: WAG | G50: 1.48 | H50: 49 | I50: 1.49
B51: Warr | C51: Warrnambool | D51: AUS | E51: WBO | G51: 1.49 | H51: 50 | I51: 1.5
B52: Wgul | C52: Warragul | D52: AUS | E52: WRG | G52: 1.5 | H52: 51 | I52: 1.51
B53: WPrk | C53: Wentworth Park | D53: AUS | E53: WWP | G53: 1.51 | H53: 52 | I53: 1.52
B54: BVue | C54: Belle Vue | D54: GB | E54: BVU | G54: 1.52 | H54: 53 | I54: 1.53
B55: CPark | C55: Central Park | D55: GB | E55: CPK | G55: 1.53 | H55: 54 | I55: 1.54
B56: Crayfd | C56: Crayford | D56: GB | E56: CFD | G56: 1.54 | H56: 55 | I56: 1.55
B57: Donc | C57: Doncaster | D57: GB | E57: DCR | G57: 1.55 | H57: 56 | I57: 1.56
B58: Harl | C58: Harlow | D58: GB | E58: HLW | G58: 1.56 | H58: 57 | I58: 1.57
B59: Henl | C59: Henlow | D59: GB | E59: HEN | G59: 1.57 | H59: 58 | I59: 1.58
B60: HGrn | C60: Hall Green | D60: GB | G60: 1.58 | H60: 59 | I60: 1.59
B61: Hove | C61: Hove | D61: GB | E61: HOV | G61: 1.59 | H61: 60 | I61: 1.6
B62: Kinsl | C62: Kinsley | D62: GB | E62: KIN | G62: 1.6 | H62: 61 | I62: 1.61
B63: Monm | C63: Monmore | D63: GB | G63: 1.61 | H63: 62 | I63: 1.62
B64: Newc | C64: Newcastle | D64: GB | E64: NUK | G64: 1.62 | H64: 63 | I64: 1.63
B65: Nott | C65: Nottingham | D65: GB | E65: NAM | G65: 1.63 | H65: 64 | I65: 1.64
B66: Pbarr | C66: Perry Barr | D66: GB | G66: 1.64 | H66: 65 | I66: 1.65
B67: Pboro | C67: Peterborough | D67: GB | G67: 1.65 | H67: 66 | I67: 1.66
B68: Poole | C68: Poole | D68: GB | E68: PLE | G68: 1.66 | H68: 67 | I68: 1.67
B69: Romfd | C69: Romford | D69: GB | E69: RFD | G69: 1.67 | H69: 68 | I69: 1.68
B70: Shawf | C70: Shawfield | D70: GB | G70: 1.68 | H70: 69 | I70: 1.69
B71: Sheff | C71: Sheffield | D71: GB | E71: SFD | G71: 1.69 | H71: 70 | I71: 1.7
B72: Sund | C72: Sunderland | D72: GB | E72: SND | G72: 1.7 | H72: 71 | I72: 1.71
B73: Swin | C73: Swindon | D73: GB | E73: SWI | G73: 1.71 | H73: 72 | I73: 1.72
B74: Towc | C74: Towcester | D74: GB | E74: TOC | G74: 1.72 | H74: 73 | I74: 1.73
B75: Wdon | C75: Wimbledon | D75: GB | G75: 1.73 | H75: 74 | I75: 1.74
B76: Yarm | C76: Yarmouth | D76: GB | G76: 1.74 | H76: 75 | I76: 1.75
A77: G | B77: Addi | C77: Addington | D77: NZL | E77: ADD | G77: 1.75 | H77: 76 | I77: 1.76
B78: AsPk | C78: Ascot Park | D78: NZL | E78: ASP | G78: 1.76 | H78: 77 | I78: 1.77
B79: Camb | C79: Cambridge | D79: NZL | E79: CBG | G79: 1.77 | H79: 78 | I79: 1.78
B80: FPrk | C80: Forbury Park | D80: NZL | E80: FBP | G80: 1.78 | H80: 79 | I80: 1.79
B81: Hatr | C81: Hatrick | D81: NZL | E81: HAT | G81: 1.79 | H81: 80 | I81: 1.8
B82: Mana | C82: Manawatu | D82: NZL | E82: MWU | G82: 1.8 | H82: 81 | I82: 1.81
B83: Mkau | C83: Manukau | D83: NZL | E83: MAA | G83: 1.81 | H83: 82 | I83: 1.82
B84: NewZ | C84: New Zealand | D84: NZL | E84: NZD | G84: 1.82 | H84: 83 | I84: 1.83
B85: Redc | C85: Redcliffe | D85: AUS | E85: RED | G85: 1.83 | H85: 84 | I85: 1.84
B86: Penr | C86: Penrith | D86: AUS | E86: PEN | G86: 1.84 | H86: 85 | I86: 1.85
B87: Echu | C87: Echuca | D87: AUS | E87: ECH | G87: 1.85 | H87: 86 | I87: 1.86
B88: Tare | C88: Taree | D88: AUS | E88: TRE | G88: 1.86 | H88: 87 | I88: 1.87
G89: 1.87 | H89: 88 | I89: 1.88
G90: 1.88 | H90: 89 | I90: 1.89
G91: 1.89 | H91: 90 | I91: 1.9
G92: 1.9 | H92: 91 | I92: 1.91
G93: 1.91 | H93: 92 | I93: 1.92
G94: 1.92 | H94: 93 | I94: 1.93
G95: 1.93 | H95: 94 | I95: 1.94
G96: 1.94 | H96: 95 | I96: 1.95
G97: 1.95 | H97: 96 | I97: 1.96
G98: 1.96 | H98: 97 | I98: 1.97
G99: 1.97 | H99: 98 | I99: 1.98
G100: 1.98 | H100: 99 | I100: 1.99
G101: 1.99 | H101: 100 | I101: 2
G102: 2 | H102: 101 | I102: 2.02
G103: 2.02 | H103: 102 | I103: 2.04
G104: 2.04 | H104: 103 | I104: 2.06
G105: 2.06 | H105: 104 | I105: 2.08
G106: 2.08 | H106: 105 | I106: 2.1
G107: 2.1 | H107: 106 | I107: 2.12
G108: 2.12 | H108: 107 | I108: 2.14
G109: 2.14 | H109: 108 | I109: 2.16
G110: 2.16 | H110: 109 | I110: 2.18
G111: 2.18 | H111: 110 | I111: 2.2
G112: 2.2 | H112: 111 | I112: 2.22
G113: 2.22 | H113: 112 | I113: 2.24
G114: 2.24 | H114: 113 | I114: 2.26
G115: 2.26 | H115: 114 | I115: 2.28
G116: 2.28 | H116: 115 | I116: 2.3
G117: 2.3 | H117: 116 | I117: 2.32
G118: 2.32 | H118: 117 | I118: 2.34
G119: 2.34 | H119: 118 | I119: 2.36
G120: 2.36 | H120: 119 | I120: 2.38
G121: 2.38 | H121: 120 | I121: 2.4
G122: 2.4 | H122: 121 | I122: 2.42
G123: 2.42 | H123: 122 | I123: 2.44
G124: 2.44 | H124: 123 | I124: 2.46
G125: 2.46 | H125: 124 | I125: 2.48
G126: 2.48 | H126: 125 | I126: 2.5
G127: 2.5 | H127: 126 | I127: 2.52
G128: 2.52 | H128: 127 | I128: 2.54
G129: 2.54 | H129: 128 | I129: 2.56
G130: 2.56 | H130: 129 | I130: 2.58
G131: 2.58 | H131: 130 | I131: 2.6
G132: 2.6 | H132: 131 | I132: 2.62
G133: 2.62 | H133: 132 | I133: 2.64
G134: 2.64 | H134: 133 | I134: 2.66
G135: 2.66 | H135: 134 | I135: 2.68
G136: 2.68 | H136: 135 | I136: 2.7
G137: 2.7 | H137: 136 | I137: 2.72
G138: 2.72 | H138: 137 | I138: 2.74
G139: 2.74 | H139: 138 | I139: 2.76
G140: 2.76 | H140: 139 | I140: 2.78
G141: 2.78 | H141: 140 | I141: 2.8
G142: 2.8 | H142: 141 | I142: 2.82
G143: 2.82 | H143: 142 | I143: 2.84
G144: 2.84 | H144: 143 | I144: 2.86
G145: 2.86 | H145: 144 | I145: 2.88
G146: 2.88 | H146: 145 | I146: 2.9
G147: 2.9 | H147: 146 | I147: 2.92
G148: 2.92 | H148: 147 | I148: 2.94
G149: 2.94 | H149: 148 | I149: 2.96
G150: 2.96 | H150: 149 | I150: 2.98
G151: 2.98 | H151: 150 | I151: 3
G152: 3 | H152: 151 | I152: 3.05
G153: 3.05 | H153: 152 | I153: 3.1
G154: 3.1 | H154: 153 | I154: 3.15
G155: 3.15 | H155: 154 | I155: 3.2
G156: 3.2 | H156: 155 | I156: 3.25
G157: 3.25 | H157: 156 | I157: 3.3
G158: 3.3 | H158: 157 | I158: 3.35
G159: 3.35 | H159: 158 | I159: 3.4
G160: 3.4 | H160: 159 | I160: 3.45
G161: 3.45 | H161: 160 | I161: 3.5
G162: 3.5 | H162: 161 | I162: 3.55
G163: 3.55 | H163: 162 | I163: 3.6
G164: 3.6 | H164: 163 | I164: 3.65
G165: 3.65 | H165: 164 | I165: 3.7
G166: 3.7 | H166: 165 | I166: 3.75
G167: 3.75 | H167: 166 | I167: 3.8
G168: 3.8 | H168: 167 | I168: 3.85
G169: 3.85 | H169: 168 | I169: 3.9
G170: 3.9 | H170: 169 | I170: 3.95
G171: 3.95 | H171: 170 | I171: 4
G172: 4 | H172: 171 | I172: 4.1
G173: 4.1 | H173: 172 | I173: 4.2
G174: 4.2 | H174: 173 | I174: 4.3
G175: 4.3 | H175: 174 | I175: 4.4
G176: 4.4 | H176: 175 | I176: 4.5
G177: 4.5 | H177: 176 | I177: 4.6
G178: 4.6 | H178: 177 | I178: 4.7
G179: 4.7 | H179: 178 | I179: 4.8
G180: 4.8 | H180: 179 | I180: 4.9
G181: 4.9 | H181: 180 | I181: 5
G182: 5 | H182: 181 | I182: 5.1
G183: 5.1 | H183: 182 | I183: 5.2
G184: 5.2 | H184: 183 | I184: 5.3
G185: 5.3 | H185: 184 | I185: 5.4
G186: 5.4 | H186: 185 | I186: 5.5
G187: 5.5 | H187: 186 | I187: 5.6
G188: 5.6 | H188: 187 | I188: 5.7
G189: 5.7 | H189: 188 | I189: 5.8
G190: 5.8 | H190: 189 | I190: 5.9
G191: 5.9 | H191: 190 | I191: 6
G192: 6 | H192: 191 | I192: 6.2
G193: 6.2 | H193: 192 | I193: 6.4
G194: 6.4 | H194: 193 | I194: 6.6
G195: 6.6 | H195: 194 | I195: 6.8
G196: 6.8 | H196: 195 | I196: 7
G197: 7 | H197: 196 | I197: 7.2
G198: 7.2 | H198: 197 | I198: 7.4
G199: 7.4 | H199: 198 | I199: 7.6
G200: 7.6 | H200: 199 | I200: 7.8
... 153 more rows

Sheet public
A1: runner | B1: number | C1: price
A2: KAMARI | B2: 1 | C2: 13
A3: LUCAS ENTITY | B3: 2 | C3: 34
A4: ALL INN MIA | B4: 3 | C4: 4.8
A5: REAP THE REWARDS | B5: 4 | C5: 0
A6: MADAME POOKIE | B6: 5 | C6: 7
A7: SIX AND OUT | B7: 6 | C7: 6.5
A8: WALK ON BYE | B8: 7 | C8: 2
A9: JAIMANDY ROY | B9: 8 | C9: 5

Sheet settings
A1: function | B1: variable | E1: family | F1: software | G1: ratings
A2: queen computer | B2: MSI-9 | E2: MSI-7 | F2: ausdogs | G2: ausgh_forecast
A3: this computer | B3: MSI-7 | E3: MSI-8
A4: status | B4: Not Running | E4: MSI-3
A5: status stamp | B5: 2021-04-10T11:12:09 | CH5: 11
A6: date | B6: 2021-04-10 | CH6: 4.4
A7: investment | B7: 20000 | CH7: 6.8
A8: balance | B8: =Markets!I2+ABS(B10) -> 103038.94 | CH8: 28
A9: withdrawn money | B9: 121000 | C9: 2021-04-01 | CH9: 9
A10: exposure | B10: =Markets!L2 -> -652.48 | CH10: 5.5
A11: total matched | B11: 9914680.68 | CH11: 14
A12: total earnings | B12: =B8-B7+B9+B13 -> 204038.94 | CH12: 95
A13: borrowed | B13: 0
A14: today matched | B14: =B11-9913860 -> 820.68
A15: today earnings | B15: =B12-204432.64 -> -393.7
A17: data recorder stamp | B17: 2021-04-10T11:11:27
A18: move stamp | B18: 2021-04-10T11:11:06
A19: refresh markets trigger | B19: 1
A20: 30 min update stamp | B20: 2021-04-10T11:25:59
A21: market array | B21: 1. Kamari2. Lucas Entity3. All Inn Mia5. Madame Pookie6. Six And Out7. Walk On Bye8. Jaimandy Roy
A22: market status
A23: race_type | B23: G
A24: market id | B24: 181705171
A25: location | B25: Shepparton
A26: race number | B26: 12
A27: distance | B27: 385m
A28: grade | B28: Gr5
A29: time to jump | B29: =IF(LEFT(Markets!D2,1)="-",MID(Markets!D2,2,8)*-1,Markets!D2)*24*60*60 -> 519
A30: market key | B30: Shepparton R12 385m
A31: jur | B31: AUS
A32: mnemonic | B32: SHE
A33: mbo | B33: 1.12
A34: mlo | B34: 0.82
A35: lay payout | B35: =(B8+B13)^(0.66-B39/100) -> 1473.047915
A36: back payout | B36: =(B8+B13)^(0.66-B39/100)*0.8 -> 1178.438332
A37: lay tranche | B37: =LPO/6 -> 245.5079858
A38: back tranche | B38: =BPO/4 -> 294.6095829
A39: market commision rate | B39: =IF(Markets!P3>1.9,Markets!P3,2.6) -> 2.8
A40: market count | B40: =COUNTIFS(Markets!A5:A40,"<>*(NR)*",Markets!A5:A40,"<>") -> 7
A41: ratings_file | B41: \\MSI-9\oComs\oRatings\ausdogs\ausgh_forecast_20210410.txt
A42: ratings stamp | B42: 2021-04-10T10:39:49
A46: back count | B46: =SUM(Markets!F5:F28) -> 83.16
A47: past race row | B47: 214
A50: public price speed | B50: =(NOW()-B58)*24*60*60 -> 2.939999895
A51: QPL count | B51: 72
A52: market refresh waiting
A53: trigger -5
A54: public script update | B54: Running....
A55: public prices stamp | B55: 2021-04-10T11:11:05
A56: public bold update | B56: 0
A57: public prices | B57: =COUNT(Markets!$BF$5:$BF$29) -> 7
A58: public script time | B58: 2021-04-10T11:11:22
A59: aRw | B59: 5
A60: zRw | B60: 11
A61: lay matched | B61: =SUM(Markets!$BR$5:$BR$29) -> 0
A62: back matched | B62: =SUM(Markets!$BZ$5:$BZ$29) -> 0
A63: p/l matched sum | B63: =SUM(Markets!$X$5:$X$29) -> 0
A64: race status | B64: Open
A65: back market | B65: =SUM(Markets!$CS$5:$CS$29) -> 1.18025813
A66: lay market | B66: =SUM(Markets!$CT$5:$CT$29) -> 0.7975510821
A67: clean distance | B67: 385
A68: bet log matched rec | B68: =COUNTIFS(MyBets!$A$2:$A$100,">0",MyBets!$E$2:$E$100,"F",MyBets!$J$2:$J$100,">0") -> 0
A69: bet log matched | B69: =COUNTIFS(MyBets!$A$2:$A$100,">0",MyBets!$E$2:$E$100,"F") -> 0
A70: check_race_card fail flag
A71: start betting @ | B71: 90
A72: aggressive bet @ | B72: -15
A73: unmatched_bets | B73: =SUM(Markets!$BN$5:$BN$29)+SUM(Markets!$BV$5:$BV$29) -> 0

Sheet ratings
A1: date | B1: code | C1: distance | D1: grade | E1: bd_trainer | F1: de_dslr_days | G1: counter | H1: number | I1: rug | J1: box | K1: dog | L1: sumcoeff | M1: sumcoeff_coeff | N1: oddscoeff | O1: counter1 | P1: filter_td | Q1: udb_key | R1: udi
A2: 2021-04-10 | B2: CAN | C2: 520 | D2: 1 | F2: 7 | G2: 21 | H2: 1 | I2: 1 | J2: 1 | K2: OUR SEABROOK | L2: 47.72248 | M2: 1 | N2: -0.8916246 | O2: 0 | P2: 0 | Q2: OUR SEABROOK1 | R2: OUR SEABROOK44296
A3: 2021-04-10 | B3: CAN | C3: 520 | D3: 1 | F3: 7 | G3: 55 | H3: 1 | I3: 2 | J3: 2 | K3: STARGAZER | L3: 47.76962 | M3: 1 | N3: -0.8916246 | O3: 0 | P3: 0 | Q3: STARGAZER1 | R3: STARGAZER44296
A4: 2021-04-10 | B4: CAN | C4: 520 | D4: 1 | F4: 8 | G4: 26 | H4: 1 | I4: 3 | J4: 3 | K4: DOMINO MAC | L4: 47.32841 | M4: 1 | N4: -0.8916246 | O4: 0 | P4: 0 | Q4: DOMINO MAC1 | R4: DOMINO MAC44296
A5: 2021-04-10 | B5: CAN | C5: 520 | D5: 1 | F5: 7 | G5: 72 | H5: 1 | I5: 4 | J5: 4 | K5: TIGGERLONG TONK | L5: 48.40582 | M5: 1 | N5: -0.8916246 | O5: 0 | P5: 0 | Q5: TIGGERLONG TONK1 | R5: TIGGERLONG TONK44296
A6: 2021-04-10 | B6: CAN | C6: 520 | D6: 1 | F6: 7 | G6: 40 | H6: 1 | I6: 5 | J6: 5 | K6: ITS MY PARTY | L6: 47.89307 | M6: 1 | N6: -0.8916246 | O6: 0 | P6: 0 | Q6: ITS MY PARTY1 | R6: ITS MY PARTY44296
A7: 2021-04-10 | B7: CAN | C7: 520 | D7: 1 | F7: 3 | G7: 48 | H7: 1 | I7: 6 | J7: 6 | K7: FABRIOLA EXPERT | L7: 47.4211 | M7: 1 | N7: -0.8916246 | O7: 0 | P7: 0 | Q7: FABRIOLA EXPERT1 | R7: FABRIOLA EXPERT44296
A8: 2021-04-10 | B8: CAN | C8: 520 | D8: 1 | F8: 7 | G8: 29 | H8: 1 | I8: 7 | J8: 7 | K8: JUMBO JET | L8: 47.48008 | M8: 1 | N8: -0.8916246 | O8: 0 | P8: 0 | Q8: JUMBO JET1 | R8: JUMBO JET44296
A9: 2021-04-10 | B9: CAN | C9: 520 | D9: 1 | F9: 21 | G9: 57 | H9: 1 | I9: 8 | J9: 8 | K9: PIXIE MONELLI | L9: 47.67033 | M9: 1 | N9: -0.8916246 | O9: 0 | P9: 0 | Q9: PIXIE MONELLI1 | R9: PIXIE MONELLI44296
A10: 2021-04-10 | B10: CAN | C10: 520 | D10: 1 | F10: 161 | G10: 7 | H10: 2 | I10: 1 | J10: 1 | K10: RAPIDO LASS | L10: 47.5046 | M10: 1 | N10: -0.8916246 | O10: 0 | P10: 0 | Q10: RAPIDO LASS2 | R10: RAPIDO LASS44296
A11: 2021-04-10 | B11: CAN | C11: 520 | D11: 1 | E11: G O'KEEFFE | F11: 14 | G11: 68 | H11: 2 | I11: 2 | J11: 2 | K11: UP AND ABOUT | L11: 47.43495 | M11: 1 | N11: -0.8916246 | O11: 0 | P11: 0 | Q11: UP AND ABOUT2 | R11: UP AND ABOUT44296
A12: 2021-04-10 | B12: CAN | C12: 520 | D12: 1 | F12: 7 | G12: 30 | H12: 2 | I12: 3 | J12: 3 | K12: WESTDALE OPHELIA | L12: 47.48785 | M12: 1 | N12: -0.8916246 | O12: 0 | P12: 0 | Q12: WESTDALE OPHELIA2 | R12: WESTDALE OPHELIA44296
A13: 2021-04-10 | B13: CAN | C13: 520 | D13: 1 | F13: 8 | G13: 38 | H13: 2 | I13: 4 | J13: 4 | K13: LE JURY MONELLI | L13: 47.98605 | M13: 1 | N13: -0.8916246 | O13: 0 | P13: 0 | Q13: LE JURY MONELLI2 | R13: LE JURY MONELLI44296
A14: 2021-04-10 | B14: CAN | C14: 520 | D14: 1 | F14: 5 | G14: 55 | H14: 2 | I14: 5 | J14: 5 | K14: SHIMA SHINE | L14: 48.25509 | M14: 1 | N14: -0.8916246 | O14: 0 | P14: 0 | Q14: SHIMA SHINE2 | R14: SHIMA SHINE44296
A15: 2021-04-10 | B15: CAN | C15: 520 | D15: 1 | F15: 8 | G15: 54 | H15: 2 | I15: 6 | J15: 6 | K15: BUSTER THE BRUTE | L15: 48.15214 | M15: 1 | N15: -0.8916246 | O15: 0 | P15: 0 | Q15: BUSTER THE BRUTE2 | R15: BUSTER THE BRUTE44296
A16: 2021-04-10 | B16: CAN | C16: 520 | D16: 1 | F16: 8 | G16: 60 | H16: 2 | I16: 7 | J16: 7 | K16: WEST ON OLVEE | L16: 47.53077 | M16: 1 | N16: -0.8916246 | O16: 0 | P16: 0 | Q16: WEST ON OLVEE2 | R16: WEST ON OLVEE44296
A17: 2021-04-10 | B17: CAN | C17: 520 | D17: 1 | F17: 7 | G17: 33 | H17: 2 | I17: 8 | J17: 8 | K17: WHATS UP MARTY | L17: 47.4256 | M17: 1 | N17: -0.8916246 | O17: 0 | P17: 0 | Q17: WHATS UP MARTY2 | R17: WHATS UP MARTY44296
A18: 2021-04-10 | B18: CAN | C18: 520 | D18: 1 | F18: 7 | G18: 17 | H18: 3 | I18: 1 | J18: 1 | K18: SMOKIN WITS | L18: 47.7487 | M18: 1 | N18: -0.8916246 | O18: 0 | P18: 0 | Q18: SMOKIN WITS3 | R18: SMOKIN WITS44296
A19: 2021-04-10 | B19: CAN | C19: 520 | D19: 1 | F19: 7 | G19: 55 | H19: 3 | I19: 2 | J19: 2 | K19: LILLY LANA | L19: 47.27136 | M19: 1 | N19: -0.8916246 | O19: 0 | P19: 0 | Q19: LILLY LANA3 | R19: LILLY LANA44296
A20: 2021-04-10 | B20: CAN | C20: 520 | D20: 1 | F20: 8 | G20: 38 | H20: 3 | I20: 3 | J20: 3 | K20: CANYA CRUISE | L20: 48.56277 | M20: 1 | N20: -0.8916246 | O20: 0 | P20: 0 | Q20: CANYA CRUISE3 | R20: CANYA CRUISE44296
A21: 2021-04-10 | B21: CAN | C21: 520 | D21: 1 | F21: 7 | G21: 56 | H21: 3 | I21: 4 | J21: 4 | K21: POLLYS ARIANA | L21: 47.40123 | M21: 1 | N21: -0.8916246 | O21: 0 | P21: 0 | Q21: POLLYS ARIANA3 | R21: POLLYS ARIANA44296
A22: 2021-04-10 | B22: CAN | C22: 520 | D22: 1 | F22: 7 | G22: 50 | H22: 3 | I22: 5 | J22: 5 | K22: CHIMERA MONELLI | L22: 47.85427 | M22: 1 | N22: -0.8916246 | O22: 0 | P22: 0 | Q22: CHIMERA MONELLI3 | R22: CHIMERA MONELLI44296
A23: 2021-04-10 | B23: CAN | C23: 520 | D23: 1 | F23: 8 | G23: 16 | H23: 3 | I23: 6 | J23: 6 | K23: GOT THE SWAGGER | L23: 47.5428 | M23: 1 | N23: -0.8916246 | O23: 0 | P23: 0 | Q23: GOT THE SWAGGER3 | R23: GOT THE SWAGGER44296
A24: 2021-04-10 | B24: CAN | C24: 520 | D24: 1 | F24: 5 | G24: 10 | H24: 3 | I24: 7 | J24: 7 | K24: WEST ON BRAE | L24: 47.64854 | M24: 1 | N24: -0.8916246 | O24: 0 | P24: 0 | Q24: WEST ON BRAE3 | R24: WEST ON BRAE44296
A25: 2021-04-10 | B25: CAN | C25: 520 | D25: 1 | F25: 14 | G25: 26 | H25: 3 | I25: 8 | J25: 8 | K25: RIPPIN MEMPHIS | L25: 47.71692 | M25: 1 | N25: -0.8916246 | O25: 0 | P25: 0 | Q25: RIPPIN MEMPHIS3 | R25: RIPPIN MEMPHIS44296
A26: 2021-04-10 | B26: CAN | C26: 520 | D26: 1 | F26: 35 | G26: 24 | H26: 4 | I26: 1 | J26: 1 | K26: RIPPIN PURTON | L26: 47.64462 | M26: 1 | N26: -0.8916246 | O26: 0 | P26: 0 | Q26: RIPPIN PURTON4 | R26: RIPPIN PURTON44296
A27: 2021-04-10 | B27: CAN | C27: 520 | D27: 1 | F27: 7 | G27: 16 | H27: 4 | I27: 2 | J27: 2 | K27: READY FOR MAGIC | L27: 47.20949 | M27: 1 | N27: -0.8916246 | O27: 0 | P27: 0 | Q27: READY FOR MAGIC4 | R27: READY FOR MAGIC44296
A28: 2021-04-10 | B28: CAN | C28: 520 | D28: 1 | F28: 15 | G28: 27 | H28: 4 | I28: 3 | J28: 3 | K28: CARRY ON STAR | L28: 47.90638 | M28: 1 | N28: -0.8916246 | O28: 0 | P28: 0 | Q28: CARRY ON STAR4 | R28: CARRY ON STAR44296
A29: 2021-04-10 | B29: CAN | C29: 520 | D29: 1 | F29: 14 | G29: 43 | H29: 4 | I29: 4 | J29: 4 | K29: STAR BOOK | L29: 48.00189 | M29: 1 | N29: -0.8916246 | O29: 0 | P29: 0 | Q29: STAR BOOK4 | R29: STAR BOOK44296
A30: 2021-04-10 | B30: CAN | C30: 520 | D30: 1 | F30: 35 | G30: 37 | H30: 4 | I30: 5 | J30: 5 | K30: MORE DEDUCTIONS | L30: 47.72252 | M30: 1 | N30: -0.8916246 | O30: 0 | P30: 0 | Q30: MORE DEDUCTIONS4 | R30: MORE DEDUCTIONS44296
A31: 2021-04-10 | B31: CAN | C31: 520 | D31: 1 | F31: 7 | G31: 19 | H31: 4 | I31: 6 | J31: 6 | K31: STOUT MONELLI | L31: 48.15427 | M31: 1 | N31: -0.8916246 | O31: 0 | P31: 0 | Q31: STOUT MONELLI4 | R31: STOUT MONELLI44296
A32: 2021-04-10 | B32: CAN | C32: 520 | D32: 1 | F32: 4 | G32: 28 | H32: 4 | I32: 7 | J32: 7 | K32: HAZY FLASH | L32: 47.49515 | M32: 1 | N32: -0.8916246 | O32: 0 | P32: 0 | Q32: HAZY FLASH4 | R32: HAZY FLASH44296
A33: 2021-04-10 | B33: CAN | C33: 520 | D33: 1 | F33: 7 | G33: 22 | H33: 4 | I33: 8 | J33: 8 | K33: OWL JAI | L33: 47.52442 | M33: 1 | N33: -0.8916246 | O33: 0 | P33: 0 | Q33: OWL JAI4 | R33: OWL JAI44296
A34: 2021-04-10 | B34: CAN | C34: 715 | D34: 1 | F34: 7 | G34: 60 | H34: 5 | I34: 1 | J34: 1 | K34: JAYVILLE SLICK | L34: 41.89769 | M34: 1 | N34: -0.9256495 | O34: 0 | P34: -2 | Q34: JAYVILLE SLICK5 | R34: JAYVILLE SLICK44296
A35: 2021-04-10 | B35: CAN | C35: 715 | D35: 1 | F35: 10 | G35: 12 | H35: 5 | I35: 2 | J35: 2 | K35: BECKS MONELLI | L35: 41.86358 | M35: 1 | N35: -0.9256495 | O35: 0 | P35: -2 | Q35: BECKS MONELLI5 | R35: BECKS MONELLI44296
A36: 2021-04-10 | B36: CAN | C36: 715 | D36: 1 | F36: 7 | G36: 45 | H36: 5 | I36: 3 | J36: 3 | K36: LONNIE LOOT | L36: 41.51028 | M36: 1 | N36: -0.9256495 | O36: 0 | P36: -2 | Q36: LONNIE LOOT5 | R36: LONNIE LOOT44296
A37: 2021-04-10 | B37: CAN | C37: 715 | D37: 1 | F37: 14 | G37: 31 | H37: 5 | I37: 4 | J37: 4 | K37: WEST ON ROGER | L37: 41.9618 | M37: 1 | N37: -0.9256495 | O37: 0 | P37: -2 | Q37: WEST ON ROGER5 | R37: WEST ON ROGER44296
A38: 2021-04-10 | B38: CAN | C38: 715 | D38: 1 | F38: 49 | G38: 16 | H38: 5 | I38: 6 | J38: 6 | K38: BAREFOOT TYCOON | L38: 42.2622 | M38: 1 | N38: -0.9256495 | O38: 0 | P38: -2 | Q38: BAREFOOT TYCOON5 | R38: BAREFOOT TYCOON44296
A39: 2021-04-10 | B39: CAN | C39: 715 | D39: 1 | F39: 7 | G39: 53 | H39: 5 | I39: 7 | J39: 7 | K39: CINDYS OLIVER | L39: 42.10765 | M39: 1 | N39: -0.9256495 | O39: 0 | P39: -2 | Q39: CINDYS OLIVER5 | R39: CINDYS OLIVER44296
A40: 2021-04-10 | B40: CAN | C40: 715 | D40: 1 | F40: 12 | G40: 31 | H40: 5 | I40: 8 | J40: 8 | K40: ROSTERED OFF | L40: 42.30363 | M40: 1 | N40: -0.9256495 | O40: 0 | P40: -2 | Q40: ROSTERED OFF5 | R40: ROSTERED OFF44296
A41: 2021-04-10 | B41: CAN | C41: 715 | D41: 1 | F41: 7 | G41: 47 | H41: 6 | I41: 1 | J41: 1 | K41: ZACK MONELLI | L41: 42.516 | M41: 1 | N41: -0.9256495 | O41: 0 | P41: -2 | Q41: ZACK MONELLI6 | R41: ZACK MONELLI44296
A42: 2021-04-10 | B42: CAN | C42: 715 | D42: 1 | F42: 9 | G42: 68 | H42: 6 | I42: 2 | J42: 2 | K42: MISS BELLAWOOD | L42: 41.39282 | M42: 1 | N42: -0.9256495 | O42: 0 | P42: -2 | Q42: MISS BELLAWOOD6 | R42: MISS BELLAWOOD44296
A43: 2021-04-10 | B43: CAN | C43: 715 | D43: 1 | F43: 7 | G43: 58 | H43: 6 | I43: 3 | J43: 3 | K43: JETTS CRACKER | L43: 41.76279 | M43: 1 | N43: -0.9256495 | O43: 0 | P43: -2 | Q43: JETTS CRACKER6 | R43: JETTS CRACKER44296
A44: 2021-04-10 | B44: CAN | C44: 715 | D44: 1 | F44: 7 | G44: 41 | H44: 6 | I44: 4 | J44: 4 | K44: WEST ON MIA | L44: 41.99634 | M44: 1 | N44: -0.9256495 | O44: 0 | P44: -2 | Q44: WEST ON MIA6 | R44: WEST ON MIA44296
A45: 2021-04-10 | B45: CAN | C45: 715 | D45: 1 | F45: 7 | G45: 37 | H45: 6 | I45: 6 | J45: 6 | K45: BOHEMIAN FUN | L45: 41.85918 | M45: 1 | N45: -0.9256495 | O45: 0 | P45: -2 | Q45: BOHEMIAN FUN6 | R45: BOHEMIAN FUN44296
A46: 2021-04-10 | B46: CAN | C46: 715 | D46: 1 | F46: 7 | G46: 32 | H46: 6 | I46: 7 | J46: 7 | K46: WICKED RHYTHM | L46: 42.09918 | M46: 1 | N46: -0.9256495 | O46: 0 | P46: -2 | Q46: WICKED RHYTHM6 | R46: WICKED RHYTHM44296
A47: 2021-04-10 | B47: CAN | C47: 715 | D47: 1 | F47: 7 | G47: 15 | H47: 6 | I47: 8 | J47: 8 | K47: SWEET MAMMA MIA | L47: 41.68932 | M47: 1 | N47: -0.9256495 | O47: 0 | P47: -2 | Q47: SWEET MAMMA MIA6 | R47: SWEET MAMMA MIA44296
A48: 2021-04-10 | B48: CAN | C48: 715 | D48: 1 | F48: 7 | G48: 51 | H48: 7 | I48: 1 | J48: 1 | K48: SUNSET BOURBSKI | L48: 42.45353 | M48: 1 | N48: -0.9256495 | O48: 0 | P48: -2 | Q48: SUNSET BOURBSKI7 | R48: SUNSET BOURBSKI44296
A49: 2021-04-10 | B49: CAN | C49: 715 | D49: 1 | F49: 5 | G49: 41 | H49: 7 | I49: 2 | J49: 2 | K49: LEE ALI | L49: 41.69958 | M49: 1 | N49: -0.9256495 | O49: 0 | P49: -2 | Q49: LEE ALI7 | R49: LEE ALI44296
A50: 2021-04-10 | B50: CAN | C50: 715 | D50: 1 | F50: 7 | G50: 29 | H50: 7 | I50: 3 | J50: 3 | K50: BILLYS THE BOSS | L50: 41.75847 | M50: 1 | N50: -0.9256495 | O50: 0 | P50: -2 | Q50: BILLYS THE BOSS7 | R50: BILLYS THE BOSS44296
A51: 2021-04-10 | B51: CAN | C51: 715 | D51: 1 | F51: 7 | G51: 53 | H51: 7 | I51: 4 | J51: 4 | K51: TRUE DETECTIVE | L51: 41.621 | M51: 1 | N51: -0.9256495 | O51: 0 | P51: -2 | Q51: TRUE DETECTIVE7 | R51: TRUE DETECTIVE44296
A52: 2021-04-10 | B52: CAN | C52: 715 | D52: 1 | F52: 7 | G52: 49 | H52: 7 | I52: 6 | J52: 6 | K52: WEST ON MAGADA | L52: 41.54861 | M52: 1 | N52: -0.9256495 | O52: 0 | P52: -2 | Q52: WEST ON MAGADA7 | R52: WEST ON MAGADA44296
A53: 2021-04-10 | B53: CAN | C53: 715 | D53: 1 | F53: 7 | G53: 99 | H53: 7 | I53: 7 | J53: 7 | K53: INVERSION | L53: 41.32484 | M53: 1 | N53: -0.9256495 | O53: 0 | P53: -2 | Q53: INVERSION7 | R53: INVERSION44296
A54: 2021-04-10 | B54: CAN | C54: 715 | D54: 1 | F54: 7 | G54: 42 | H54: 7 | I54: 8 | J54: 8 | K54: WE THE PEOPLE | L54: 41.9693 | M54: 1 | N54: -0.9256495 | O54: 0 | P54: -2 | Q54: WE THE PEOPLE7 | R54: WE THE PEOPLE44296
A55: 2021-04-10 | B55: CAN | C55: 715 | D55: 1 | F55: 14 | G55: 48 | H55: 8 | I55: 1 | J55: 1 | K55: VAN BUREN | L55: 41.80404 | M55: 1 | N55: -0.9256495 | O55: 0 | P55: -2 | Q55: VAN BUREN8 | R55: VAN BUREN44296
A56: 2021-04-10 | B56: CAN | C56: 715 | D56: 1 | F56: 7 | G56: 59 | H56: 8 | I56: 2 | J56: 2 | K56: MISTER HARLEWOOD | L56: 41.51253 | M56: 1 | N56: -0.9256495 | O56: 0 | P56: -2 | Q56: MISTER HARLEWOOD8 | R56: MISTER HARLEWOOD44296
A57: 2021-04-10 | B57: CAN | C57: 715 | D57: 1 | F57: 21 | G57: 43 | H57: 8 | I57: 3 | J57: 3 | K57: HE SHALL POWER | L57: 42.13752 | M57: 1 | N57: -0.9256495 | O57: 0 | P57: -2 | Q57: HE SHALL POWER8 | R57: HE SHALL POWER44296
A58: 2021-04-10 | B58: CAN | C58: 715 | D58: 1 | F58: 6 | G58: 90 | H58: 8 | I58: 4 | J58: 4 | K58: FAB PHILIPPE | L58: 41.30272 | M58: 1 | N58: -0.9256495 | O58: 0 | P58: -2 | Q58: FAB PHILIPPE8 | R58: FAB PHILIPPE44296
A59: 2021-04-10 | B59: CAN | C59: 715 | D59: 1 | F59: 7 | G59: 47 | H59: 8 | I59: 6 | J59: 6 | K59: SON OF PRINCESS | L59: 41.69206 | M59: 1 | N59: -0.9256495 | O59: 0 | P59: -2 | Q59: SON OF PRINCESS8 | R59: SON OF PRINCESS44296
A60: 2021-04-10 | B60: CAN | C60: 715 | D60: 1 | F60: 10 | G60: 21 | H60: 8 | I60: 7 | J60: 7 | K60: LASHES MONELLI | L60: 41.76274 | M60: 1 | N60: -0.9256495 | O60: 0 | P60: -2 | Q60: LASHES MONELLI8 | R60: LASHES MONELLI44296
A61: 2021-04-10 | B61: CAN | C61: 715 | D61: 1 | F61: 7 | G61: 77 | H61: 8 | I61: 8 | J61: 8 | K61: SO TOUGH | L61: 41.44485 | M61: 1 | N61: -0.9256495 | O61: 0 | P61: -2 | Q61: SO TOUGH8 | R61: SO TOUGH44296
A62: 2021-04-10 | B62: CAN | C62: 520 | D62: 1 | F62: 7 | G62: 30 | H62: 9 | I62: 1 | J62: 1 | K62: RAZORS EDGE | L62: 47.01373 | M62: 1 | N62: -0.8916246 | O62: 0 | P62: 0 | Q62: RAZORS EDGE9 | R62: RAZORS EDGE44296
A63: 2021-04-10 | B63: CAN | C63: 520 | D63: 1 | F63: 7 | G63: 17 | H63: 9 | I63: 2 | J63: 2 | K63: PROJECTORY | L63: 47.67148 | M63: 1 | N63: -0.8916246 | O63: 0 | P63: 0 | Q63: PROJECTORY9 | R63: PROJECTORY44296
A64: 2021-04-10 | B64: CAN | C64: 520 | D64: 1 | F64: 7 | G64: 51 | H64: 9 | I64: 3 | J64: 3 | K64: SIR MONTY | L64: 47.86114 | M64: 1 | N64: -0.8916246 | O64: 0 | P64: 0 | Q64: SIR MONTY9 | R64: SIR MONTY44296
A65: 2021-04-10 | B65: CAN | C65: 520 | D65: 1 | F65: 3 | G65: 18 | H65: 9 | I65: 4 | J65: 4 | K65: ZIPPER ROGUE | L65: 47.39785 | M65: 1 | N65: -0.8916246 | O65: 0 | P65: 0 | Q65: ZIPPER ROGUE9 | R65: ZIPPER ROGUE44296
A66: 2021-04-10 | B66: CAN | C66: 520 | D66: 1 | F66: 7 | G66: 49 | H66: 9 | I66: 5 | J66: 5 | K66: RAMBOS BOY | L66: 47.85933 | M66: 1 | N66: -0.8916246 | O66: 0 | P66: 0 | Q66: RAMBOS BOY9 | R66: RAMBOS BOY44296
A67: 2021-04-10 | B67: CAN | C67: 520 | D67: 1 | F67: 7 | G67: 36 | H67: 9 | I67: 6 | J67: 6 | K67: ASTON THUNDER | L67: 47.61563 | M67: 1 | N67: -0.8916246 | O67: 0 | P67: 0 | Q67: ASTON THUNDER9 | R67: ASTON THUNDER44296
A68: 2021-04-10 | B68: CAN | C68: 520 | D68: 1 | F68: 8 | G68: 81 | H68: 9 | I68: 7 | J68: 7 | K68: CHOMP MONELLI | L68: 47.70399 | M68: 1 | N68: -0.8916246 | O68: 0 | P68: 0 | Q68: CHOMP MONELLI9 | R68: CHOMP MONELLI44296
A69: 2021-04-10 | B69: CAN | C69: 520 | D69: 1 | F69: 6 | G69: 60 | H69: 9 | I69: 8 | J69: 8 | K69: MANADO MAGIC | L69: 47.42673 | M69: 1 | N69: -0.8916246 | O69: 0 | P69: 0 | Q69: MANADO MAGIC9 | R69: MANADO MAGIC44296
A70: 2021-04-10 | B70: CAN | C70: 520 | D70: 1 | F70: 6 | G70: 69 | H70: 10 | I70: 1 | J70: 1 | K70: BANJOS GIRL | L70: 47.45928 | M70: 1 | N70: -0.8916246 | O70: 0 | P70: 0 | Q70: BANJOS GIRL10 | R70: BANJOS GIRL44296
A71: 2021-04-10 | B71: CAN | C71: 520 | D71: 1 | F71: 7 | G71: 30 | H71: 10 | I71: 2 | J71: 2 | K71: WEBLEC BLOOM | L71: 47.57943 | M71: 1 | N71: -0.8916246 | O71: 0 | P71: 0 | Q71: WEBLEC BLOOM10 | R71: WEBLEC BLOOM44296
A72: 2021-04-10 | B72: CAN | C72: 520 | D72: 1 | F72: 7 | G72: 58 | H72: 10 | I72: 3 | J72: 3 | K72: CORAZON DE LEON | L72: 47.46578 | M72: 1 | N72: -0.8916246 | O72: 0 | P72: 0 | Q72: CORAZON DE LEON10 | R72: CORAZON DE LEON44296
A73: 2021-04-10 | B73: CAN | C73: 520 | D73: 1 | F73: 14 | G73: 36 | H73: 10 | I73: 4 | J73: 4 | K73: WISE THUNDER | L73: 47.80218 | M73: 1 | N73: -0.8916246 | O73: 0 | P73: 0 | Q73: WISE THUNDER10 | R73: WISE THUNDER44296
A74: 2021-04-10 | B74: CAN | C74: 520 | D74: 1 | F74: 148 | G74: 53 | H74: 10 | I74: 5 | J74: 5 | K74: MERMAID MONELLI | L74: 47.89819 | M74: 1 | N74: -0.8916246 | O74: 0 | P74: 0 | Q74: MERMAID MONELLI10 | R74: MERMAID MONELLI44296
A75: 2021-04-10 | B75: CAN | C75: 520 | D75: 1 | F75: 35 | G75: 43 | H75: 10 | I75: 6 | J75: 6 | K75: SOLE TRADER | L75: 47.24479 | M75: 1 | N75: -0.8916246 | O75: 0 | P75: 0 | Q75: SOLE TRADER10 | R75: SOLE TRADER44296
A76: 2021-04-10 | B76: CAN | C76: 520 | D76: 1 | F76: 29 | G76: 45 | H76: 10 | I76: 7 | J76: 7 | K76: ALL ZIPPED UP | L76: 47.80662 | M76: 1 | N76: -0.8916246 | O76: 0 | P76: 0 | Q76: ALL ZIPPED UP10 | R76: ALL ZIPPED UP44296
A77: 2021-04-10 | B77: CAN | C77: 520 | D77: 1 | F77: 7 | G77: 59 | H77: 10 | I77: 8 | J77: 8 | K77: SPEED MISSILE | L77: 47.53819 | M77: 1 | N77: -0.8916246 | O77: 0 | P77: 0 | Q77: SPEED MISSILE10 | R77: SPEED MISSILE44296
A78: 2021-04-10 | B78: CAN | C78: 520 | D78: 1 | F78: 7 | G78: 36 | H78: 11 | I78: 1 | J78: 1 | K78: JET A ONE | L78: 47.58874 | M78: 1 | N78: -0.8916246 | O78: 0 | P78: 0 | Q78: JET A ONE11 | R78: JET A ONE44296
A79: 2021-04-10 | B79: CAN | C79: 520 | D79: 1 | F79: 7 | G79: 47 | H79: 11 | I79: 2 | J79: 2 | K79: JACKSON COUNTY | L79: 47.74808 | M79: 1 | N79: -0.8916246 | O79: 0 | P79: 0 | Q79: JACKSON COUNTY11 | R79: JACKSON COUNTY44296
A80: 2021-04-10 | B80: CAN | C80: 520 | D80: 1 | F80: 7 | G80: 56 | H80: 11 | I80: 3 | J80: 3 | K80: FERNANDO STAR | L80: 47.87749 | M80: 1 | N80: -0.8916246 | O80: 0 | P80: 0 | Q80: FERNANDO STAR11 | R80: FERNANDO STAR44296
A81: 2021-04-10 | B81: CAN | C81: 520 | D81: 1 | F81: 7 | G81: 69 | H81: 11 | I81: 4 | J81: 4 | K81: CHEVYS ENTRY | L81: 47.92359 | M81: 1 | N81: -0.8916246 | O81: 0 | P81: 0 | Q81: CHEVYS ENTRY11 | R81: CHEVYS ENTRY44296
A82: 2021-04-10 | B82: CAN | C82: 520 | D82: 1 | F82: 7 | G82: 36 | H82: 11 | I82: 5 | J82: 5 | K82: JET JACKSON | L82: 47.42854 | M82: 1 | N82: -0.8916246 | O82: 0 | P82: 0 | Q82: JET JACKSON11 | R82: JET JACKSON44296
A83: 2021-04-10 | B83: CAN | C83: 520 | D83: 1 | F83: 35 | G83: 50 | H83: 11 | I83: 6 | J83: 6 | K83: SHAMROCK BOY | L83: 47.4085 | M83: 1 | N83: -0.8916246 | O83: 0 | P83: 0 | Q83: SHAMROCK BOY11 | R83: SHAMROCK BOY44296
A84: 2021-04-10 | B84: CAN | C84: 520 | D84: 1 | F84: 29 | G84: 58 | H84: 11 | I84: 7 | J84: 7 | K84: OVERBITE | L84: 47.25792 | M84: 1 | N84: -0.8916246 | O84: 0 | P84: 0 | Q84: OVERBITE11 | R84: OVERBITE44296
A85: 2021-04-10 | B85: CAN | C85: 520 | D85: 1 | F85: 7 | G85: 61 | H85: 11 | I85: 8 | J85: 8 | K85: WITHERS MONELLI | L85: 48.02731 | M85: 1 | N85: -0.8916246 | O85: 0 | P85: 0 | Q85: WITHERS MONELLI11 | R85: WITHERS MONELLI44296
A86: 2021-04-10 | B86: CAN | C86: 380 | D86: 6 | F86: 6 | G86: 24 | H86: 12 | I86: 1 | J86: 1 | K86: LADY FLASH | L86: 29.41543 | M86: 1 | N86: -1.010512 | O86: 0 | P86: 0 | Q86: LADY FLASH12 | R86: LADY FLASH44296
A87: 2021-04-10 | B87: CAN | C87: 380 | D87: 6 | F87: 14 | G87: 37 | H87: 12 | I87: 2 | J87: 2 | K87: PAD UP TILLY | L87: 29.81451 | M87: 1 | N87: -1.010512 | O87: 0 | P87: 0 | Q87: PAD UP TILLY12 | R87: PAD UP TILLY44296
A88: 2021-04-10 | B88: CAN | C88: 380 | D88: 6 | F88: 4 | G88: 20 | H88: 12 | I88: 3 | J88: 3 | K88: EYES NOSE LIPS | L88: 30.1222 | M88: 1 | N88: -1.010512 | O88: 0 | P88: 0 | Q88: EYES NOSE LIPS12 | R88: EYES NOSE LIPS44296
A89: 2021-04-10 | B89: CAN | C89: 380 | D89: 6 | F89: 6 | G89: 10 | H89: 12 | I89: 4 | J89: 4 | K89: TOP FUN | L89: 29.8679 | M89: 1 | N89: -1.010512 | O89: 0 | P89: 0 | Q89: TOP FUN12 | R89: TOP FUN44296
A90: 2021-04-10 | B90: CAN | C90: 380 | D90: 6 | F90: 74 | G90: 17 | H90: 12 | I90: 5 | J90: 5 | K90: DINKYDI LILLY | L90: 29.71175 | M90: 1 | N90: -1.010512 | O90: 0 | P90: 0 | Q90: DINKYDI LILLY12 | R90: DINKYDI LILLY44296
A91: 2021-04-10 | B91: CAN | C91: 380 | D91: 6 | F91: 6 | G91: 32 | H91: 12 | I91: 6 | J91: 6 | K91: TURBO CHARGER | L91: 29.60302 | M91: 1 | N91: -1.010512 | O91: 0 | P91: 0 | Q91: TURBO CHARGER12 | R91: TURBO CHARGER44296
A92: 2021-04-10 | B92: CAN | C92: 380 | D92: 6 | F92: 52 | G92: 14 | H92: 12 | I92: 7 | J92: 7 | K92: SHAMYLA | L92: 29.42799 | M92: 1 | N92: -1.010512 | O92: 0 | P92: 0 | Q92: SHAMYLA12 | R92: SHAMYLA44296
A93: 2021-04-10 | B93: CAN | C93: 380 | D93: 6 | F93: 13 | G93: 10 | H93: 12 | I93: 8 | J93: 8 | K93: BILL BO | L93: 29.01381 | M93: 1 | N93: -1.010512 | O93: 0 | P93: 0 | Q93: BILL BO12 | R93: BILL BO44296
A94: 2021-04-10 | B94: DUB | C94: 318 | D94: 8 | F94: 12 | G94: 4 | H94: 1 | I94: 1 | J94: 1 | K94: DARK WATERS | L94: 16.12822 | M94: 1 | N94: -0.9808864 | O94: 0 | P94: 0 | Q94: DARK WATERS1 | R94: DARK WATERS44296
A95: 2021-04-10 | B95: DUB | C95: 318 | D95: 8 | F95: 2 | G95: 8 | H95: 1 | I95: 2 | J95: 2 | K95: WHATS TO COME | L95: 16.00614 | M95: 1 | N95: -0.9808864 | O95: 0 | P95: 0 | Q95: WHATS TO COME1 | R95: WHATS TO COME44296
A96: 2021-04-10 | B96: DUB | C96: 318 | D96: 8 | F96: 7 | G96: 29 | H96: 1 | I96: 3 | J96: 3 | K96: MRS BROWN | L96: 15.93082 | M96: 1 | N96: -0.9808864 | O96: 0 | P96: 0 | Q96: MRS BROWN1 | R96: MRS BROWN44296
A97: 2021-04-10 | B97: DUB | C97: 318 | D97: 8 | F97: 189 | G97: 3 | H97: 1 | I97: 4 | J97: 4 | K97: LUMEAH GIRL | L97: 15.42529 | M97: 1 | N97: -0.9808864 | O97: 0 | P97: 0 | Q97: LUMEAH GIRL1 | R97: LUMEAH GIRL44296
A98: 2021-04-10 | B98: DUB | C98: 318 | D98: 8 | F98: 28 | G98: 5 | H98: 1 | I98: 5 | J98: 5 | K98: STRIDER | L98: 15.87548 | M98: 1 | N98: -0.9808864 | O98: 0 | P98: 0 | Q98: STRIDER1 | R98: STRIDER44296
A99: 2021-04-10 | B99: DUB | C99: 318 | D99: 8 | F99: 14 | G99: 6 | H99: 1 | I99: 6 | J99: 6 | K99: DANA BIG PETE | L99: 16.36843 | M99: 1 | N99: -0.9808864 | O99: 0 | P99: 0 | Q99: DANA BIG PETE1 | R99: DANA BIG PETE44296
A100: 2021-04-10 | B100: DUB | C100: 318 | D100: 8 | F100: 7 | G100: 7 | H100: 1 | I100: 7 | J100: 7 | K100: ARROGANT ANDY | L100: 16.09255 | M100: 1 | N100: -0.9808864 | O100: 0 | P100: 0 | Q100: ARROGANT ANDY1 | R100: ARROGANT ANDY44296
A101: 2021-04-10 | B101: DUB | C101: 318 | D101: 8 | F101: 0 | G101: 1 | H101: 1 | I101: 8 | J101: 8 | K101: BOGAN RAIDER | L101: 15.68665 | M101: 1 | N101: -0.9808864 | O101: 1 | P101: 0 | Q101: BOGAN RAIDER1 | R101: BOGAN RAIDER44296
A102: 2021-04-10 | B102: DUB | C102: 318 | D102: 5 | F102: 16 | G102: 40 | H102: 2 | I102: 1 | J102: 1 | K102: DRUNKEN MEG | L102: 16.00985 | M102: 1 | N102: -0.9808864 | O102: 0 | P102: -1 | Q102: DRUNKEN MEG2 | R102: DRUNKEN MEG44296
A103: 2021-04-10 | B103: DUB | C103: 318 | D103: 5 | F103: 28 | G103: 53 | H103: 2 | I103: 3 | J103: 3 | K103: SIMON RALPH | L103: 16.00131 | M103: 1 | N103: -0.9808864 | O103: 0 | P103: -1 | Q103: SIMON RALPH2 | R103: SIMON RALPH44296
A104: 2021-04-10 | B104: DUB | C104: 318 | D104: 5 | F104: 16 | G104: 18 | H104: 2 | I104: 4 | J104: 4 | K104: COURTNEYS CHARM | L104: 16.24716 | M104: 1 | N104: -0.9808864 | O104: 0 | P104: -1 | Q104: COURTNEYS CHARM2 | R104: COURTNEYS CHARM44296
A105: 2021-04-10 | B105: DUB | C105: 318 | D105: 5 | F105: 7 | G105: 18 | H105: 2 | I105: 6 | J105: 6 | K105: MIDNIGHT DIESEL | L105: 16.27604 | M105: 1 | N105: -0.9808864 | O105: 0 | P105: -1 | Q105: MIDNIGHT DIESEL2 | R105: MIDNIGHT DIESEL44296
A106: 2021-04-10 | B106: DUB | C106: 318 | D106: 5 | F106: 7 | G106: 16 | H106: 2 | I106: 7 | J106: 7 | K106: SPRINKLE FUSION | L106: 16.85347 | M106: 1 | N106: -0.9808864 | O106: 0 | P106: -1 | Q106: SPRINKLE FUSION2 | R106: SPRINKLE FUSION44296
A107: 2021-04-10 | B107: DUB | C107: 318 | D107: 5 | F107: 5 | G107: 27 | H107: 3 | I107: 1 | J107: 1 | K107: MULBERRY MEG | L107: 15.99856 | M107: 1 | N107: -0.9808864 | O107: 0 | P107: -1 | Q107: MULBERRY MEG3 | R107: MULBERRY MEG44296
A108: 2021-04-10 | B108: DUB | C108: 318 | D108: 5 | F108: 7 | G108: 31 | H108: 3 | I108: 3 | J108: 3 | K108: BLACKPOOL GRACE | L108: 16.39293 | M108: 1 | N108: -0.9808864 | O108: 0 | P108: -1 | Q108: BLACKPOOL GRACE3 | R108: BLACKPOOL GRACE44296
A109: 2021-04-10 | B109: DUB | C109: 318 | D109: 5 | F109: 14 | G109: 69 | H109: 3 | I109: 4 | J109: 4 | K109: GET THERE | L109: 15.79259 | M109: 1 | N109: -0.9808864 | O109: 0 | P109: -1 | Q109: GET THERE3 | R109: GET THERE44296
A110: 2021-04-10 | B110: DUB | C110: 318 | D110: 5 | F110: 19 | G110: 32 | H110: 3 | I110: 5 | J110: 5 | K110: FIRE FLY DUSTY | L110: 15.89829 | M110: 1 | N110: -0.9808864 | O110: 0 | P110: -1 | Q110: FIRE FLY DUSTY3 | R110: FIRE FLY DUSTY44296
A111: 2021-04-10 | B111: DUB | C111: 318 | D111: 5 | F111: 7 | G111: 85 | H111: 3 | I111: 6 | J111: 6 | K111: ARROGANT BOBBY | L111: 16.15129 | M111: 1 | N111: -0.9808864 | O111: 0 | P111: -1 | Q111: ARROGANT BOBBY3 | R111: ARROGANT BOBBY44296
A112: 2021-04-10 | B112: DUB | C112: 318 | D112: 5 | F112: 40 | G112: 21 | H112: 3 | I112: 7 | J112: 7 | K112: TOUCH OF FEVER | L112: 16.00696 | M112: 1 | N112: -0.9808864 | O112: 0 | P112: -1 | Q112: TOUCH OF FEVER3 | R112: TOUCH OF FEVER44296
A113: 2021-04-10 | B113: DUB | C113: 318 | D113: 5 | E113: A LEE | F113: 5 | G113: 19 | H113: 3 | I113: 8 | J113: 8 | K113: SKAIKRU | L113: 15.83493 | M113: 1 | N113: -0.9808864 | O113: 0 | P113: -1 | Q113: SKAIKRU3 | R113: SKAIKRU44296
A114: 2021-04-10 | B114: DUB | C114: 318 | D114: 5 | F114: 7 | G114: 35 | H114: 4 | I114: 1 | J114: 1 | K114: SPRING HILL GIRL | L114: 16.00896 | M114: 1 | N114: -0.9808864 | O114: 0 | P114: -1 | Q114: SPRING HILL GIRL4 | R114: SPRING HILL GIRL44296
A115: 2021-04-10 | B115: DUB | C115: 318 | D115: 5 | F115: 7 | G115: 12 | H115: 4 | I115: 2 | J115: 2 | K115: SPRING CRASH | L115: 16.26656 | M115: 1 | N115: -0.9808864 | O115: 0 | P115: -1 | Q115: SPRING CRASH4 | R115: SPRING CRASH44296
A116: 2021-04-10 | B116: DUB | C116: 318 | D116: 5 | F116: 5 | G116: 12 | H116: 4 | I116: 3 | J116: 3 | K116: CRYSTAL MAIDEN | L116: 16.29499 | M116: 1 | N116: -0.9808864 | O116: 0 | P116: -1 | Q116: CRYSTAL MAIDEN4 | R116: CRYSTAL MAIDEN44296
A117: 2021-04-10 | B117: DUB | C117: 318 | D117: 5 | F117: 7 | G117: 2 | H117: 4 | I117: 5 | J117: 5 | K117: FUSION SPARTAN | L117: 15.22881 | M117: 1 | N117: -0.9808864 | O117: 0 | P117: -1 | Q117: FUSION SPARTAN4 | R117: FUSION SPARTAN44296
A118: 2021-04-10 | B118: DUB | C118: 318 | D118: 5 | F118: 7 | G118: 17 | H118: 4 | I118: 6 | J118: 6 | K118: SOLD NO HOUSES | L118: 15.91045 | M118: 1 | N118: -0.9808864 | O118: 0 | P118: -1 | Q118: SOLD NO HOUSES4 | R118: SOLD NO HOUSES44296
A119: 2021-04-10 | B119: DUB | C119: 318 | D119: 5 | F119: 7 | G119: 4 | H119: 4 | I119: 7 | J119: 7 | K119: LITTLE CREEK | L119: 16.32863 | M119: 1 | N119: -0.9808864 | O119: 0 | P119: -1 | Q119: LITTLE CREEK4 | R119: LITTLE CREEK44296
A120: 2021-04-10 | B120: DUB | C120: 318 | D120: 5 | F120: 169 | G120: 9 | H120: 4 | I120: 8 | J120: 8 | K120: BOGAN WEIR | L120: 15.73084 | M120: 1 | N120: -0.9808864 | O120: 0 | P120: -1 | Q120: BOGAN WEIR4 | R120: BOGAN WEIR44296
A121: 2021-04-10 | B121: DUB | C121: 318 | D121: 5 | F121: 7 | G121: 16 | H121: 4 | I121: 9 | J121: 4 | K121: FROM THE BRONX | L121: 16.21707 | M121: 1 | N121: -0.9808864 | O121: 0 | P121: -1 | Q121: FROM THE BRONX4 | R121: FROM THE BRONX44296
A122: 2021-04-10 | B122: DUB | C122: 516 | D122: 5 | F122: 7 | G122: 11 | H122: 5 | I122: 1 | J122: 1 | K122: SWIFT KEVIN | L122: 47.21553 | M122: 1 | N122: -0.8916246 | O122: 0 | P122: 0 | Q122: SWIFT KEVIN5 | R122: SWIFT KEVIN44296
A123: 2021-04-10 | B123: DUB | C123: 516 | D123: 5 | F123: 7 | G123: 7 | H123: 5 | I123: 2 | J123: 2 | K123: SWIFT JERRY | L123: 47.16784 | M123: 1 | N123: -0.8916246 | O123: 0 | P123: 0 | Q123: SWIFT JERRY5 | R123: SWIFT JERRY44296
A124: 2021-04-10 | B124: DUB | C124: 516 | D124: 5 | F124: 7 | G124: 12 | H124: 5 | I124: 3 | J124: 3 | K124: TOTAL BURNER | L124: 47.09414 | M124: 1 | N124: -0.8916246 | O124: 0 | P124: 0 | Q124: TOTAL BURNER5 | R124: TOTAL BURNER44296
A125: 2021-04-10 | B125: DUB | C125: 516 | D125: 5 | F125: 16 | G125: 7 | H125: 5 | I125: 4 | J125: 4 | K125: TOTAL BOGLE | L125: 47.14253 | M125: 1 | N125: -0.8916246 | O125: 0 | P125: 0 | Q125: TOTAL BOGLE5 | R125: TOTAL BOGLE44296
A126: 2021-04-10 | B126: DUB | C126: 516 | D126: 5 | F126: 5 | G126: 29 | H126: 5 | I126: 5 | J126: 5 | K126: RUMMY TUM TUM | L126: 47.02665 | M126: 1 | N126: -0.8916246 | O126: 0 | P126: 0 | Q126: RUMMY TUM TUM5 | R126: RUMMY TUM TUM44296
A127: 2021-04-10 | B127: DUB | C127: 516 | D127: 5 | F127: 16 | G127: 30 | H127: 5 | I127: 6 | J127: 6 | K127: WINLOCK HARLOW | L127: 47.27047 | M127: 1 | N127: -0.8916246 | O127: 0 | P127: 0 | Q127: WINLOCK HARLOW5 | R127: WINLOCK HARLOW44296
A128: 2021-04-10 | B128: DUB | C128: 516 | D128: 5 | F128: 7 | G128: 2 | H128: 5 | I128: 8 | J128: 8 | K128: BONNIE KEEPING | L128: 47.66915 | M128: 1 | N128: -0.8916246 | O128: 0 | P128: 0 | Q128: BONNIE KEEPING5 | R128: BONNIE KEEPING44296
A129: 2021-04-10 | B129: DUB | C129: 400 | D129: 5 | F129: 7 | G129: 16 | H129: 6 | I129: 1 | J129: 1 | K129: SPRING BARTY | L129: 27.13008 | M129: 1 | N129: -0.8602497 | O129: 0 | P129: 0 | Q129: SPRING BARTY6 | R129: SPRING BARTY44296
A130: 2021-04-10 | B130: DUB | C130: 400 | D130: 5 | F130: 376 | G130: 8 | H130: 6 | I130: 2 | J130: 2 | K130: HOPE KEEPING | L130: 26.2521 | M130: 1 | N130: -0.8602497 | O130: 0 | P130: 0 | Q130: HOPE KEEPING6 | R130: HOPE KEEPING44296
A131: 2021-04-10 | B131: DUB | C131: 400 | D131: 5 | F131: 14 | G131: 19 | H131: 6 | I131: 3 | J131: 3 | K131: SECRET SNAPS | L131: 26.68533 | M131: 1 | N131: -0.8602497 | O131: 0 | P131: 0 | Q131: SECRET SNAPS6 | R131: SECRET SNAPS44296
A132: 2021-04-10 | B132: DUB | C132: 400 | D132: 5 | E132: A LANGTON | F132: 7 | G132: 91 | H132: 6 | I132: 4 | J132: 4 | K132: TELEGRAPH ROAD | L132: 25.75019 | M132: 1 | N132: -0.8602497 | O132: 0 | P132: 0 | Q132: TELEGRAPH ROAD6 | R132: TELEGRAPH ROAD44296
A133: 2021-04-10 | B133: DUB | C133: 400 | D133: 5 | F133: 7 | G133: 16 | H133: 6 | I133: 5 | J133: 5 | K133: OH MATE SPRINGER | L133: 26.39259 | M133: 1 | N133: -0.8602497 | O133: 0 | P133: 0 | Q133: OH MATE SPRINGER6 | R133: OH MATE SPRINGER44296
A134: 2021-04-10 | B134: DUB | C134: 400 | D134: 5 | F134: 7 | G134: 23 | H134: 6 | I134: 6 | J134: 6 | K134: SWIFT DYLAN | L134: 26.89483 | M134: 1 | N134: -0.8602497 | O134: 0 | P134: 0 | Q134: SWIFT DYLAN6 | R134: SWIFT DYLAN44296
A135: 2021-04-10 | B135: DUB | C135: 400 | D135: 5 | F135: 16 | G135: 26 | H135: 6 | I135: 7 | J135: 7 | K135: BOREE BELLE | L135: 26.57442 | M135: 1 | N135: -0.8602497 | O135: 0 | P135: 0 | Q135: BOREE BELLE6 | R135: BOREE BELLE44296
A136: 2021-04-10 | B136: DUB | C136: 400 | D136: 5 | F136: 7 | G136: 64 | H136: 6 | I136: 8 | J136: 8 | K136: DRUNKEN KID | L136: 25.95289 | M136: 1 | N136: -0.8602497 | O136: 0 | P136: 0 | Q136: DRUNKEN KID6 | R136: DRUNKEN KID44296
A137: 2021-04-10 | B137: DUB | C137: 400 | D137: 4 | F137: 7 | G137: 21 | H137: 7 | I137: 1 | J137: 1 | K137: WESTERN HERO | L137: 27.38079 | M137: 1 | N137: -0.8602497 | O137: 0 | P137: 0 | Q137: WESTERN HERO7 | R137: WESTERN HERO44296
A138: 2021-04-10 | B138: DUB | C138: 400 | D138: 4 | F138: 16 | G138: 22 | H138: 7 | I138: 2 | J138: 2 | K138: SNOOZE MCGRAW | L138: 27.04889 | M138: 1 | N138: -0.8602497 | O138: 0 | P138: 0 | Q138: SNOOZE MCGRAW7 | R138: SNOOZE MCGRAW44296
A139: 2021-04-10 | B139: DUB | C139: 400 | D139: 4 | F139: 5 | G139: 32 | H139: 7 | I139: 3 | J139: 3 | K139: LIGHT EM SPARKY | L139: 26.55157 | M139: 1 | N139: -0.8602497 | O139: 0 | P139: 0 | Q139: LIGHT EM SPARKY7 | R139: LIGHT EM SPARKY44296
A140: 2021-04-10 | B140: DUB | C140: 400 | D140: 4 | F140: 7 | G140: 31 | H140: 7 | I140: 4 | J140: 4 | K140: FUSION SPLIT | L140: 26.76903 | M140: 1 | N140: -0.8602497 | O140: 0 | P140: 0 | Q140: FUSION SPLIT7 | R140: FUSION SPLIT44296
A141: 2021-04-10 | B141: DUB | C141: 400 | D141: 4 | F141: 16 | G141: 66 | H141: 7 | I141: 5 | J141: 5 | K141: BREA CASEY | L141: 26.56349 | M141: 1 | N141: -0.8602497 | O141: 0 | P141: 0 | Q141: BREA CASEY7 | R141: BREA CASEY44296
A142: 2021-04-10 | B142: DUB | C142: 400 | D142: 4 | F142: 20 | G142: 44 | H142: 7 | I142: 6 | J142: 6 | K142: SQUIGGLE KEEPING | L142: 27.91527 | M142: 1 | N142: -0.8602497 | O142: 0 | P142: 0 | Q142: SQUIGGLE KEEPING7 | R142: SQUIGGLE KEEPING44296
A143: 2021-04-10 | B143: DUB | C143: 400 | D143: 4 | F143: 7 | G143: 6 | H143: 7 | I143: 7 | J143: 7 | K143: SPRING AGGIE | L143: 26.62183 | M143: 1 | N143: -0.8602497 | O143: 0 | P143: 0 | Q143: SPRING AGGIE7 | R143: SPRING AGGIE44296
A144: 2021-04-10 | B144: DUB | C144: 400 | D144: 4 | F144: 12 | G144: 52 | H144: 7 | I144: 8 | J144: 8 | K144: SWIFT JILL | L144: 26.43467 | M144: 1 | N144: -0.8602497 | O144: 0 | P144: 0 | Q144: SWIFT JILL7 | R144: SWIFT JILL44296
A145: 2021-04-10 | B145: DUB | C145: 318 | D145: 5 | F145: 7 | G145: 10 | H145: 8 | I145: 1 | J145: 1 | K145: KIMBERLEY CARGO | L145: 16.01072 | M145: 1 | N145: -0.9808864 | O145: 0 | P145: -1 | Q145: KIMBERLEY CARGO8 | R145: KIMBERLEY CARGO44296
A146: 2021-04-10 | B146: DUB | C146: 318 | D146: 5 | F146: 7 | G146: 11 | H146: 8 | I146: 2 | J146: 2 | K146: FUSION ART | L146: 16.25374 | M146: 1 | N146: -0.9808864 | O146: 0 | P146: -1 | Q146: FUSION ART8 | R146: FUSION ART44296
A147: 2021-04-10 | B147: DUB | C147: 318 | D147: 5 | F147: 7 | G147: 13 | H147: 8 | I147: 3 | J147: 3 | K147: ACTIVE NUGGET | L147: 16.34025 | M147: 1 | N147: -0.9808864 | O147: 0 | P147: -1 | Q147: ACTIVE NUGGET8 | R147: ACTIVE NUGGET44296
A148: 2021-04-10 | B148: DUB | C148: 318 | D148: 5 | F148: 7 | G148: 6 | H148: 8 | I148: 5 | J148: 5 | K148: FUSION CADET | L148: 16.56437 | M148: 1 | N148: -0.9808864 | O148: 0 | P148: -1 | Q148: FUSION CADET8 | R148: FUSION CADET44296
A149: 2021-04-10 | B149: DUB | C149: 318 | D149: 5 | F149: 7 | G149: 14 | H149: 8 | I149: 7 | J149: 7 | K149: ACT NOW | L149: 16.22421 | M149: 1 | N149: -0.9808864 | O149: 0 | P149: -1 | Q149: ACT NOW8 | R149: ACT NOW44296
A150: 2021-04-10 | B150: DUB | C150: 318 | D150: 5 | F150: 7 | G150: 35 | H150: 8 | I150: 8 | J150: 8 | K150: BENS LAD | L150: 16.21329 | M150: 1 | N150: -0.9808864 | O150: 0 | P150: -1 | Q150: BENS LAD8 | R150: BENS LAD44296
A151: 2021-04-10 | B151: DUB | C151: 318 | D151: 5 | F151: 2 | G151: 8 | H151: 8 | I151: 9 | J151: 6 | K151: ARROGANT SCOTTY | L151: 16.06647 | M151: 1 | N151: -0.9808864 | O151: 0 | P151: -1 | Q151: ARROGANT SCOTTY8 | R151: ARROGANT SCOTTY44296
A152: 2021-04-10 | B152: DUB | C152: 318 | D152: 5 | F152: 7 | G152: 42 | H152: 8 | I152: 10 | J152: 4 | K152: BAD MONDAY | L152: 16.14114 | M152: 1 | N152: -0.9808864 | O152: 0 | P152: -1 | Q152: BAD MONDAY8 | R152: BAD MONDAY44296
A153: 2021-04-10 | B153: DUB | C153: 318 | D153: 5 | F153: 21 | G153: 10 | H153: 9 | I153: 1 | J153: 1 | K153: TOTAL WINLOCK | L153: 16.04678 | M153: 1 | N153: -0.9808864 | O153: 0 | P153: -1 | Q153: TOTAL WINLOCK9 | R153: TOTAL WINLOCK44296
A154: 2021-04-10 | B154: DUB | C154: 318 | D154: 5 | E154: P MATTRESS | F154: 21 | G154: 57 | H154: 9 | I154: 2 | J154: 2 | K154: SPEEDY MARINA | L154: 15.89542 | M154: 1 | N154: -0.9808864 | O154: 0 | P154: -1 | Q154: SPEEDY MARINA9 | R154: SPEEDY MARINA44296
A155: 2021-04-10 | B155: DUB | C155: 318 | D155: 5 | F155: 7 | G155: 20 | H155: 9 | I155: 3 | J155: 3 | K155: BORROWED ANGEL | L155: 16.3337 | M155: 1 | N155: -0.9808864 | O155: 0 | P155: -1 | Q155: BORROWED ANGEL9 | R155: BORROWED ANGEL44296
A156: 2021-04-10 | B156: DUB | C156: 318 | D156: 5 | F156: 7 | G156: 27 | H156: 9 | I156: 4 | J156: 4 | K156: WINDY PINES | L156: 16.07829 | M156: 1 | N156: -0.9808864 | O156: 0 | P156: -1 | Q156: WINDY PINES9 | R156: WINDY PINES44296
A157: 2021-04-10 | B157: DUB | C157: 318 | D157: 5 | F157: 91 | G157: 28 | H157: 9 | I157: 5 | J157: 5 | K157: ACTIVE ZEUS | L157: 15.63428 | M157: 1 | N157: -0.9808864 | O157: 0 | P157: -1 | Q157: ACTIVE ZEUS9 | R157: ACTIVE ZEUS44296
A158: 2021-04-10 | B158: DUB | C158: 318 | D158: 5 | F158: 69 | G158: 24 | H158: 9 | I158: 6 | J158: 6 | K158: DOUBLE ACTIVE | L158: 16.15613 | M158: 1 | N158: -0.9808864 | O158: 0 | P158: -1 | Q158: DOUBLE ACTIVE9 | R158: DOUBLE ACTIVE44296
A159: 2021-04-10 | B159: DUB | C159: 318 | D159: 5 | F159: 28 | G159: 27 | H159: 9 | I159: 7 | J159: 7 | K159: BOGAN PANTHER | L159: 16.21822 | M159: 1 | N159: -0.9808864 | O159: 0 | P159: -1 | Q159: BOGAN PANTHER9 | R159: BOGAN PANTHER44296
A160: 2021-04-10 | B160: DUB | C160: 318 | D160: 5 | F160: 43 | G160: 33 | H160: 9 | I160: 8 | J160: 8 | K160: BOGAN RIVER | L160: 15.9899 | M160: 1 | N160: -0.9808864 | O160: 0 | P160: -1 | Q160: BOGAN RIVER9 | R160: BOGAN RIVER44296
A161: 2021-04-10 | B161: DUB | C161: 318 | D161: 5 | E161: G COULDRIDGE | F161: 42 | G161: 41 | H161: 10 | I161: 1 | J161: 1 | K161: CHIEF BRONIE | L161: 15.7638 | M161: 1 | N161: -0.9808864 | O161: 0 | P161: -1 | Q161: CHIEF BRONIE10 | R161: CHIEF BRONIE44296
A162: 2021-04-10 | B162: DUB | C162: 318 | D162: 5 | F162: 36 | G162: 38 | H162: 10 | I162: 2 | J162: 2 | K162: SON OF ELI | L162: 16.23299 | M162: 1 | N162: -0.9808864 | O162: 0 | P162: -1 | Q162: SON OF ELI10 | R162: SON OF ELI44296
A163: 2021-04-10 | B163: DUB | C163: 318 | D163: 5 | F163: 42 | G163: 14 | H163: 10 | I163: 3 | J163: 3 | K163: FUSION CRACKER | L163: 15.87213 | M163: 1 | N163: -0.9808864 | O163: 0 | P163: -1 | Q163: FUSION CRACKER10 | R163: FUSION CRACKER44296
A164: 2021-04-10 | B164: DUB | C164: 318 | D164: 5 | F164: 16 | G164: 25 | H164: 10 | I164: 4 | J164: 4 | K164: VOLCANO FUSION | L164: 16.11278 | M164: 1 | N164: -0.9808864 | O164: 0 | P164: -1 | Q164: VOLCANO FUSION10 | R164: VOLCANO FUSION44296
A165: 2021-04-10 | B165: DUB | C165: 318 | D165: 5 | F165: 7 | G165: 51 | H165: 10 | I165: 5 | J165: 5 | K165: DRUNKEN OLLIE | L165: 16.2572 | M165: 1 | N165: -0.9808864 | O165: 0 | P165: -1 | Q165: DRUNKEN OLLIE10 | R165: DRUNKEN OLLIE44296
A166: 2021-04-10 | B166: DUB | C166: 318 | D166: 5 | F166: 28 | G166: 19 | H166: 10 | I166: 6 | J166: 6 | K166: WINLOCK BLUEY | L166: 15.91022 | M166: 1 | N166: -0.9808864 | O166: 0 | P166: -1 | Q166: WINLOCK BLUEY10 | R166: WINLOCK BLUEY44296
A167: 2021-04-10 | B167: DUB | C167: 318 | D167: 5 | F167: 7 | G167: 45 | H167: 10 | I167: 7 | J167: 7 | K167: MR CASH | L167: 16.2065 | M167: 1 | N167: -0.9808864 | O167: 0 | P167: -1 | Q167: MR CASH10 | R167: MR CASH44296
A168: 2021-04-10 | B168: DUB | C168: 318 | D168: 5 | F168: 7 | G168: 36 | H168: 10 | I168: 8 | J168: 8 | K168: PLATINUM STATUS | L168: 16.09916 | M168: 1 | N168: -0.9808864 | O168: 0 | P168: -1 | Q168: PLATINUM STATUS10 | R168: PLATINUM STATUS44296
A169: 2021-04-10 | B169: HOR | C169: 410 | D169: 8 | F169: 16 | G169: 5 | H169: 1 | I169: 1 | J169: 1 | K169: JOSIE WAGS | L169: 42.67643 | M169: 1 | N169: -0.9063766 | O169: 0 | P169: 0 | Q169: JOSIE WAGS1 | R169: JOSIE WAGS44296
A170: 2021-04-10 | B170: HOR | C170: 410 | D170: 8 | F170: 37 | G170: 2 | H170: 1 | I170: 2 | J170: 2 | K170: MISS LEONIE | L170: 41.89383 | M170: 1 | N170: -0.9063766 | O170: 0 | P170: 0 | Q170: MISS LEONIE1 | R170: MISS LEONIE44296
A171: 2021-04-10 | B171: HOR | C171: 410 | D171: 8 | F171: 5 | G171: 7 | H171: 1 | I171: 3 | J171: 3 | K171: LEKTRA HYBRID | L171: 42.94019 | M171: 1 | N171: -0.9063766 | O171: 0 | P171: 0 | Q171: LEKTRA HYBRID1 | R171: LEKTRA HYBRID44296
A172: 2021-04-10 | B172: HOR | C172: 410 | D172: 8 | F172: 0 | G172: 1 | H172: 1 | I172: 4 | J172: 4 | K172: MY GIRL BETTY | L172: 42.34758 | M172: 1 | N172: -0.9063766 | O172: 1 | P172: 0 | Q172: MY GIRL BETTY1 | R172: MY GIRL BETTY44296
A173: 2021-04-10 | B173: HOR | C173: 410 | D173: 8 | F173: 7 | G173: 2 | H173: 1 | I173: 5 | J173: 5 | K173: STELLAS MEMORY | L173: 42.08496 | M173: 1 | N173: -0.9063766 | O173: 0 | P173: 0 | Q173: STELLAS MEMORY1 | R173: STELLAS MEMORY44296
A174: 2021-04-10 | B174: HOR | C174: 410 | D174: 8 | F174: 12 | G174: 2 | H174: 1 | I174: 6 | J174: 6 | K174: BIG FUSS | L174: 42.53141 | M174: 1 | N174: -0.9063766 | O174: 0 | P174: 0 | Q174: BIG FUSS1 | R174: BIG FUSS44296
A175: 2021-04-10 | B175: HOR | C175: 410 | D175: 8 | F175: 7 | G175: 2 | H175: 1 | I175: 7 | J175: 7 | K175: PHOENIX FLIGHT | L175: 42.89141 | M175: 1 | N175: -0.9063766 | O175: 0 | P175: 0 | Q175: PHOENIX FLIGHT1 | R175: PHOENIX FLIGHT44296
A176: 2021-04-10 | B176: HOR | C176: 410 | D176: 8 | F176: 7 | G176: 3 | H176: 1 | I176: 8 | J176: 8 | K176: ROCK OPERA | L176: 42.7743 | M176: 1 | N176: -0.9063766 | O176: 0 | P176: 0 | Q176: ROCK OPERA1 | R176: ROCK OPERA44296
A177: 2021-04-10 | B177: HOR | C177: 410 | D177: 8 | F177: 14 | G177: 13 | H177: 2 | I177: 1 | J177: 1 | K177: MEPUNGA ALLIE | L177: 43.13869 | M177: 1 | N177: -0.9063766 | O177: 0 | P177: 0 | Q177: MEPUNGA ALLIE2 | R177: MEPUNGA ALLIE44296
A178: 2021-04-10 | B178: HOR | C178: 410 | D178: 8 | F178: 30 | G178: 3 | H178: 2 | I178: 2 | J178: 2 | K178: ATTITUDE | L178: 42.69939 | M178: 1 | N178: -0.9063766 | O178: 0 | P178: 0 | Q178: ATTITUDE2 | R178: ATTITUDE44296
A179: 2021-04-10 | B179: HOR | C179: 410 | D179: 8 | F179: 4 | G179: 4 | H179: 2 | I179: 4 | J179: 4 | K179: BODY HACK | L179: 43.53453 | M179: 1 | N179: -0.9063766 | O179: 0 | P179: 0 | Q179: BODY HACK2 | R179: BODY HACK44296
A180: 2021-04-10 | B180: HOR | C180: 410 | D180: 8 | F180: 4 | G180: 14 | H180: 2 | I180: 6 | J180: 6 | K180: SNEAKY KISS | L180: 42.91944 | M180: 1 | N180: -0.9063766 | O180: 0 | P180: 0 | Q180: SNEAKY KISS2 | R180: SNEAKY KISS44296
A181: 2021-04-10 | B181: HOR | C181: 410 | D181: 8 | F181: 5 | G181: 4 | H181: 2 | I181: 7 | J181: 7 | K181: STUDLEY | L181: 43.84998 | M181: 1 | N181: -0.9063766 | O181: 0 | P181: 0 | Q181: STUDLEY2 | R181: STUDLEY44296
A182: 2021-04-10 | B182: HOR | C182: 410 | D182: 8 | F182: 4 | G182: 5 | H182: 2 | I182: 8 | J182: 8 | K182: MINI THUNDER | L182: 43.40659 | M182: 1 | N182: -0.9063766 | O182: 0 | P182: 0 | Q182: MINI THUNDER2 | R182: MINI THUNDER44296
A183: 2021-04-10 | B183: HOR | C183: 410 | D183: 8 | F183: 4 | G183: 17 | H183: 3 | I183: 1 | J183: 1 | K183: MONUMENT VALLEY | L183: 42.83434 | M183: 1 | N183: -0.9063766 | O183: 0 | P183: 0 | Q183: MONUMENT VALLEY3 | R183: MONUMENT VALLEY44296
A184: 2021-04-10 | B184: HOR | C184: 410 | D184: 8 | F184: 7 | G184: 9 | H184: 3 | I184: 2 | J184: 2 | K184: FINCH | L184: 43.36992 | M184: 1 | N184: -0.9063766 | O184: 0 | P184: 0 | Q184: FINCH3 | R184: FINCH44296
A185: 2021-04-10 | B185: HOR | C185: 410 | D185: 8 | F185: 11 | G185: 8 | H185: 3 | I185: 3 | J185: 3 | K185: WESTAR LASS | L185: 43.09985 | M185: 1 | N185: -0.9063766 | O185: 0 | P185: 0 | Q185: WESTAR LASS3 | R185: WESTAR LASS44296
A186: 2021-04-10 | B186: HOR | C186: 410 | D186: 8 | F186: 9 | G186: 4 | H186: 3 | I186: 4 | J186: 4 | K186: MISS COSMIC LEE | L186: 43.17471 | M186: 1 | N186: -0.9063766 | O186: 0 | P186: 0 | Q186: MISS COSMIC LEE3 | R186: MISS COSMIC LEE44296
A187: 2021-04-10 | B187: HOR | C187: 410 | D187: 8 | F187: 11 | G187: 10 | H187: 3 | I187: 6 | J187: 6 | K187: LIPS BOLONEY | L187: 43.00741 | M187: 1 | N187: -0.9063766 | O187: 0 | P187: 0 | Q187: LIPS BOLONEY3 | R187: LIPS BOLONEY44296
A188: 2021-04-10 | B188: HOR | C188: 410 | D188: 8 | F188: 3 | G188: 13 | H188: 3 | I188: 7 | J188: 7 | K188: MARIO BALE | L188: 42.93742 | M188: 1 | N188: -0.9063766 | O188: 0 | P188: 0 | Q188: MARIO BALE3 | R188: MARIO BALE44296
A189: 2021-04-10 | B189: HOR | C189: 410 | D189: 8 | F189: 4 | G189: 49 | H189: 3 | I189: 8 | J189: 8 | K189: PYRENEES PEGASUS | L189: 42.83646 | M189: 1 | N189: -0.9063766 | O189: 0 | P189: 0 | Q189: PYRENEES PEGASUS3 | R189: PYRENEES PEGASUS44296
A190: 2021-04-10 | B190: HOR | C190: 485 | D190: 5 | F190: 13 | G190: 8 | H190: 4 | I190: 1 | J190: 1 | K190: ORLANDO | L190: 28.16497 | M190: 1 | N190: -0.9853702 | O190: 0 | P190: 0 | Q190: ORLANDO4 | R190: ORLANDO44296
A191: 2021-04-10 | B191: HOR | C191: 485 | D191: 5 | F191: 6 | G191: 29 | H191: 4 | I191: 2 | J191: 2 | K191: NICKO IN PARIS | L191: 27.57533 | M191: 1 | N191: -0.9853702 | O191: 0 | P191: 0 | Q191: NICKO IN PARIS4 | R191: NICKO IN PARIS44296
A192: 2021-04-10 | B192: HOR | C192: 485 | D192: 5 | F192: 10 | G192: 28 | H192: 4 | I192: 4 | J192: 4 | K192: HAZY ROSE | L192: 27.42533 | M192: 1 | N192: -0.9853702 | O192: 0 | P192: 0 | Q192: HAZY ROSE4 | R192: HAZY ROSE44296
A193: 2021-04-10 | B193: HOR | C193: 485 | D193: 5 | F193: 6 | G193: 41 | H193: 4 | I193: 7 | J193: 7 | K193: KONTA | L193: 27.61642 | M193: 1 | N193: -0.9853702 | O193: 0 | P193: 0 | Q193: KONTA4 | R193: KONTA44296
A194: 2021-04-10 | B194: HOR | C194: 485 | D194: 5 | F194: 7 | G194: 53 | H194: 4 | I194: 8 | J194: 8 | K194: PIRATE LEE | L194: 27.47469 | M194: 1 | N194: -0.9853702 | O194: 0 | P194: 0 | Q194: PIRATE LEE4 | R194: PIRATE LEE44296
A195: 2021-04-10 | B195: HOR | C195: 485 | D195: 5 | F195: 12 | G195: 5 | H195: 5 | I195: 1 | J195: 1 | K195: LEKTRA BOOGIE | L195: 27.74966 | M195: 1 | N195: -0.9853702 | O195: 0 | P195: 0 | Q195: LEKTRA BOOGIE5 | R195: LEKTRA BOOGIE44296
A196: 2021-04-10 | B196: HOR | C196: 485 | D196: 5 | F196: 4 | G196: 20 | H196: 5 | I196: 2 | J196: 2 | K196: GEORGIO BALE | L196: 27.7003 | M196: 1 | N196: -0.9853702 | O196: 0 | P196: 0 | Q196: GEORGIO BALE5 | R196: GEORGIO BALE44296
A197: 2021-04-10 | B197: HOR | C197: 485 | D197: 5 | F197: 4 | G197: 18 | H197: 5 | I197: 3 | J197: 3 | K197: FAB MOTTO | L197: 27.53024 | M197: 1 | N197: -0.9853702 | O197: 0 | P197: 0 | Q197: FAB MOTTO5 | R197: FAB MOTTO44296
A198: 2021-04-10 | B198: HOR | C198: 485 | D198: 5 | F198: 4 | G198: 21 | H198: 5 | I198: 4 | J198: 4 | K198: NOVA TO BURN | L198: 27.67723 | M198: 1 | N198: -0.9853702 | O198: 0 | P198: 0 | Q198: NOVA TO BURN5 | R198: NOVA TO BURN44296
A199: 2021-04-10 | B199: HOR | C199: 485 | D199: 5 | F199: 7 | G199: 60 | H199: 5 | I199: 5 | J199: 5 | K199: STANS HOPE | L199: 27.18016 | M199: 1 | N199: -0.9853702 | O199: 0 | P199: 0 | Q199: STANS HOPE5 | R199: STANS HOPE44296
A200: 2021-04-10 | B200: HOR | C200: 485 | D200: 5 | F200: 4 | G200: 9 | H200: 5 | I200: 6 | J200: 6 | K200: DIAMOND SIENA | L200: 27.77534 | M200: 1 | N200: -0.9853702 | O200: 0 | P200: 0 | Q200: DIAMOND SIENA5 | R200: DIAMOND SIENA44296
... 619 more rows

Sheet past_races
A1: Shepparton R11 385m | B1: ULS | C1: UL | D1: MLO | E1: Back | F1: Lay | G1: MBO | H1: UB | I1: UBS | J1: Matched | K1: BF | L1: Public | M1: LS | N1: L | O1: Fair Odds | P1: B | Q1: BS | R1: P/L
A2: 1. Super Rage | D2: 30 | E2: 23 | F2: 140 | G2: 60 | J2: 0 | K2: 0 | L2: 21 | O2: 38.27181227 | R2: 0
A3: 2. Perfect Rocky | D3: 3.5 | E3: 3.65 | F3: 7.2 | G3: 5.1 | J3: 0 | K3: 0 | L3: 3.6 | O3: 4.273778033 | R3: 0
A4: 3. Zita | D4: 2.64 | E4: 2.64 | F4: 2.74 | G4: 3.75 | J4: 13.56 | K4: 2.74 | L4: 2.6 | O4: 3.224645341 | R4: 0
A5: 4. Totally Know | D5: 2.8 | E5: 3.35 | F5: 6.6 | G5: 4 | J5: 0 | K5: 0 | L5: 3.1 | O5: 3.420942701 | R5: 0
A6: 5. Make A Pat | D6: 22 | E6: 12 | F6: 46 | G6: 40 | J6: 0 | K6: 0 | L6: 14 | O6: 26.9049307 | R6: 0
A7: 6. Blackjack Cougar | D7: 29 | E7: 15 | F7: 50 | G7: 60 | J7: 0 | K7: 0 | L7: 15 | O7: 35.91672597 | R7: 0
A8: 7. Mr Vinnie | D8: 22 | E8: 18 | F8: 110 | G8: 42 | J8: 0 | K8: 0 | L8: 18 | O8: 27.88266262 | R8: 0
A9: 8. Lektra Desire | D9: 22 | E9: 17 | F9: 100 | G9: 42 | J9: 0 | K9: 0 | L9: 16 | O9: 27.33531065 | R9: 0
A38: Richmond R6 330m | B38: ULS | C38: UL | D38: MLO | E38: Back | F38: Lay | G38: MBO | H38: UB | I38: UBS | J38: Matched | K38: BF | L38: Public | M38: LS | N38: L | O38: Fair Odds | P38: B | Q38: BS | R38: P/L
A39: 1. Glorious Gain | B39: 17 | C39: 15.5 | D39: 15.5 | E39: 17 | F39: 20 | G39: 27 | H39: 27 | I39: 12 | J39: 771.75 | K39: 15.8 | L39: 11 | M39: 50.4 | N39: 13.97053571 | O39: 18.92303124 | R39: -749.65
A40: 2. Coco Suzy | D40: 32 | E40: 75 | F40: 95 | G40: 65 | H40: 90 | I40: 2 | J40: 229.51 | K40: 67.9 | L40: 34 | O40: 39.61462753 | P40: 75.78807947 | Q40: 15.1 | R40: 1098.87
A41: 3. Siddy Sioux | B41: 161 | C41: 1.39 | D41: 1.39 | E41: 1.52 | F41: 1.54 | G41: 1.82 | J41: 14260.83 | K41: 1.65 | L41: 1.45 | O41: 1.706115392 | R41: -45.53
A42: 4. Jimmy Ballows | D42: 14.5 | E42: 24 | F42: 28 | G42: 26 | H42: 28 | I42: 11 | J42: 353.17 | K42: 20.73 | L42: 14 | O42: 18.15182573 | P42: 24.9538715 | Q42: 12.14 | R42: 257.41
A43: 6. June Twenty Six | B43: 19 | C43: 13.5 | D43: 13.5 | E43: 16 | F43: 18 | G43: 24 | H43: 24 | I43: 13 | J43: 354.73 | K43: 17.41 | L43: 13 | O43: 16.66384476 | R43: -45.53
A44: 7. Dancing Sioux | D44: 3.7 | E44: 5.1 | F44: 5.4 | G44: 5.5 | H44: 5.5 | I44: 49.31 | J44: 2139.83 | K44: 4.77 | L44: 4.2 | O44: 4.531380915 | P44: 5.362585529 | Q44: 68.69 | R44: 322.83
A73: Richmond R7 330m | B73: ULS | C73: UL | D73: MLO | E73: Back | F73: Lay | G73: MBO | H73: UB | I73: UBS | J73: Matched | K73: BF | L73: Public | M73: LS | N73: L | O73: Fair Odds | P73: B | Q73: BS | R73: P/L
A74: 2. Xalynn Bale | D74: 38 | E74: 75 | F74: 110 | G74: 1000 | H74: 1000 | I74: 1 | J74: 188.11 | K74: 66.37 | L74: 41 | O74: 48.58776299 | P74: 76.4664311 | Q74: 5.66 | R74: 447.56
A75: 3. Sketchy Halo | D75: 2.96 | E75: 3.75 | F75: 4.2 | G75: 4.3 | H75: 4.3 | I75: 70 | J75: 1560.29 | K75: 4.03 | L75: 3 | O75: 3.620213367 | P75: 4.225155925 | Q75: 4.81 | R75: 35.08
A76: 6. Block Me | B76: 30 | C76: 8.6 | D76: 8.6 | E76: 8.6 | F76: 10.5 | G76: 14.5 | H76: 14.5 | I76: 22 | J76: 916.68 | K76: 9.72 | L76: 8.5 | M76: 27.06 | N76: 8.8 | O76: 10.59877975 | P76: 11 | Q76: 1.83 | R76: -203.24
A77: 7. Senor Sioux | B77: 173 | C77: 1.4 | D77: 1.4 | E77: 1.56 | F77: 1.67 | G77: 1.83 | J77: 20233.36 | K77: 1.61 | L77: 1.55 | O77: 1.713380066 | R77: 14.76
A78: 8. Fortune Seeker | D78: 32 | E78: 55 | F78: 65 | G78: 65 | H78: 65 | I78: 5 | J78: 143.18 | K78: 42.34 | L78: 26 | O78: 39.68297876 | R78: 14.76
A107: Richmond R8 330m | B107: ULS | C107: UL | D107: MLO | E107: Back | F107: Lay | G107: MBO | H107: UB | I107: UBS | J107: Matched | K107: BF | L107: Public | M107: LS | N107: L | O107: Fair Odds | P107: B | Q107: BS | R107: P/L
A108: 1. Go Bonzo | D108: 11 | E108: 17 | F108: 18.5 | G108: 18.5 | H108: 18.5 | I108: 15 | J108: 428.92 | K108: 21.79 | L108: 14 | O108: 13.43372038 | P108: 21 | Q108: 1.42 | R108: 195.88
A109: 2. Slippery Sioux | B109: 35 | C109: 7.4 | D109: 7.4 | E109: 9.6 | F109: 11 | G109: 12.5 | H109: 12.5 | I109: 25 | J109: 861.74 | K109: 8.39 | L109: 7 | O109: 9.261978968 | P109: 8.2 | Q109: 20 | R109: 330.06
A110: 3. Main Attraction | B110: 4 | C110: 75 | D110: 75 | E110: 90 | F110: 120 | G110: 1000 | H110: 1000 | I110: 1 | J110: 68.61 | K110: 84.92 | L110: 51 | O110: 93.58520124 | R110: 166.06
A111: 4. Bears Best | D111: 5.9 | E111: 6.2 | F111: 6.8 | G111: 9.2 | J111: 2231.51 | K111: 6.18 | L111: 4.6 | M111: 259.08 | N111: 5.953778756 | O111: 7.23013734 | R111: -1376.44
A112: 6. Torpedo Rose | B112: 113 | C112: 1.91 | D112: 1.91 | E112: 2.16 | F112: 2.18 | G112: 2.6 | H112: 2.7 | I112: 115 | J112: 16275.64 | K112: 2.53 | L112: 2.15 | O112: 2.338101509 | P112: 3.05 | Q112: 71.6 | R112: 384.44
A113: 7. Shake The World | B113: 76 | C113: 3.4 | D113: 3.4 | E113: 4.3 | F113: 4.7 | G113: 5 | H113: 5 | I113: 62 | J113: 3678.52 | K113: 3.77 | L113: 3.5 | O113: 4.151111511 | R113: 166.06
A142: Richmond R9 330m | B142: ULS | C142: UL | D142: MLO | E142: Back | F142: Lay | G142: MBO | H142: UB | I142: UBS | J142: Matched | K142: BF | L142: Public | M142: LS | N142: L | O142: Fair Odds | P142: B | Q142: BS | R142: P/L
A143: 1. My Play Maker | D143: 6.8 | E143: 9.8 | F143: 11 | G143: 11 | H143: 11 | I143: 29 | J143: 1110.83 | K143: 11.39 | L143: 9 | O143: 8.462269809 | P143: 11.35721146 | Q143: 62.47 | R143: 778.62
A144: 2. Montana Girl | B144: 12 | C144: 18 | D144: 18 | E144: 18.5 | F144: 21 | G144: 34 | H144: 36 | I144: 8 | J144: 208.62 | K144: 22.03 | L144: 18 | O144: 22.34156635 | R144: 69.13
A145: 3. Pacific Gold | B145: 109 | C145: 2.34 | D145: 2.34 | E145: 2.84 | F145: 2.94 | G145: 3.3 | H145: 3.3 | I145: 94 | J145: 5799.77 | K145: 2.86 | L145: 2.3 | O145: 2.872353672 | R145: 69.13
A146: 4. Lead This Way | B146: 3 | C146: 18 | D146: 17.5 | E146: 17.5 | F146: 19 | G146: 32 | J146: 538.93 | K146: 17.97 | L146: 16 | M146: 81.91 | N146: 18.37132218 | O146: 21.39887419 | R146: -1435.66
A147: 5. Impress Smokey | D147: 5.7 | E147: 8.2 | F147: 8.8 | G147: 9 | H147: 9 | I147: 35 | J147: 687.95 | K147: 7.45 | L147: 6.5 | O147: 7.033854202 | P147: 8 | Q147: 20.17 | R147: 230.49
A148: 6. Snoozy Sioux | B148: 74 | C148: 3.5 | D148: 3.5 | E148: 3.65 | F148: 3.9 | G148: 5.2 | J148: 6222.06 | K148: 3.66 | L148: 3.2 | O148: 4.316182658 | R148: 69.13
A149: 8. Blazing Xeni | B149: 21 | C149: 11.5 | D149: 11.5 | E149: 12.5 | F149: 15.5 | G149: 21 | H149: 21 | I149: 12 | J149: 690.36 | K149: 13.85 | L149: 11 | M149: 69.86 | N149: 13.26281134 | O149: 14.63378347 | R149: -857.41
A178: Richmond R10 330m | B178: ULS | C178: UL | D178: MLO | E178: Back | F178: Lay | G178: MBO | H178: UB | I178: UBS | J178: Matched | K178: BF | L178: Public | M178: LS | N178: L | O178: Fair Odds | P178: B | Q178: BS | R178: P/L
A179: 1. Deposit Taken | D179: 4.9 | E179: 6.2 | F179: 6.6 | G179: 7.6 | H179: 7.2 | I179: 36 | J179: 3090.08 | K179: 5.93 | L179: 5 | M179: 94.91 | N179: 5.412021915 | O179: 6.054491268 | R179: -419.16
A180: 2. Tia Herrera | D180: 15.5 | E180: 19 | F180: 21 | G180: 27 | H180: 25 | I180: 13 | J180: 438.97 | K180: 17.5 | L180: 14 | O180: 18.94680081 | P180: 18 | Q180: 36 | R180: 742.5
A181: 3. Jimmy Sioux | B181: 25 | C181: 10.5 | D181: 10.5 | E181: 11.5 | F181: 13 | G181: 18 | J181: 526.34 | K181: 10.82 | L181: 8.5 | O181: 13.10091543 | R181: 94.5
A182: 4. Als Scooby Doo | B182: 14 | C182: 15.5 | D182: 16.5 | E182: 19 | F182: 22 | G182: 30 | H182: 28 | I182: 12 | J182: 408.25 | K182: 21.43 | L182: 17 | M182: 14 | N182: 19.5 | O182: 20.44552284 | R182: -178.5
A183: 5. Muriel Tarantino | B183: 117 | C183: 2.2 | D183: 2.16 | E183: 2.44 | F183: 2.46 | G183: 3 | J183: 10444.25 | K183: 2.6 | L183: 2.15 | O183: 2.655192903 | R183: 104.5
A184: 7. Sovereign Sin | D184: 29 | E184: 24 | F184: 29 | G184: 55 | J184: 421.76 | K184: 24.73 | L184: 21 | M184: 31.59 | N184: 23.96264641 | O184: 35.7384018 | R184: -652.48
A185: 8. Arquette | D185: 3.25 | E185: 4.4 | F185: 4.6 | G185: 4.7 | H185: 5 | I185: 55 | J185: 2281.09 | K185: 4.96 | L185: 4 | O185: 3.964927611 | R185: 104.5
A214: Shepparton R12 385m | B214: ULS | C214: UL | D214: MLO | E214: Back | F214: Lay | G214: MBO | H214: UB | I214: UBS | J214: Matched | K214: BF | L214: Public | M214: LS | N214: L | O214: Fair Odds | P214: B | Q214: BS | R214: P/L
A215: 1. Kamari | D215: 12 | E215: 15 | F215: 34 | G215: 22 | J215: 0 | K215: 0 | L215: 13 | O215: 15.15804884 | R215: 0
A216: 2. Lucas Entity | D216: 48 | E216: 38 | F216: 260 | G216: 1000 | J216: 0 | K216: 0 | L216: 34 | O216: 58.74066532 | R216: 0
A217: 3. All Inn Mia | D217: 4.1 | E217: 5.6 | F217: 7.8 | G217: 6.2 | J217: 118.34 | K217: 7.23 | L217: 4.8 | O217: 5.047324757 | R217: 0
A218: 5. Madame Pookie | D218: 7.6 | E218: 9.4 | F218: 10 | G218: 12.5 | J218: 127.31 | K218: 8.74 | L218: 7 | O218: 9.477580046 | R218: 0
A219: 6. Six And Out | D219: 7.2 | E219: 7.8 | F219: 15.5 | G219: 12 | J219: 0 | K219: 0 | L219: 6.5 | O219: 8.874564666 | R219: 0
A220: 7. Walk On Bye | D220: 2.12 | E220: 2.06 | F220: 2.6 | G220: 2.92 | J220: 43.59 | K220: 2.32 | L220: 2 | O220: 2.596005647 | R220: 0
A221: 8. Jaimandy Roy | D221: 7 | E221: 5.3 | F221: 11.5 | G221: 11.5 | J221: 0 | K221: 0 | L221: 5 | O221: 8.65959931 | R221: 0

Sheet bet_log
A1: ref | B1: selection | C1: stake | D1: odds | E1: matched | F1: type | G1: date | H1: location | I1: race | J1: market_eff | K1: ttj | L1: p/l | M1: amp | N1: rating | O1: public | P1: fair_odds | Q1: filter | R1: dist | S1: udi

Sheet bf_data
A1: udi | B1: b_3_odds | C1: b_2_odds | D1: b_1_odds | E1: l_1_odds | F1: l_2_odds | G1: l_3_odds | H1: b_3_vol | I1: b_2_vol | J1: b_1_vol | K1: l_1_vol | L1: l_2_vol | M1: l_3_vol | N1: matched | O1: lpt | P1: amp | Q1: tab | R1: ubet | S1: t/o | T1: t/o | U1: ttj | V1: uri | W1: runner | X1: lay_matched | Y1: lay_odds | Z1: back_matched | AA1: back_odds | AB1: profit_loss
A2: KAMARI44296 | B2: 13 | C2: 14 | D2: 15 | E2: 34 | F2: 44 | G2: 65 | H2: 8 | I2: 30 | J2: 7 | K2: 6 | L2: 6 | M2: 6 | N2: 0 | O2: 0 | P2: 0 | Q2: 13 | R2: 13 | S2: 15.158 | T2: 15.158 | U2: 534 | V2: Shepparton-12-44296 | W2: 1. Kamari | X2: 0 | Z2: 0 | AB2: 0
A3: LUCAS ENTITY44296 | B3: 30 | C3: 36 | D3: 38 | E3: 260 | F3: 600 | G3: 0 | H3: 5 | I3: 11 | J3: 6 | K3: 9 | L3: 7 | M3: 0 | N3: 0 | O3: 0 | P3: 0 | Q3: 34 | R3: 34 | S3: 58.741 | T3: 58.741 | U3: 534 | V3: Shepparton-12-44296 | W3: 2. Lucas Entity | X3: 0 | Z3: 0 | AB3: 0
A4: ALL INN MIA44296 | B4: 5.2 | C4: 5.4 | D4: 5.6 | E4: 8.2 | F4: 8.6 | G4: 9 | H4: 7 | I4: 7 | J4: 7 | K4: 25 | L4: 11 | M4: 5 | N4: 118.24 | O4: 7.8 | P4: 7.23 | Q4: 4.8 | R4: 4.8 | S4: 5.047 | T4: 5.047 | U4: 534 | V4: Shepparton-12-44296 | W4: 3. All Inn Mia | X4: 0 | Z4: 0 | AB4: 0
A5: MADAME POOKIE44296 | B5: 6.6 | C5: 8 | D5: 9.4 | E5: 10 | F5: 12 | G5: 14.5 | H5: 80 | I5: 42 | J5: 8 | K5: 5 | L5: 15 | M5: 8 | N5: 127.31 | O5: 9.6 | P5: 8.74 | Q5: 7 | R5: 7 | S5: 9.478 | T5: 9.478 | U5: 534 | V5: Shepparton-12-44296 | W5: 5. Madame Pookie | X5: 0 | Z5: 0 | AB5: 0
A6: SIX AND OUT44296 | B6: 6.6 | C6: 7.4 | D6: 7.8 | E6: 15.5 | F6: 16.5 | G6: 19 | H6: 17 | I6: 61 | J6: 6 | K6: 6 | L6: 5 | M6: 10 | N6: 0 | O6: 0 | P6: 0 | Q6: 6.5 | R6: 6.5 | S6: 8.875 | T6: 8.875 | U6: 534 | V6: Shepparton-12-44296 | W6: 6. Six And Out | X6: 0 | Z6: 0 | AB6: 0
A7: WALK ON BYE44296 | B7: 1.95 | C7: 2.04 | D7: 2.06 | E7: 2.66 | F7: 2.7 | G7: 2.72 | H7: 409 | I7: 377 | J7: 7 | K7: 9 | L7: 5 | M7: 9 | N7: 43.59 | O7: 2.06 | P7: 2.32 | Q7: 2 | R7: 2 | S7: 2.596 | T7: 2.596 | U7: 534 | V7: Shepparton-12-44296 | W7: 7. Walk On Bye | X7: 0 | Z7: 0 | AB7: 0
A8: JAIMANDY ROY44296 | B8: 4.8 | C8: 5.2 | D8: 5.3 | E8: 11.5 | F8: 14.5 | G8: 16 | H8: 25 | I8: 93 | J8: 6 | K8: 12 | L8: 9 | M8: 16 | N8: 0 | O8: 0 | P8: 0 | Q8: 5 | R8: 5 | S8: 8.66 | T8: 8.66 | U8: 534 | V8: Shepparton-12-44296 | W8: 8. Jaimandy Roy | X8: 0 | Z8: 0 | AB8: 0

Sheet data_log
A1: earnings | B1: today_bkrl | C1: script_spd
A2: 0 | B2: 103432.64 | C2: 116
A3: -1085 | B3: 103283.43
A4: 1045 | B4: 102688.11
A5: 2076 | B5: 102688.11
A6: 3856 | B6: 103912.7
A7: 6333 | B7: 102871.5
A8: 5979 | B8: 102904.81
A9: 5681 | B9: 103038.94
A10: 8590
A11: 7851
A12: 9051
A13: 9109
A14: 6928
A15: 5890
A16: 5389
A17: 3245
A18: 5294
A19: 6116
A20: 7070
A21: 6707
A22: 7202
A23: 6130
A24: 5929
A25: 6008
A26: 6645
A27: 9002
A28: 8243
A29: 13257
A30: 11987
A31: 12040
A32: 10484
A33: 10202
A34: 10623
A35: 11571
A36: 9964
A37: 9254
A38: 9324
A39: 7322
A40: 6259
A41: 4833
A42: 1862
A43: 2308
A44: 5777
A45: 7325
A46: 5056
A47: 6117
A48: 5004
A49: 8872
A50: 9627
A51: 15968
A52: 13447
A53: 21322
A54: 22385
A55: 17850
A56: 17628
A57: 18616
A58: 22111
A59: 24561
A60: 32221
A61: 32969
A62: 29704
A63: 23551
A64: 25991
A65: 22899
A66: 23958
A67: 22848
A68: 21078
A69: 19514
A70: 19153
A71: 18696
A72: 15372
A73: 15458
A74: 17234
A75: 18410
A76: 19684
A77: 17730
A78: 20001
A79: 19018
A80: 27763
A81: 29060
A82: 28927
A83: 25036
A84: 23534
A85: 23660
A86: 25723
A87: 26794
A88: 29784
A89: 34632
A90: 36319
A91: 45367
A92: 45880
A93: 46342
A94: 48173
A95: 49821
A96: 45555
A97: 52973
A98: 47838
A99: 50827
A100: 48938
A101: 45397
A102: 48565
A103: 42841
A104: 44126
A105: 46497
A106: 43704
A107: 35355
A108: 34513
A109: 31801
A110: 36571
A111: 40596
A112: 41911
A113: 45423
A114: 38767
A115: 33804
A116: 37150
A117: 37104
A118: 38070
A119: 37197
A120: 36992
A121: 41526
A122: 42418
A123: 41013
A124: 45435
A125: 39335
A126: 40378
A127: 46104
A128: 44663
A129: 44149
A130: 50405
A131: 48102
A132: 45756
A133: 50903
A134: 52730
A135: 61551
A136: 62966
A137: 67429
A138: 62625
A139: 56568
A140: 58687
A141: 70172
A142: 64439
A143: 68548
A144: 66806
A145: 60583
A146: 55451
A147: 55806
A148: 53628
A149: 58837
A150: 58176
A151: 62372
A152: 74654
A153: 62199
A154: 67590
A155: 57892
A156: 62388
A157: 58909
A158: 59925
A159: 63444
A160: 60918
A161: 65402
A162: 61692
A163: 64051
A164: 63512
A165: 67658
A166: 72260
A167: 66615
A168: 68296
A169: 66971
A170: 72777
A171: 63563
A172: 62043
A173: 62334
A174: 57281
A175: 57402
A176: 59491
A177: 62028
A178: 71559
A179: 80515
A180: 85777
A181: 84886
A182: 82483
A183: 78400
A184: 76598
A185: 73607
A186: 70947
A187: 67769
A188: 78893
A189: 87451
A190: 90509
A191: 96479
A192: 99429
A193: 96771
A194: 111085
A195: 119393
A196: 123965
A197: 125208
A198: 123738
A199: 127081
A200: 117787
... 104 more rows
